Workbook

Sheet Weekly Data
A2: Part | B2: Revision | C2: Job | D2: Assemb | E2: Oper | F2: OpCode | G2: Emp | H2: EmpName | I2: Hrs | J2: Cases | K2: Bags | L2: Machine | M2: OpCode | N2: StartDate | O2: LaborDate | P2: Dimensions | Q2: NumClrs | R2: NumSides | S2: BagType | T2: BasisWt | U2: StkCust | V2: TLAMtl | W2: TLALabor | X2: LaborType | Y2: ProdStd | Z2: ProdActual | AA2: ExpectedProd | AB2: CasePack | AC2: Shift | AD2: WeekNum | AE2: Expected M's | AF2: New Standard per Actual Direct Hours | AG2: New Cases per Hour | AH2: Item & Machine | AI2: Actual Bags Made | AJ2: % to standard | AK2: Hours Relieved
A3: 02650 | B3: B | C3: 018963 | D3: 0 | E3: 10 | F3: MAKEBAGS | G3: 9139 | H3: Jennifer Spielbauer | I3: 0.05 | J3: 0 | K3: 0 | L3: 406 | M3: MAKEBAGS | N3: 2020-09-15 | O3: 2020-09-15 | P3: 6 x 3 5/8 x 11 1/16 | Q3: 0 | R3: 0 | S3: SOS | T3: 35 | U3: Custom | V3: 759.12 | W3: 192.92 | X3: S | Y3: 5 | Z3: 0 | AA3: 0.25 | AB3: 1000 | AC3: Plant 2nd Shift (B) | AD3: 38 | AE3: =AB3*AA3 -> 250 | AF3: =+AE3*I3 -> 12.5 | AG3: =IF(AE3=0,0,AE3/AB3) -> 0.25 | AH3: =L3&"-"&A3 -> 406-02650 | AI3: =K3 -> 0 | AJ3: =IF(AE3=0,0,AI3/AE3) -> 0 | AK3: =AJ3*I3 -> 0
A4: 02650 | B4: B | C4: 018963 | D4: 0 | E4: 10 | F4: MAKEBAGS | G4: 9139 | H4: Jennifer Spielbauer | I4: 2.73 | J4: 8 | K4: 8000 | L4: 406 | M4: MAKEBAGS | N4: 2020-09-17 | O4: 2020-09-17 | P4: 6 x 3 5/8 x 11 1/16 | Q4: 0 | R4: 0 | S4: SOS | T4: 35 | U4: Custom | V4: 759.12 | W4: 192.92 | X4: P | Y4: 5 | Z4: 2.93040293 | AA4: 13.65 | AB4: 1000 | AC4: Plant 2nd Shift (B) | AD4: 38 | AE4: 13650 | AF4: 37264.5 | AG4: 13.65 | AH4: 406-02650 | AI4: 8000 | AJ4: 0.5860805861 | AK4: 1.6
A5: 02650 | B5: B | C5: 018963 | D5: 0 | E5: 10 | F5: MAKEBAGS | G5: 9139 | H5: Jennifer Spielbauer | I5: 3.15 | J5: 11 | K5: 11000 | L5: 406 | M5: MAKEBAGS | N5: 2020-09-17 | O5: 2020-09-17 | P5: 6 x 3 5/8 x 11 1/16 | Q5: 0 | R5: 0 | S5: SOS | T5: 35 | U5: Custom | V5: 759.12 | W5: 192.92 | X5: P | Y5: 5 | Z5: 3.492063492 | AA5: 15.75 | AB5: 1000 | AC5: Plant 2nd Shift (B) | AD5: 38 | AE5: 15750 | AF5: 49612.5 | AG5: 15.75 | AH5: 406-02650 | AI5: 11000 | AJ5: 0.6984126984 | AK5: 2.2
A6: 02696 | B6: C | C6: 128727-1-1 | D6: 0 | E6: 10 | F6: HOTSTAMP | G6: 9114 | H6: Ryan Campos | I6: 11.73 | J6: 1 | K6: 500 | L6: 801 | M6: HOTSTAMP | N6: 2020-09-17 | O6: 2020-09-17 | P6: 5 x 3 1/8 x 9 5/8 | Q6: 1 | R6: 1 | S6: SOS | T6: 35 | U6: Custom | V6: 114.4 | W6: 259.14 | X6: P | Y6: 0.6 | Z6: 0.0852514919 | AA6: 7.038 | AB6: 500 | AC6: Plant 2nd Shift (B) | AD6: 38 | AE6: 3519 | AF6: 41277.87 | AG6: 7.038 | AH6: 801-02696 | AI6: 500 | AJ6: 0.1420858198 | AK6: 1.666666667
A7: 02696 | B7: C | C7: 128727-1-1 | D7: 0 | E7: 10 | F7: HOTSTAMP | G7: 359 | H7: Elsa Smet | I7: 0.42 | J7: 0 | K7: 0 | L7: 801 | M7: HOTSTAMP | N7: 2020-09-17 | O7: 2020-09-17 | P7: 5 x 3 1/8 x 9 5/8 | Q7: 1 | R7: 1 | S7: SOS | T7: 35 | U7: Custom | V7: 114.4 | W7: 259.14 | X7: S | Y7: 0.6 | Z7: 0 | AA7: 0.252 | AB7: 500 | AC7: Plant 1st Shift (A) | AD7: 38 | AE7: 126 | AF7: 52.92 | AG7: 0.252 | AH7: 801-02696 | AI7: 0 | AJ7: 0 | AK7: 0
A8: 02696 | B8: C | C8: 128727-1-1 | D8: 0 | E8: 10 | F8: HOTSTAMP | G8: 9358 | H8: Janet Hilario | I8: 0.75 | J8: 0 | K8: 0 | L8: 801 | M8: HOTSTAMP | N8: 2020-09-17 | O8: 2020-09-17 | P8: 5 x 3 1/8 x 9 5/8 | Q8: 1 | R8: 1 | S8: SOS | T8: 35 | U8: Custom | V8: 114.4 | W8: 259.14 | X8: P | Y8: 0.6 | Z8: 0 | AA8: 0.45 | AB8: 500 | AC8: Plant 1st Shift (A) | AD8: 38 | AE8: 225 | AF8: 168.75 | AG8: 0.45 | AH8: 801-02696 | AI8: 0 | AJ8: 0 | AK8: 0
A9: 02696 | B9: C | C9: 128727-1-1 | D9: 0 | E9: 10 | F9: HOTSTAMP | G9: 9358 | H9: Janet Hilario | I9: 0.8 | J9: 1 | K9: 500 | L9: 801 | M9: HOTSTAMP | N9: 2020-09-17 | O9: 2020-09-17 | P9: 5 x 3 1/8 x 9 5/8 | Q9: 1 | R9: 1 | S9: SOS | T9: 35 | U9: Custom | V9: 114.4 | W9: 259.14 | X9: P | Y9: 0.6 | Z9: 1.25 | AA9: 0.48 | AB9: 500 | AC9: Plant 1st Shift (A) | AD9: 38 | AE9: 240 | AF9: 192 | AG9: 0.48 | AH9: 801-02696 | AI9: 500 | AJ9: 2.083333333 | AK9: 1.666666667
A10: 02696 | B10: C | C10: 128727-1-1 | D10: 0 | E10: 10 | F10: HOTSTAMP | G10: 9139 | H10: Jennifer Spielbauer | I10: 0.77 | J10: 0 | K10: 0 | L10: 801 | M10: HOTSTAMP | N10: 2020-09-17 | O10: 2020-09-17 | P10: 5 x 3 1/8 x 9 5/8 | Q10: 1 | R10: 1 | S10: SOS | T10: 35 | U10: Custom | V10: 114.4 | W10: 259.14 | X10: P | Y10: 0.6 | Z10: 0 | AA10: 0.462 | AB10: 500 | AC10: Plant 2nd Shift (B) | AD10: 38 | AE10: 231 | AF10: 177.87 | AG10: 0.462 | AH10: 801-02696 | AI10: 0 | AJ10: 0 | AK10: 0
A11: 03728 | B11: A | C11: 127389-1-1 | D11: 0 | E11: 10 | F11: MAKEBAGS | G11: 150 | H11: Jeremiah Paradise | I11: 0.15 | J11: 1 | K11: 500 | L11: 402 | M11: MAKEBAGS | N11: 2020-09-17 | O11: 2020-09-17 | P11: 6 9/16 x 4 1/16 x 13 3/16 | Q11: 1 | R11: 2 | S11: SOS | T11: 35 | U11: Custom | V11: 1271.11 | W11: 353.78 | X11: P | Y11: 9.5 | Z11: 6.666666667 | AA11: 1.425 | AB11: 500 | AC11: Plant 1st Shift (A) | AD11: 38 | AE11: 712.5 | AF11: 106.875 | AG11: 1.425 | AH11: 402-03728 | AI11: 500 | AJ11: 0.701754386 | AK11: 0.1052631579
A12: 03728 | B12: A | C12: 127389-1-1 | D12: 0 | E12: 10 | F12: MAKEBAGS | G12: 150 | H12: Jeremiah Paradise | I12: 5.07 | J12: 37 | K12: 18500 | L12: 402 | M12: MAKEBAGS | N12: 2020-09-17 | O12: 2020-09-17 | P12: 6 9/16 x 4 1/16 x 13 3/16 | Q12: 1 | R12: 2 | S12: SOS | T12: 35 | U12: Custom | V12: 1271.11 | W12: 353.78 | X12: P | Y12: 9.5 | Z12: 7.297830375 | AA12: 48.165 | AB12: 500 | AC12: Plant 1st Shift (A) | AD12: 38 | AE12: 24082.5 | AF12: 122098.275 | AG12: 48.165 | AH12: 402-03728 | AI12: 18500 | AJ12: 0.768192671 | AK12: 3.894736842
A13: 03728 | B13: A | C13: 127389-1-1 | D13: 0 | E13: 10 | F13: MAKEBAGS | G13: 9324 | H13: Jaime Castillo Enriquez | I13: 3.25 | J13: 25 | K13: 12500 | L13: 402 | M13: MAKEBAGS | N13: 2020-09-17 | O13: 2020-09-17 | P13: 6 9/16 x 4 1/16 x 13 3/16 | Q13: 1 | R13: 2 | S13: SOS | T13: 35 | U13: Custom | V13: 1271.11 | W13: 353.78 | X13: P | Y13: 9.5 | Z13: 7.692307692 | AA13: 30.875 | AB13: 500 | AC13: Plant 2nd Shift (B) | AD13: 38 | AE13: 15437.5 | AF13: 50171.875 | AG13: 30.875 | AH13: 402-03728 | AI13: 12500 | AJ13: 0.8097165992 | AK13: 2.631578947
A14: 03728 | B14: A | C14: 127389-1-1 | D14: 0 | E14: 10 | F14: MAKEBAGS | G14: 9324 | H14: Jaime Castillo Enriquez | I14: 2.37 | J14: 0 | K14: 0 | L14: 402 | M14: MAKEBAGS | N14: 2020-09-17 | O14: 2020-09-17 | P14: 6 9/16 x 4 1/16 x 13 3/16 | Q14: 1 | R14: 2 | S14: SOS | T14: 35 | U14: Custom | V14: 1271.11 | W14: 353.78 | X14: P | Y14: 9.5 | Z14: 0 | AA14: 22.515 | AB14: 500 | AC14: Plant 2nd Shift (B) | AD14: 38 | AE14: 11257.5 | AF14: 26680.275 | AG14: 22.515 | AH14: 402-03728 | AI14: 0 | AJ14: 0 | AK14: 0
A15: 03728 | B15: A | C15: 127389-1-1 | D15: 0 | E15: 10 | F15: MAKEBAGS | G15: 9324 | H15: Jaime Castillo Enriquez | I15: 2.37 | J15: 21 | K15: 10500 | L15: 402 | M15: MAKEBAGS | N15: 2020-09-17 | O15: 2020-09-17 | P15: 6 9/16 x 4 1/16 x 13 3/16 | Q15: 1 | R15: 2 | S15: SOS | T15: 35 | U15: Custom | V15: 1271.11 | W15: 353.78 | X15: P | Y15: 9.5 | Z15: 8.860759494 | AA15: 22.515 | AB15: 500 | AC15: Plant 2nd Shift (B) | AD15: 38 | AE15: 11257.5 | AF15: 26680.275 | AG15: 22.515 | AH15: 402-03728 | AI15: 10500 | AJ15: 0.9327115256 | AK15: 2.210526316
A16: 03728 | B16: A | C16: 127389-1-1 | D16: 0 | E16: 10 | F16: MAKEBAGS | G16: 150 | H16: Jeremiah Paradise | I16: 1.22 | J16: 1 | K16: 500 | L16: 402 | M16: MAKEBAGS | N16: 2020-09-17 | O16: 2020-09-17 | P16: 6 9/16 x 4 1/16 x 13 3/16 | Q16: 1 | R16: 2 | S16: SOS | T16: 35 | U16: Custom | V16: 1271.11 | W16: 353.78 | X16: P | Y16: 9.5 | Z16: 0.8196721311 | AA16: 11.59 | AB16: 500 | AC16: Plant 1st Shift (A) | AD16: 38 | AE16: 5795 | AF16: 7069.9 | AG16: 11.59 | AH16: 402-03728 | AI16: 500 | AJ16: 0.08628127696 | AK16: 0.1052631579
A17: 03728 | B17: A | C17: 127389-1-1 | D17: 0 | E17: 10 | F17: MAKEBAGS | G17: 150 | H17: Jeremiah Paradise | I17: 1.15 | J17: 10 | K17: 5000 | L17: 402 | M17: MAKEBAGS | N17: 2020-09-17 | O17: 2020-09-17 | P17: 6 9/16 x 4 1/16 x 13 3/16 | Q17: 1 | R17: 2 | S17: SOS | T17: 35 | U17: Custom | V17: 1271.11 | W17: 353.78 | X17: P | Y17: 9.5 | Z17: 8.695652174 | AA17: 10.925 | AB17: 500 | AC17: Plant 1st Shift (A) | AD17: 38 | AE17: 5462.5 | AF17: 6281.875 | AG17: 10.925 | AH17: 402-03728 | AI17: 5000 | AJ17: 0.9153318078 | AK17: 1.052631579
A18: 03728 | B18: A | C18: 127389-1-1 | D18: 0 | E18: 10 | F18: MAKEBAGS | G18: 9202 | H18: Cynthia DeWane | I18: 0.55 | J18: 0 | K18: 0 | L18: 402 | M18: MAKEBAGS | N18: 2020-09-17 | O18: 2020-09-17 | P18: 6 9/16 x 4 1/16 x 13 3/16 | Q18: 1 | R18: 2 | S18: SOS | T18: 35 | U18: Custom | V18: 1271.11 | W18: 353.78 | X18: S | Y18: 9.5 | Z18: 0 | AA18: 5.225 | AB18: 500 | AC18: Plant 3rd Shift (C) | AD18: 38 | AE18: 2612.5 | AF18: 1436.875 | AG18: 5.225 | AH18: 402-03728 | AI18: 0 | AJ18: 0 | AK18: 0
A19: 03728 | B19: A | C19: 127389-1-1 | D19: 0 | E19: 10 | F19: MAKEBAGS | G19: 9202 | H19: Cynthia DeWane | I19: 2.12 | J19: 22 | K19: 11000 | L19: 402 | M19: MAKEBAGS | N19: 2020-09-17 | O19: 2020-09-17 | P19: 6 9/16 x 4 1/16 x 13 3/16 | Q19: 1 | R19: 2 | S19: SOS | T19: 35 | U19: Custom | V19: 1271.11 | W19: 353.78 | X19: P | Y19: 9.5 | Z19: 10.37735849 | AA19: 20.14 | AB19: 500 | AC19: Plant 3rd Shift (C) | AD19: 38 | AE19: 10070 | AF19: 21348.4 | AG19: 20.14 | AH19: 402-03728 | AI19: 11000 | AJ19: 1.092353525 | AK19: 2.315789474
A20: 03728 | B20: A | C20: 127389-1-1 | D20: 0 | E20: 10 | F20: MAKEBAGS | G20: 9202 | H20: Cynthia DeWane | I20: 0.25 | J20: 0 | K20: 0 | L20: 402 | M20: MAKEBAGS | N20: 2020-09-17 | O20: 2020-09-17 | P20: 6 9/16 x 4 1/16 x 13 3/16 | Q20: 1 | R20: 2 | S20: SOS | T20: 35 | U20: Custom | V20: 1271.11 | W20: 353.78 | X20: S | Y20: 9.5 | Z20: 0 | AA20: 2.375 | AB20: 500 | AC20: Plant 3rd Shift (C) | AD20: 38 | AE20: 1187.5 | AF20: 296.875 | AG20: 2.375 | AH20: 402-03728 | AI20: 0 | AJ20: 0 | AK20: 0
A21: 03728 | B21: A | C21: 127389-1-1 | D21: 0 | E21: 10 | F21: MAKEBAGS | G21: 9202 | H21: Cynthia DeWane | I21: 3.6 | J21: 33 | K21: 16500 | L21: 402 | M21: MAKEBAGS | N21: 2020-09-17 | O21: 2020-09-17 | P21: 6 9/16 x 4 1/16 x 13 3/16 | Q21: 1 | R21: 2 | S21: SOS | T21: 35 | U21: Custom | V21: 1271.11 | W21: 353.78 | X21: P | Y21: 9.5 | Z21: 9.166666667 | AA21: 34.2 | AB21: 500 | AC21: Plant 3rd Shift (C) | AD21: 38 | AE21: 17100 | AF21: 61560 | AG21: 34.2 | AH21: 402-03728 | AI21: 16500 | AJ21: 0.9649122807 | AK21: 3.473684211
A22: 04423 | B22: C | C22: 128686-1-1 | D22: 0 | E22: 10 | F22: POSTPRNT | G22: 243 | H22: Amalia Navarro | I22: 1.03 | J22: 0 | K22: 0 | L22: 601 | M22: POSTPRNT | N22: 2020-09-17 | O22: 2020-09-17 | P22: 10 x 13 | Q22: 1 | R22: 1 | S22: Merchandise | T22: 30 | U22: Custom | V22: 69.99 | W22: 53.62 | X22: S | Y22: 12 | Z22: 0 | AA22: 12.36 | AB22: 1000 | AC22: Plant 2nd Shift (B) | AD22: 38 | AE22: 12360 | AF22: 12730.8 | AG22: 12.36 | AH22: 601-04423 | AI22: 0 | AJ22: 0 | AK22: 0
A23: 04423 | B23: C | C23: 128686-1-1 | D23: 0 | E23: 10 | F23: POSTPRNT | G23: 243 | H23: Amalia Navarro | I23: 1.3 | J23: 0 | K23: 0 | L23: 601 | M23: POSTPRNT | N23: 2020-09-17 | O23: 2020-09-17 | P23: 10 x 13 | Q23: 1 | R23: 1 | S23: Merchandise | T23: 30 | U23: Custom | V23: 69.99 | W23: 53.62 | X23: P | Y23: 12 | Z23: 0 | AA23: 15.6 | AB23: 1000 | AC23: Plant 2nd Shift (B) | AD23: 38 | AE23: 15600 | AF23: 20280 | AG23: 15.6 | AH23: 601-04423 | AI23: 0 | AJ23: 0 | AK23: 0
A24: 04423 | B24: C | C24: 128686-1-1 | D24: 0 | E24: 10 | F24: POSTPRNT | G24: 243 | H24: Amalia Navarro | I24: 1.5 | J24: 3 | K24: 3000 | L24: 601 | M24: POSTPRNT | N24: 2020-09-17 | O24: 2020-09-17 | P24: 10 x 13 | Q24: 1 | R24: 1 | S24: Merchandise | T24: 30 | U24: Custom | V24: 69.99 | W24: 53.62 | X24: P | Y24: 12 | Z24: 2 | AA24: 18 | AB24: 1000 | AC24: Plant 2nd Shift (B) | AD24: 38 | AE24: 18000 | AF24: 27000 | AG24: 18 | AH24: 601-04423 | AI24: 3000 | AJ24: 0.1666666667 | AK24: 0.25
A25: 05285 | B25: C | C25: 019236 | D25: 0 | E25: 30 | F25: PEELSEAL | G25: 9358 | H25: Janet Hilario | I25: 2.13 | J25: 30 | K25: 6000 | L25: 301 | M25: PEELSEAL | N25: 2020-09-17 | O25: 2020-09-17 | P25: 12 1/2 x 19 | Q25: 1 | R25: 1 | S25: Eco-Shipper P/S | T25: 105 | U25: Custom | V25: 385.8 | W25: 62.58 | X25: P | Y25: 32.5 | Z25: 14.08450704 | AA25: 69.225 | AB25: 200 | AC25: Plant 1st Shift (A) | AD25: 38 | AE25: 13845 | AF25: 29489.85 | AG25: 69.225 | AH25: 301-05285 | AI25: 6000 | AJ25: 0.4333694475 | AK25: 0.9230769231
A26: 05967 | B26: B | C26: 128657-1-1 | D26: 0 | E26: 10 | F26: POSTPRNT | G26: 243 | H26: Amalia Navarro | I26: 0.27 | J26: 0 | K26: 0 | L26: 601 | M26: POSTPRNT | N26: 2020-09-17 | O26: 2020-09-17 | P26: 8 1/2 x 11 | Q26: 1 | R26: 1 | S26: Merchandise | T26: 32 | U26: Custom | V26: 23.73 | W26: 16.66 | X26: S | Y26: 0.75 | Z26: 0 | AA26: 0.2025 | AB26: 1000 | AC26: Plant 2nd Shift (B) | AD26: 38 | AE26: 202.5 | AF26: 54.675 | AG26: 0.2025 | AH26: 601-05967 | AI26: 0 | AJ26: 0 | AK26: 0
A27: 05967 | B27: B | C27: 128657-1-1 | D27: 0 | E27: 10 | F27: POSTPRNT | G27: 243 | H27: Amalia Navarro | I27: 0.92 | J27: 1 | K27: 1000 | L27: 601 | M27: POSTPRNT | N27: 2020-09-17 | O27: 2020-09-17 | P27: 8 1/2 x 11 | Q27: 1 | R27: 1 | S27: Merchandise | T27: 32 | U27: Custom | V27: 23.73 | W27: 16.66 | X27: P | Y27: 0.75 | Z27: 1.086956522 | AA27: 0.69 | AB27: 1000 | AC27: Plant 2nd Shift (B) | AD27: 38 | AE27: 690 | AF27: 634.8 | AG27: 0.69 | AH27: 601-05967 | AI27: 1000 | AJ27: 1.449275362 | AK27: 1.333333333
A28: 06615 | B28: B | C28: 128790-1-1 | D28: 0 | E28: 10 | F28: HOTSTAMP | G28: 359 | H28: Elsa Smet | I28: 0.3 | J28: 0 | K28: 0 | L28: 801 | M28: HOTSTAMP | N28: 2020-09-17 | O28: 2020-09-17 | P28: 6 1/4 x 9 1/4 | Q28: 1 | R28: 1 | S28: Merchandise | T28: 32 | U28: Custom | V28: 18.15 | W28: 4.2 | X28: S | Y28: 0.3 | Z28: 0 | AA28: 0.09 | AB28: 1000 | AC28: Plant 1st Shift (A) | AD28: 38 | AE28: 90 | AF28: 27 | AG28: 0.09 | AH28: 801-06615 | AI28: 0 | AJ28: 0 | AK28: 0
A29: 07562 | B29: B | C29: 127478-1-2 | D29: 0 | E29: 10 | F29: MAKEBAGS | G29: 9641 | H29: Sonia A Flores | I29: 2.45 | J29: 14 | K29: 14000 | L29: 108 | M29: MAKEBAGS | N29: 2020-09-17 | O29: 2020-09-17 | P29: 5 x 2 1/2 x 10 1/4 | Q29: 1 | R29: 2 | S29: Merchandise | T29: 30 | U29: Custom | V29: 378.79 | W29: 109.76 | X29: P | Y29: 13.5 | Z29: 5.714285714 | AA29: 33.075 | AB29: 1000 | AC29: Plant 2nd Shift (B) | AD29: 38 | AE29: 33075 | AF29: 81033.75 | AG29: 33.075 | AH29: 108-07562 | AI29: 14000 | AJ29: 0.4232804233 | AK29: 1.037037037
A30: 07562 | B30: B | C30: 127478-1-2 | D30: 0 | E30: 10 | F30: MAKEBAGS | G30: 9641 | H30: Sonia A Flores | I30: 0.72 | J30: 4 | K30: 4000 | L30: 108 | M30: MAKEBAGS | N30: 2020-09-17 | O30: 2020-09-17 | P30: 5 x 2 1/2 x 10 1/4 | Q30: 1 | R30: 2 | S30: Merchandise | T30: 30 | U30: Custom | V30: 378.79 | W30: 109.76 | X30: P | Y30: 13.5 | Z30: 5.555555556 | AA30: 9.72 | AB30: 1000 | AC30: Plant 2nd Shift (B) | AD30: 38 | AE30: 9720 | AF30: 6998.4 | AG30: 9.72 | AH30: 108-07562 | AI30: 4000 | AJ30: 0.4115226337 | AK30: 0.2962962963
A31: 07562 | B31: B | C31: 127478-1-1 | D31: 0 | E31: 10 | F31: MAKEBAGS | G31: 9641 | H31: Sonia A Flores | I31: 2.73 | J31: 25 | K31: 25000 | L31: 108 | M31: MAKEBAGS | N31: 2020-09-17 | O31: 2020-09-17 | P31: 5 x 2 1/2 x 10 1/4 | Q31: 1 | R31: 2 | S31: Merchandise | T31: 30 | U31: Custom | V31: 309.47 | W31: 82.6 | X31: P | Y31: 13.5 | Z31: 9.157509158 | AA31: 36.855 | AB31: 1000 | AC31: Plant 2nd Shift (B) | AD31: 38 | AE31: 36855 | AF31: 100614.15 | AG31: 36.855 | AH31: 108-07562 | AI31: 25000 | AJ31: 0.6783340117 | AK31: 1.851851852
A32: 07562 | B32: B | C32: 127478-1-1 | D32: 0 | E32: 10 | F32: MAKEBAGS | G32: 9641 | H32: Sonia A Flores | I32: 2.87 | J32: 25 | K32: 25000 | L32: 108 | M32: MAKEBAGS | N32: 2020-09-17 | O32: 2020-09-17 | P32: 5 x 2 1/2 x 10 1/4 | Q32: 1 | R32: 2 | S32: Merchandise | T32: 30 | U32: Custom | V32: 309.47 | W32: 82.6 | X32: P | Y32: 13.5 | Z32: 8.710801394 | AA32: 38.745 | AB32: 1000 | AC32: Plant 2nd Shift (B) | AD32: 38 | AE32: 38745 | AF32: 111198.15 | AG32: 38.745 | AH32: 108-07562 | AI32: 25000 | AJ32: 0.6452445477 | AK32: 1.851851852
A33: 07562 | B33: B | C33: 127478-1-2 | D33: 0 | E33: 10 | F33: MAKEBAGS | G33: 9641 | H33: Sonia A Flores | I33: 2.12 | J33: 15 | K33: 15000 | L33: 108 | M33: MAKEBAGS | N33: 2020-09-17 | O33: 2020-09-17 | P33: 5 x 2 1/2 x 10 1/4 | Q33: 1 | R33: 2 | S33: Merchandise | T33: 30 | U33: Custom | V33: 378.79 | W33: 109.76 | X33: P | Y33: 13.5 | Z33: 7.075471698 | AA33: 28.62 | AB33: 1000 | AC33: Plant 2nd Shift (B) | AD33: 38 | AE33: 28620 | AF33: 60674.4 | AG33: 28.62 | AH33: 108-07562 | AI33: 15000 | AJ33: 0.5241090147 | AK33: 1.111111111
A34: 07562 | B34: B | C34: 127478-1-2 | D34: 0 | E34: 10 | F34: MAKEBAGS | G34: 9641 | H34: Sonia A Flores | I34: 2.55 | J34: 17 | K34: 17000 | L34: 108 | M34: MAKEBAGS | N34: 2020-09-17 | O34: 2020-09-17 | P34: 5 x 2 1/2 x 10 1/4 | Q34: 1 | R34: 2 | S34: Merchandise | T34: 30 | U34: Custom | V34: 378.79 | W34: 109.76 | X34: P | Y34: 13.5 | Z34: 6.666666667 | AA34: 34.425 | AB34: 1000 | AC34: Plant 2nd Shift (B) | AD34: 38 | AE34: 34425 | AF34: 87783.75 | AG34: 34.425 | AH34: 108-07562 | AI34: 17000 | AJ34: 0.4938271605 | AK34: 1.259259259
A35: 07562 | B35: B | C35: 127478-1-1 | D35: 0 | E35: 10 | F35: MAKEBAGS | G35: 289 | H35: Pete DePouw | I35: 0.3 | J35: 0 | K35: 0 | L35: 108 | M35: MAKEBAGS | N35: 2020-09-17 | O35: 2020-09-17 | P35: 5 x 2 1/2 x 10 1/4 | Q35: 1 | R35: 2 | S35: Merchandise | T35: 30 | U35: Custom | V35: 309.47 | W35: 82.6 | X35: S | Y35: 13.5 | Z35: 0 | AA35: 4.05 | AB35: 1000 | AC35: Plant 1st Shift (A) | AD35: 38 | AE35: 4050 | AF35: 1215 | AG35: 4.05 | AH35: 108-07562 | AI35: 0 | AJ35: 0 | AK35: 0
A36: 07760 | B36: A | C36: 128446-1-1 | D36: 0 | E36: 10 | F36: POSTPRNT | G36: 243 | H36: Amalia Navarro | I36: 0.57 | J36: 0 | K36: 0 | L36: 601 | M36: POSTPRNT | N36: 2020-09-17 | O36: 2020-09-17 | P36: 9 1/2 x 3 x 16 | Q36: 1 | R36: 1 | S36: Eco-Shipper P/S | T36: 99 | U36: Custom | V36: 47.37 | W36: 22.26 | X36: S | Y36: 3 | Z36: 0 | AA36: 1.71 | AB36: 250 | AC36: Plant 2nd Shift (B) | AD36: 38 | AE36: 427.5 | AF36: 243.675 | AG36: 1.71 | AH36: 601-07760 | AI36: 0 | AJ36: 0 | AK36: 0
A37: 07760 | B37: A | C37: 128446-1-1 | D37: 0 | E37: 10 | F37: POSTPRNT | G37: 243 | H37: Amalia Navarro | I37: 0.75 | J37: 0 | K37: 0 | L37: 601 | M37: POSTPRNT | N37: 2020-09-17 | O37: 2020-09-17 | P37: 9 1/2 x 3 x 16 | Q37: 1 | R37: 1 | S37: Eco-Shipper P/S | T37: 99 | U37: Custom | V37: 47.37 | W37: 22.26 | X37: P | Y37: 3 | Z37: 0 | AA37: 2.25 | AB37: 250 | AC37: Plant 2nd Shift (B) | AD37: 38 | AE37: 562.5 | AF37: 421.875 | AG37: 2.25 | AH37: 601-07760 | AI37: 0 | AJ37: 0 | AK37: 0
A38: 07760 | B38: A | C38: 128446-1-1 | D38: 0 | E38: 10 | F38: POSTPRNT | G38: 243 | H38: Amalia Navarro | I38: 0.27 | J38: 3 | K38: 750 | L38: 601 | M38: POSTPRNT | N38: 2020-09-17 | O38: 2020-09-17 | P38: 9 1/2 x 3 x 16 | Q38: 1 | R38: 1 | S38: Eco-Shipper P/S | T38: 99 | U38: Custom | V38: 47.37 | W38: 22.26 | X38: P | Y38: 3 | Z38: 11.11111111 | AA38: 0.81 | AB38: 250 | AC38: Plant 2nd Shift (B) | AD38: 38 | AE38: 202.5 | AF38: 54.675 | AG38: 0.81 | AH38: 601-07760 | AI38: 750 | AJ38: 3.703703704 | AK38: 1
A39: 09442 | B39: B | C39: 126939-1-1 | D39: 0 | E39: 10 | F39: MAKEBAGS | G39: 9582 | H39: Matt J. Grasse | I39: 0.55 | J39: 0 | K39: 0 | L39: 101 | M39: MAKEBAGS | N39: 2020-09-17 | O39: 2020-09-17 | P39: 5 x 2 x 16 | Q39: 1 | R39: 2 | S39: Merchandise | T39: 35 | U39: Custom | V39: 367.03 | W39: 99.82 | X39: S | Y39: 8 | Z39: 0 | AA39: 4.4 | AB39: 1000 | AC39: Plant 1st Shift (A) | AD39: 38 | AE39: =AB39*AA39 -> 4400 | AF39: 2420 | AG39: =IF(AE39=0,0,AE39/AB39) -> 4.4 | AH39: 101-09442 | AI39: 0 | AJ39: =IF(AE39=0,0,AI39/AE39) -> 0 | AK39: 0
A40: 09442 | B40: B | C40: 126939-1-1 | D40: 0 | E40: 10 | F40: MAKEBAGS | G40: 9582 | H40: Matt J. Grasse | I40: 1.18 | J40: 8 | K40: 8000 | L40: 101 | M40: MAKEBAGS | N40: 2020-09-17 | O40: 2020-09-17 | P40: 5 x 2 x 16 | Q40: 1 | R40: 2 | S40: Merchandise | T40: 35 | U40: Custom | V40: 367.03 | W40: 99.82 | X40: P | Y40: 8 | Z40: 6.779661017 | AA40: 9.44 | AB40: 1000 | AC40: Plant 1st Shift (A) | AD40: 38 | AE40: 9440 | AF40: 11139.2 | AG40: 9.44 | AH40: 101-09442 | AI40: 8000 | AJ40: 0.8474576271 | AK40: 1
A41: 09442 | B41: B | C41: 126939-1-1 | D41: 0 | E41: 10 | F41: MAKEBAGS | G41: 9144 | H41: Ken Verhagen | I41: 0.5 | J41: 0 | K41: 0 | L41: 101 | M41: MAKEBAGS | N41: 2020-09-17 | O41: 2020-09-17 | P41: 5 x 2 x 16 | Q41: 1 | R41: 2 | S41: Merchandise | T41: 35 | U41: Custom | V41: 367.03 | W41: 99.82 | X41: S | Y41: 8 | Z41: 0 | AA41: 4 | AB41: 1000 | AC41: Plant 1st Shift (A) | AD41: 38 | AE41: 4000 | AF41: 2000 | AG41: 4 | AH41: 101-09442 | AI41: 0 | AJ41: 0 | AK41: 0
A42: 09442 | B42: B | C42: 126939-1-1 | D42: 0 | E42: 10 | F42: MAKEBAGS | G42: 9144 | H42: Ken Verhagen | I42: 2.17 | J42: 13 | K42: 13000 | L42: 101 | M42: MAKEBAGS | N42: 2020-09-17 | O42: 2020-09-17 | P42: 5 x 2 x 16 | Q42: 1 | R42: 2 | S42: Merchandise | T42: 35 | U42: Custom | V42: 367.03 | W42: 99.82 | X42: P | Y42: 8 | Z42: 5.99078341 | AA42: 17.36 | AB42: 1000 | AC42: Plant 1st Shift (A) | AD42: 38 | AE42: 17360 | AF42: 37671.2 | AG42: 17.36 | AH42: 101-09442 | AI42: 13000 | AJ42: 0.7488479263 | AK42: 1.625
A43: 09442 | B43: B | C43: 126939-1-1 | D43: 0 | E43: 10 | F43: MAKEBAGS | G43: 9144 | H43: Ken Verhagen | I43: 1.2 | J43: 4 | K43: 4000 | L43: 101 | M43: MAKEBAGS | N43: 2020-09-17 | O43: 2020-09-17 | P43: 5 x 2 x 16 | Q43: 1 | R43: 2 | S43: Merchandise | T43: 35 | U43: Custom | V43: 367.03 | W43: 99.82 | X43: P | Y43: 8 | Z43: 3.333333333 | AA43: 9.6 | AB43: 1000 | AC43: Plant 1st Shift (A) | AD43: 38 | AE43: 9600 | AF43: 11520 | AG43: 9.6 | AH43: 101-09442 | AI43: 4000 | AJ43: 0.4166666667 | AK43: 0.5
A44: 09442 | B44: B | C44: 126939-1-1 | D44: 0 | E44: 10 | F44: MAKEBAGS | G44: 289 | H44: Pete DePouw | I44: 0.23 | J44: 0 | K44: 0 | L44: 101 | M44: MAKEBAGS | N44: 2020-09-17 | O44: 2020-09-17 | P44: 5 x 2 x 16 | Q44: 1 | R44: 2 | S44: Merchandise | T44: 35 | U44: Custom | V44: 367.03 | W44: 99.82 | X44: S | Y44: 8 | Z44: 0 | AA44: 1.84 | AB44: 1000 | AC44: Plant 1st Shift (A) | AD44: 38 | AE44: 1840 | AF44: 423.2 | AG44: 1.84 | AH44: 101-09442 | AI44: 0 | AJ44: 0 | AK44: 0
A45: 09782 | B45: A | C45: 128701-1-1 | D45: 0 | E45: 10 | F45: HOTSTAMP | G45: 9139 | H45: Jennifer Spielbauer | I45: 0.02 | J45: 0 | K45: 0 | L45: 801 | M45: HOTSTAMP | N45: 2020-09-17 | O45: 2020-09-17 | P45: 8 1/2 x 11 | Q45: 1 | R45: 1 | S45: Merchandise | T45: 35 | U45: Custom | V45: 98.73 | W45: 0.56 | X45: P | Y45: 0.75 | Z45: 0 | AA45: 0.015 | AB45: 1000 | AC45: Plant 2nd Shift (B) | AD45: 38 | AE45: 15 | AF45: 0.3 | AG45: 0.015 | AH45: 801-09782 | AI45: 0 | AJ45: 0 | AK45: 0
A46: 09782 | B46: A | C46: 128701-1-1 | D46: 0 | E46: 10 | F46: HOTSTAMP | G46: 9139 | H46: Jennifer Spielbauer | I46: 0.02 | J46: 0 | K46: 0 | L46: 801 | M46: HOTSTAMP | N46: 2020-09-17 | O46: 2020-09-17 | P46: 8 1/2 x 11 | Q46: 1 | R46: 1 | S46: Merchandise | T46: 35 | U46: Custom | V46: 98.73 | W46: 0.56 | X46: P | Y46: 0.75 | Z46: 0 | AA46: 0.015 | AB46: 1000 | AC46: Plant 2nd Shift (B) | AD46: 38 | AE46: 15 | AF46: 0.3 | AG46: 0.015 | AH46: 801-09782 | AI46: 0 | AJ46: 0 | AK46: 0
A47: 09832 | B47: A | C47: 019034 | D47: 0 | E47: 10 | F47: MAKEBAGS | G47: 9576 | H47: Gregory Gryer | I47: 0.65 | J47: 0 | K47: 0 | L47: 102 | M47: MAKEBAGS | N47: 2020-09-17 | O47: 2020-09-17 | P47: 6 1/8 x 2 1/2 x 15 1/2 | Q47: 2 | R47: 2 | S47: Merchandise | T47: 35 | U47: Custom | V47: 1166.19 | W47: 922.88 | X47: S | Y47: 24 | Z47: 0 | AA47: 15.6 | AB47: 1000 | AC47: Plant 1st Shift (A) | AD47: 38 | AE47: 15600 | AF47: 10140 | AG47: 15.6 | AH47: 102-09832 | AI47: 0 | AJ47: 0 | AK47: 0
A48: 09832 | B48: A | C48: 019034 | D48: 0 | E48: 10 | F48: MAKEBAGS | G48: 9576 | H48: Gregory Gryer | I48: 4.37 | J48: 97 | K48: 97000 | L48: 102 | M48: MAKEBAGS | N48: 2020-09-17 | O48: 2020-09-17 | P48: 6 1/8 x 2 1/2 x 15 1/2 | Q48: 2 | R48: 2 | S48: Merchandise | T48: 35 | U48: Custom | V48: 1166.19 | W48: 922.88 | X48: P | Y48: 24 | Z48: 22.19679634 | AA48: 104.88 | AB48: 1000 | AC48: Plant 1st Shift (A) | AD48: 38 | AE48: 104880 | AF48: 458325.6 | AG48: 104.88 | AH48: 102-09832 | AI48: 97000 | AJ48: 0.9248665141 | AK48: 4.041666667
A49: 09832 | B49: A | C49: 019034 | D49: 0 | E49: 10 | F49: MAKEBAGS | G49: 9576 | H49: Gregory Gryer | I49: 2.78 | J49: 47 | K49: 47000 | L49: 102 | M49: MAKEBAGS | N49: 2020-09-17 | O49: 2020-09-17 | P49: 6 1/8 x 2 1/2 x 15 1/2 | Q49: 2 | R49: 2 | S49: Merchandise | T49: 35 | U49: Custom | V49: 1166.19 | W49: 922.88 | X49: P | Y49: 24 | Z49: 16.90647482 | AA49: 66.72 | AB49: 1000 | AC49: Plant 1st Shift (A) | AD49: 38 | AE49: 66720 | AF49: 185481.6 | AG49: 66.72 | AH49: 102-09832 | AI49: 47000 | AJ49: 0.7044364508 | AK49: 1.958333333
A50: 09832 | B50: A | C50: 019034 | D50: 0 | E50: 10 | F50: MAKEBAGS | G50: 9576 | H50: Gregory Gryer | I50: 1.7 | J50: 41 | K50: 41000 | L50: 102 | M50: MAKEBAGS | N50: 2020-09-17 | O50: 2020-09-17 | P50: 6 1/8 x 2 1/2 x 15 1/2 | Q50: 2 | R50: 2 | S50: Merchandise | T50: 35 | U50: Custom | V50: 1166.19 | W50: 922.88 | X50: P | Y50: 24 | Z50: 24.11764706 | AA50: 40.8 | AB50: 1000 | AC50: Plant 1st Shift (A) | AD50: 38 | AE50: 40800 | AF50: 69360 | AG50: 40.8 | AH50: 102-09832 | AI50: 41000 | AJ50: 1.004901961 | AK50: 1.708333333
A51: 09832 | B51: A | C51: 019034 | D51: 0 | E51: 10 | F51: MAKEBAGS | G51: 9576 | H51: Gregory Gryer | I51: 0.9 | J51: 34 | K51: 34000 | L51: 102 | M51: MAKEBAGS | N51: 2020-09-17 | O51: 2020-09-17 | P51: 6 1/8 x 2 1/2 x 15 1/2 | Q51: 2 | R51: 2 | S51: Merchandise | T51: 35 | U51: Custom | V51: 1166.19 | W51: 922.88 | X51: P | Y51: 24 | Z51: 37.77777778 | AA51: 21.6 | AB51: 1000 | AC51: Plant 1st Shift (A) | AD51: 38 | AE51: 21600 | AF51: 19440 | AG51: 21.6 | AH51: 102-09832 | AI51: 34000 | AJ51: 1.574074074 | AK51: 1.416666667
A52: 09832 | B52: A | C52: 018894 | D52: 0 | E52: 10 | F52: MAKEBAGS | G52: 9144 | H52: Ken Verhagen | I52: 0.98 | J52: 0 | K52: 0 | L52: 103 | M52: MAKEBAGS | N52: 2020-09-17 | O52: 2020-09-17 | P52: 6 1/8 x 2 1/2 x 15 1/2 | Q52: 2 | R52: 2 | S52: Merchandise | T52: 35 | U52: Custom | V52: 526.45 | W52: 468.72 | X52: S | Y52: 16 | Z52: 0 | AA52: 15.68 | AB52: 1000 | AC52: Plant 1st Shift (A) | AD52: 38 | AE52: 15680 | AF52: 15366.4 | AG52: 15.68 | AH52: 103-09832 | AI52: 0 | AJ52: 0 | AK52: 0
A53: 09832 | B53: A | C53: 018894 | D53: 0 | E53: 10 | F53: MAKEBAGS | G53: 9144 | H53: Ken Verhagen | I53: 3.75 | J53: 64 | K53: 64000 | L53: 103 | M53: MAKEBAGS | N53: 2020-09-17 | O53: 2020-09-17 | P53: 6 1/8 x 2 1/2 x 15 1/2 | Q53: 2 | R53: 2 | S53: Merchandise | T53: 35 | U53: Custom | V53: 526.45 | W53: 468.72 | X53: P | Y53: 16 | Z53: 17.06666667 | AA53: 60 | AB53: 1000 | AC53: Plant 1st Shift (A) | AD53: 38 | AE53: =AB53*AA53 -> 60000 | AF53: 225000 | AG53: =IF(AE53=0,0,AE53/AB53) -> 60 | AH53: 103-09832 | AI53: 64000 | AJ53: =IF(AE53=0,0,AI53/AE53) -> 1.066666667 | AK53: 4
A54: 09832 | B54: A | C54: 018894 | D54: 0 | E54: 10 | F54: MAKEBAGS | G54: 9144 | H54: Ken Verhagen | I54: 1.02 | J54: 11 | K54: 11000 | L54: 103 | M54: MAKEBAGS | N54: 2020-09-17 | O54: 2020-09-17 | P54: 6 1/8 x 2 1/2 x 15 1/2 | Q54: 2 | R54: 2 | S54: Merchandise | T54: 35 | U54: Custom | V54: 526.45 | W54: 468.72 | X54: P | Y54: 16 | Z54: 10.78431373 | AA54: 16.32 | AB54: 1000 | AC54: Plant 1st Shift (A) | AD54: 38 | AE54: 16320 | AF54: 16646.4 | AG54: 16.32 | AH54: 103-09832 | AI54: 11000 | AJ54: 0.6740196078 | AK54: 0.6875
A55: 09832 | B55: A | C55: 018894 | D55: 0 | E55: 10 | F55: MAKEBAGS | G55: 9144 | H55: Ken Verhagen | I55: 0.25 | J55: 0 | K55: 0 | L55: 103 | M55: MAKEBAGS | N55: 2020-09-17 | O55: 2020-09-17 | P55: 6 1/8 x 2 1/2 x 15 1/2 | Q55: 2 | R55: 2 | S55: Merchandise | T55: 35 | U55: Custom | V55: 526.45 | W55: 468.72 | X55: S | Y55: 16 | Z55: 0 | AA55: 4 | AB55: 1000 | AC55: Plant 1st Shift (A) | AD55: 38 | AE55: 4000 | AF55: 1000 | AG55: 4 | AH55: 103-09832 | AI55: 0 | AJ55: 0 | AK55: 0
A56: 09832 | B56: A | C56: 018894 | D56: 0 | E56: 10 | F56: MAKEBAGS | G56: 9144 | H56: Ken Verhagen | I56: 4.95 | J56: 85 | K56: 85000 | L56: 103 | M56: MAKEBAGS | N56: 2020-09-17 | O56: 2020-09-17 | P56: 6 1/8 x 2 1/2 x 15 1/2 | Q56: 2 | R56: 2 | S56: Merchandise | T56: 35 | U56: Custom | V56: 526.45 | W56: 468.72 | X56: P | Y56: 16 | Z56: 17.17171717 | AA56: 79.2 | AB56: 1000 | AC56: Plant 1st Shift (A) | AD56: 38 | AE56: 79200 | AF56: 392040 | AG56: 79.2 | AH56: 103-09832 | AI56: 85000 | AJ56: 1.073232323 | AK56: 5.3125
A57: 09832 | B57: A | C57: 018894 | D57: 0 | E57: 10 | F57: MAKEBAGS | G57: 9144 | H57: Ken Verhagen | I57: 0.7 | J57: 9 | K57: 9000 | L57: 103 | M57: MAKEBAGS | N57: 2020-09-17 | O57: 2020-09-17 | P57: 6 1/8 x 2 1/2 x 15 1/2 | Q57: 2 | R57: 2 | S57: Merchandise | T57: 35 | U57: Custom | V57: 526.45 | W57: 468.72 | X57: P | Y57: 16 | Z57: 12.85714286 | AA57: 11.2 | AB57: 1000 | AC57: Plant 1st Shift (A) | AD57: 38 | AE57: 11200 | AF57: 7840 | AG57: 11.2 | AH57: 103-09832 | AI57: 9000 | AJ57: 0.8035714286 | AK57: 0.5625
A58: 09832 | B58: A | C58: 018894 | D58: 0 | E58: 10 | F58: MAKEBAGS | G58: 9144 | H58: Ken Verhagen | I58: 2.57 | J58: 41 | K58: 41000 | L58: 103 | M58: MAKEBAGS | N58: 2020-09-17 | O58: 2020-09-17 | P58: 6 1/8 x 2 1/2 x 15 1/2 | Q58: 2 | R58: 2 | S58: Merchandise | T58: 35 | U58: Custom | V58: 526.45 | W58: 468.72 | X58: P | Y58: 16 | Z58: 15.95330739 | AA58: 41.12 | AB58: 1000 | AC58: Plant 1st Shift (A) | AD58: 38 | AE58: 41120 | AF58: 105678.4 | AG58: 41.12 | AH58: 103-09832 | AI58: 41000 | AJ58: 0.9970817121 | AK58: 2.5625
A59: 09832 | B59: A | C59: 018894 | D59: 0 | E59: 10 | F59: MAKEBAGS | G59: 9144 | H59: Ken Verhagen | I59: 1.6 | J59: 35 | K59: 35000 | L59: 103 | M59: MAKEBAGS | N59: 2020-09-17 | O59: 2020-09-17 | P59: 6 1/8 x 2 1/2 x 15 1/2 | Q59: 2 | R59: 2 | S59: Merchandise | T59: 35 | U59: Custom | V59: 526.45 | W59: 468.72 | X59: P | Y59: 16 | Z59: 21.875 | AA59: 25.6 | AB59: 1000 | AC59: Plant 1st Shift (A) | AD59: 38 | AE59: 25600 | AF59: 40960 | AG59: 25.6 | AH59: 103-09832 | AI59: 35000 | AJ59: 1.3671875 | AK59: 2.1875
A60: 09832 | B60: A | C60: 019034 | D60: 0 | E60: 10 | F60: MAKEBAGS | G60: 9576 | H60: Gregory Gryer | I60: 0.58 | J60: 0 | K60: 0 | L60: 102 | M60: MAKEBAGS | N60: 2020-09-17 | O60: 2020-09-17 | P60: 6 1/8 x 2 1/2 x 15 1/2 | Q60: 2 | R60: 2 | S60: Merchandise | T60: 35 | U60: Custom | V60: 1166.19 | W60: 922.88 | X60: S | Y60: 24 | Z60: 0 | AA60: 13.92 | AB60: 1000 | AC60: Plant 1st Shift (A) | AD60: 38 | AE60: 13920 | AF60: 8073.6 | AG60: 13.92 | AH60: 102-09832 | AI60: 0 | AJ60: 0 | AK60: 0
A61: 09832 | B61: A | C61: 019034 | D61: 0 | E61: 10 | F61: MAKEBAGS | G61: 9576 | H61: Gregory Gryer | I61: 4.4 | J61: 92 | K61: 92000 | L61: 102 | M61: MAKEBAGS | N61: 2020-09-17 | O61: 2020-09-17 | P61: 6 1/8 x 2 1/2 x 15 1/2 | Q61: 2 | R61: 2 | S61: Merchandise | T61: 35 | U61: Custom | V61: 1166.19 | W61: 922.88 | X61: P | Y61: 24 | Z61: 20.90909091 | AA61: 105.6 | AB61: 1000 | AC61: Plant 1st Shift (A) | AD61: 38 | AE61: 105600 | AF61: 464640 | AG61: 105.6 | AH61: 102-09832 | AI61: 92000 | AJ61: 0.8712121212 | AK61: 3.833333333
A62: 09832 | B62: A | C62: 019034 | D62: 0 | E62: 10 | F62: MAKEBAGS | G62: 9576 | H62: Gregory Gryer | I62: 2.58 | J62: 33 | K62: 33000 | L62: 102 | M62: MAKEBAGS | N62: 2020-09-17 | O62: 2020-09-17 | P62: 6 1/8 x 2 1/2 x 15 1/2 | Q62: 2 | R62: 2 | S62: Merchandise | T62: 35 | U62: Custom | V62: 1166.19 | W62: 922.88 | X62: P | Y62: 24 | Z62: 12.79069767 | AA62: 61.92 | AB62: 1000 | AC62: Plant 1st Shift (A) | AD62: 38 | AE62: 61920 | AF62: 159753.6 | AG62: 61.92 | AH62: 102-09832 | AI62: 33000 | AJ62: 0.5329457364 | AK62: 1.375
A63: 09832 | B63: A | C63: 019034 | D63: 0 | E63: 10 | F63: MAKEBAGS | G63: 9576 | H63: Gregory Gryer | I63: 1.83 | J63: 25 | K63: 25000 | L63: 102 | M63: MAKEBAGS | N63: 2020-09-17 | O63: 2020-09-17 | P63: 6 1/8 x 2 1/2 x 15 1/2 | Q63: 2 | R63: 2 | S63: Merchandise | T63: 35 | U63: Custom | V63: 1166.19 | W63: 922.88 | X63: P | Y63: 24 | Z63: 13.66120219 | AA63: 43.92 | AB63: 1000 | AC63: Plant 1st Shift (A) | AD63: 38 | AE63: 43920 | AF63: 80373.6 | AG63: 43.92 | AH63: 102-09832 | AI63: 25000 | AJ63: 0.5692167577 | AK63: 1.041666667
A64: 09832 | B64: A | C64: 019034 | D64: 0 | E64: 10 | F64: MAKEBAGS | G64: 9576 | H64: Gregory Gryer | I64: 1.32 | J64: 25 | K64: 25000 | L64: 102 | M64: MAKEBAGS | N64: 2020-09-17 | O64: 2020-09-17 | P64: 6 1/8 x 2 1/2 x 15 1/2 | Q64: 2 | R64: 2 | S64: Merchandise | T64: 35 | U64: Custom | V64: 1166.19 | W64: 922.88 | X64: P | Y64: 24 | Z64: 18.93939394 | AA64: 31.68 | AB64: 1000 | AC64: Plant 1st Shift (A) | AD64: 38 | AE64: 31680 | AF64: 41817.6 | AG64: 31.68 | AH64: 102-09832 | AI64: 25000 | AJ64: 0.7891414141 | AK64: 1.041666667
A65: 09832 | B65: A | C65: 019034 | D65: 0 | E65: 10 | F65: MAKEBAGS | G65: 9314 | H65: Amanda Bruening | I65: 2.12 | J65: 5 | K65: 5000 | L65: 102 | M65: MAKEBAGS | N65: 2020-09-17 | O65: 2020-09-17 | P65: 6 1/8 x 2 1/2 x 15 1/2 | Q65: 2 | R65: 2 | S65: Merchandise | T65: 35 | U65: Custom | V65: 1166.19 | W65: 922.88 | X65: P | Y65: 24 | Z65: 2.358490566 | AA65: 50.88 | AB65: 1000 | AC65: Plant 2nd Shift (B) | AD65: 38 | AE65: 50880 | AF65: 107865.6 | AG65: 50.88 | AH65: 102-09832 | AI65: 5000 | AJ65: 0.09827044025 | AK65: 0.2083333333
A66: 09832 | B66: A | C66: 019034 | D66: 0 | E66: 10 | F66: MAKEBAGS | G66: 9314 | H66: Amanda Bruening | I66: 4.58 | J66: 32 | K66: 32000 | L66: 102 | M66: MAKEBAGS | N66: 2020-09-17 | O66: 2020-09-17 | P66: 6 1/8 x 2 1/2 x 15 1/2 | Q66: 2 | R66: 2 | S66: Merchandise | T66: 35 | U66: Custom | V66: 1166.19 | W66: 922.88 | X66: P | Y66: 24 | Z66: 6.986899563 | AA66: 109.92 | AB66: 1000 | AC66: Plant 2nd Shift (B) | AD66: 38 | AE66: =AB66*AA66 -> 109920 | AF66: 503433.6 | AG66: =IF(AE66=0,0,AE66/AB66) -> 109.92 | AH66: 102-09832 | AI66: 32000 | AJ66: =IF(AE66=0,0,AI66/AE66) -> 0.2911208151 | AK66: 1.333333333
A67: 09832 | B67: A | C67: 019034 | D67: 0 | E67: 10 | F67: MAKEBAGS | G67: 9314 | H67: Amanda Bruening | I67: 1.2 | J67: 32 | K67: 32000 | L67: 102 | M67: MAKEBAGS | N67: 2020-09-17 | O67: 2020-09-17 | P67: 6 1/8 x 2 1/2 x 15 1/2 | Q67: 2 | R67: 2 | S67: Merchandise | T67: 35 | U67: Custom | V67: 1166.19 | W67: 922.88 | X67: P | Y67: 24 | Z67: 26.66666667 | AA67: 28.8 | AB67: 1000 | AC67: Plant 2nd Shift (B) | AD67: 38 | AE67: 28800 | AF67: =+AE67*I67 -> 34560 | AG67: 28.8 | AH67: =L67&"-"&A67 -> 102-09832 | AI67: =K67 -> 32000 | AJ67: 1.111111111 | AK67: =AJ67*I67 -> 1.333333333
A68: 09832 | B68: A | C68: 019034 | D68: 0 | E68: 10 | F68: MAKEBAGS | G68: 9314 | H68: Amanda Bruening | I68: 1.77 | J68: 46 | K68: 46000 | L68: 102 | M68: MAKEBAGS | N68: 2020-09-17 | O68: 2020-09-17 | P68: 6 1/8 x 2 1/2 x 15 1/2 | Q68: 2 | R68: 2 | S68: Merchandise | T68: 35 | U68: Custom | V68: 1166.19 | W68: 922.88 | X68: P | Y68: 24 | Z68: 25.98870056 | AA68: 42.48 | AB68: 1000 | AC68: Plant 2nd Shift (B) | AD68: 38 | AE68: 42480 | AF68: 75189.6 | AG68: 42.48 | AH68: 102-09832 | AI68: 46000 | AJ68: 1.082862524 | AK68: 1.916666667
A69: 10312 | B69: A | C69: 127152-1-1 | D69: 0 | E69: 10 | F69: MAKEBAGS | G69: 9521 | H69: Jessica Morrison | I69: 1.8 | J69: 14 | K69: 7000 | L69: 405 | M69: MAKEBAGS | N69: 2020-09-17 | O69: 2020-09-17 | P69: 6 x 3 5/8 x 11 1/16 | Q69: 2 | R69: 4 | S69: SOS | T69: 32 | U69: Custom | V69: 314.26 | W69: 44.38 | X69: P | Y69: 10 | Z69: 7.777777778 | AA69: 18 | AB69: 500 | AC69: Plant 2nd Shift (B) | AD69: 38 | AE69: 9000 | AF69: 16200 | AG69: 18 | AH69: 405-10312 | AI69: 7000 | AJ69: 0.7777777778 | AK69: 1.4
A70: 10312 | B70: A | C70: 127152-1-1 | D70: 0 | E70: 10 | F70: MAKEBAGS | G70: 289 | H70: Pete DePouw | I70: 0.72 | J70: 0 | K70: 0 | L70: 405 | M70: MAKEBAGS | N70: 2020-09-17 | O70: 2020-09-17 | P70: 6 x 3 5/8 x 11 1/16 | Q70: 2 | R70: 4 | S70: SOS | T70: 32 | U70: Custom | V70: 314.26 | W70: 44.38 | X70: S | Y70: 10 | Z70: 0 | AA70: 7.2 | AB70: 500 | AC70: Plant 1st Shift (A) | AD70: 38 | AE70: 3600 | AF70: 2592 | AG70: 7.2 | AH70: 405-10312 | AI70: 0 | AJ70: 0 | AK70: 0
A71: 10312 | B71: A | C71: 127152-1-1 | D71: 0 | E71: 10 | F71: MAKEBAGS | G71: 9630 | H71: Heather Vera Meyer | I71: 0.65 | J71: 6 | K71: 3000 | L71: 405 | M71: MAKEBAGS | N71: 2020-09-17 | O71: 2020-09-17 | P71: 6 x 3 5/8 x 11 1/16 | Q71: 2 | R71: 4 | S71: SOS | T71: 32 | U71: Custom | V71: 314.26 | W71: 44.38 | X71: P | Y71: 10 | Z71: 9.230769231 | AA71: 6.5 | AB71: 500 | AC71: Plant 1st Shift (A) | AD71: 38 | AE71: 3250 | AF71: 2112.5 | AG71: 6.5 | AH71: 405-10312 | AI71: 3000 | AJ71: 0.9230769231 | AK71: 0.6
A72: 10463 | B72: B | C72: 019374 | D72: 0 | E72: 10 | F72: MAKEBAGS | G72: 78 | H72: Marsha L Laverdieve | I72: 1.52 | J72: 0 | K72: 0 | L72: 137 | M72: MAKEBAGS | N72: 2020-09-17 | O72: 2020-09-17 | P72: 3 x 2 1/2 x 46 | Q72: 0 | R72: 0 | S72: Merchandise | T72: 60 | U72: Custom | V72: 1842.46 | W72: 181.58 | X72: P | Y72: 120 | Z72: 0 | AA72: 182.4 | AB72: 50 | AC72: Plant 1st Shift (A) | AD72: 38 | AE72: 9120 | AF72: 13862.4 | AG72: 182.4 | AH72: 137-10463 | AI72: 0 | AJ72: 0 | AK72: 0
A73: 10463 | B73: B | C73: 019374 | D73: 0 | E73: 10 | F73: MAKEBAGS | G73: 78 | H73: Marsha L Laverdieve | I73: 0.28 | J73: 0 | K73: 0 | L73: 137 | M73: MAKEBAGS | N73: 2020-09-17 | O73: 2020-09-17 | P73: 3 x 2 1/2 x 46 | Q73: 0 | R73: 0 | S73: Merchandise | T73: 60 | U73: Custom | V73: 1842.46 | W73: 181.58 | X73: P | Y73: 120 | Z73: 0 | AA73: 33.6 | AB73: 50 | AC73: Plant 1st Shift (A) | AD73: 38 | AE73: 1680 | AF73: 470.4 | AG73: 33.6 | AH73: 137-10463 | AI73: 0 | AJ73: 0 | AK73: 0
A74: 10463 | B74: B | C74: 019374 | D74: 0 | E74: 10 | F74: MAKEBAGS | G74: 78 | H74: Marsha L Laverdieve | I74: 0.15 | J74: 0 | K74: 0 | L74: 137 | M74: MAKEBAGS | N74: 2020-09-17 | O74: 2020-09-17 | P74: 3 x 2 1/2 x 46 | Q74: 0 | R74: 0 | S74: Merchandise | T74: 60 | U74: Custom | V74: 1842.46 | W74: 181.58 | X74: S | Y74: 120 | Z74: 0 | AA74: 18 | AB74: 50 | AC74: Plant 1st Shift (A) | AD74: 38 | AE74: 900 | AF74: 135 | AG74: 18 | AH74: 137-10463 | AI74: 0 | AJ74: 0 | AK74: 0
A75: 10463 | B75: B | C75: 019374 | D75: 0 | E75: 10 | F75: MAKEBAGS | G75: 78 | H75: Marsha L Laverdieve | I75: 2.15 | J75: 216 | K75: 10800 | L75: 137 | M75: MAKEBAGS | N75: 2020-09-17 | O75: 2020-09-17 | P75: 3 x 2 1/2 x 46 | Q75: 0 | R75: 0 | S75: Merchandise | T75: 60 | U75: Custom | V75: 1842.46 | W75: 181.58 | X75: P | Y75: 120 | Z75: 100.4651163 | AA75: 258 | AB75: 50 | AC75: Plant 1st Shift (A) | AD75: 38 | AE75: 12900 | AF75: 27735 | AG75: 258 | AH75: 137-10463 | AI75: 10800 | AJ75: 0.8372093023 | AK75: 1.8
A76: 10463 | B76: B | C76: 019374 | D76: 0 | E76: 10 | F76: MAKEBAGS | G76: 78 | H76: Marsha L Laverdieve | I76: 0.72 | J76: 0 | K76: 0 | L76: 137 | M76: MAKEBAGS | N76: 2020-09-17 | O76: 2020-09-17 | P76: 3 x 2 1/2 x 46 | Q76: 0 | R76: 0 | S76: Merchandise | T76: 60 | U76: Custom | V76: 1842.46 | W76: 181.58 | X76: P | Y76: 120 | Z76: 0 | AA76: 86.4 | AB76: 50 | AC76: Plant 1st Shift (A) | AD76: 38 | AE76: 4320 | AF76: 3110.4 | AG76: 86.4 | AH76: 137-10463 | AI76: 0 | AJ76: 0 | AK76: 0
A77: 10463 | B77: B | C77: 019374 | D77: 0 | E77: 10 | F77: MAKEBAGS | G77: 78 | H77: Marsha L Laverdieve | I77: 0.2 | J77: 0 | K77: 0 | L77: 137 | M77: MAKEBAGS | N77: 2020-09-17 | O77: 2020-09-17 | P77: 3 x 2 1/2 x 46 | Q77: 0 | R77: 0 | S77: Merchandise | T77: 60 | U77: Custom | V77: 1842.46 | W77: 181.58 | X77: S | Y77: 120 | Z77: 0 | AA77: 24 | AB77: 50 | AC77: Plant 1st Shift (A) | AD77: 38 | AE77: 1200 | AF77: 240 | AG77: 24 | AH77: 137-10463 | AI77: 0 | AJ77: 0 | AK77: 0
A78: 10463 | B78: B | C78: 019374 | D78: 0 | E78: 10 | F78: MAKEBAGS | G78: 78 | H78: Marsha L Laverdieve | I78: 1.05 | J78: 132 | K78: 6600 | L78: 137 | M78: MAKEBAGS | N78: 2020-09-17 | O78: 2020-09-17 | P78: 3 x 2 1/2 x 46 | Q78: 0 | R78: 0 | S78: Merchandise | T78: 60 | U78: Custom | V78: 1842.46 | W78: 181.58 | X78: P | Y78: 120 | Z78: 125.7142857 | AA78: 126 | AB78: 50 | AC78: Plant 1st Shift (A) | AD78: 38 | AE78: 6300 | AF78: 6615 | AG78: 126 | AH78: 137-10463 | AI78: 6600 | AJ78: 1.047619048 | AK78: 1.1
A79: 10582 | B79: A | C79: 127259-2-1 | D79: 0 | E79: 10 | F79: MAKEBAGS | G79: 9368 | H79: Timothy DeWane | I79: 0.65 | J79: 0 | K79: 0 | L79: 201 | M79: MAKEBAGS | N79: 2020-09-17 | O79: 2020-09-17 | P79: 10 1/2 x 3 3/4 x 12 | Q79: 1 | R79: 1 | S79: Eco-Shipper P/S | T79: 105 | U79: Custom | V79: 5636.57 | W79: 848.26 | X79: S | Y79: 17 | Z79: 0 | AA79: 11.05 | AB79: 200 | AC79: Plant 1st Shift (A) | AD79: 38 | AE79: 2210 | AF79: 1436.5 | AG79: 11.05 | AH79: 201-10582 | AI79: 0 | AJ79: 0 | AK79: 0
A80: 10582 | B80: A | C80: 127259-2-1 | D80: 0 | E80: 10 | F80: MAKEBAGS | G80: 9368 | H80: Timothy DeWane | I80: 1.97 | J80: 0 | K80: 0 | L80: 201 | M80: MAKEBAGS | N80: 2020-09-17 | O80: 2020-09-17 | P80: 10 1/2 x 3 3/4 x 12 | Q80: 1 | R80: 1 | S80: Eco-Shipper P/S | T80: 105 | U80: Custom | V80: 5636.57 | W80: 848.26 | X80: P | Y80: 17 | Z80: 0 | AA80: 33.49 | AB80: 200 | AC80: Plant 1st Shift (A) | AD80: 38 | AE80: 6698 | AF80: 13195.06 | AG80: 33.49 | AH80: 201-10582 | AI80: 0 | AJ80: 0 | AK80: 0
A81: 10582 | B81: A | C81: 127259-2-1 | D81: 0 | E81: 10 | F81: MAKEBAGS | G81: 9368 | H81: Timothy DeWane | I81: 1.22 | J81: 176 | K81: 35200 | L81: 201 | M81: MAKEBAGS | N81: 2020-09-17 | O81: 2020-09-17 | P81: 10 1/2 x 3 3/4 x 12 | Q81: 1 | R81: 1 | S81: Eco-Shipper P/S | T81: 105 | U81: Custom | V81: 5636.57 | W81: 848.26 | X81: P | Y81: 17 | Z81: 144.2622951 | AA81: 20.74 | AB81: 200 | AC81: Plant 1st Shift (A) | AD81: 38 | AE81: 4148 | AF81: 5060.56 | AG81: 20.74 | AH81: 201-10582 | AI81: 35200 | AJ81: 8.486017358 | AK81: 10.35294118
A82: 10582 | B82: A | C82: 127259-2-1 | D82: 0 | E82: 10 | F82: MAKEBAGS | G82: 9368 | H82: Timothy DeWane | I82: 0.02 | J82: 0 | K82: 0 | L82: 201 | M82: MAKEBAGS | N82: 2020-09-17 | O82: 2020-09-17 | P82: 10 1/2 x 3 3/4 x 12 | Q82: 1 | R82: 1 | S82: Eco-Shipper P/S | T82: 105 | U82: Custom | V82: 5636.57 | W82: 848.26 | X82: P | Y82: 17 | Z82: 0 | AA82: 0.34 | AB82: 200 | AC82: Plant 1st Shift (A) | AD82: 38 | AE82: 68 | AF82: 1.36 | AG82: 0.34 | AH82: 201-10582 | AI82: 0 | AJ82: 0 | AK82: 0
A83: 10582 | B83: A | C83: 127259-2-1 | D83: 0 | E83: 10 | F83: MAKEBAGS | G83: 9368 | H83: Timothy DeWane | I83: 0.23 | J83: 70 | K83: 14000 | L83: 201 | M83: MAKEBAGS | N83: 2020-09-17 | O83: 2020-09-17 | P83: 10 1/2 x 3 3/4 x 12 | Q83: 1 | R83: 1 | S83: Eco-Shipper P/S | T83: 105 | U83: Custom | V83: 5636.57 | W83: 848.26 | X83: P | Y83: 17 | Z83: 304.3478261 | AA83: 3.91 | AB83: 200 | AC83: Plant 1st Shift (A) | AD83: 38 | AE83: 782 | AF83: 179.86 | AG83: 3.91 | AH83: 201-10582 | AI83: 14000 | AJ83: 17.9028133 | AK83: 4.117647059
A84: 10582 | B84: A | C84: 127259-2-1 | D84: 0 | E84: 30 | F84: PEELSEAL | G84: 24 | H84: Darlene A Amenson | I84: 2.8 | J84: 18 | K84: 3600 | L84: 301 | M84: PEELSEAL | N84: 2020-09-17 | O84: 2020-09-17 | P84: 10 1/2 x 3 3/4 x 12 | Q84: 1 | R84: 1 | S84: Eco-Shipper P/S | T84: 105 | U84: Custom | V84: 5636.57 | W84: 848.26 | X84: P | Y84: 18 | Z84: 6.428571429 | AA84: 50.4 | AB84: 200 | AC84: Plant 1st Shift (A) | AD84: 38 | AE84: 10080 | AF84: 28224 | AG84: 50.4 | AH84: 301-10582 | AI84: 3600 | AJ84: 0.3571428571 | AK84: 1
A85: 10582 | B85: A | C85: 127259-2-1 | D85: 0 | E85: 30 | F85: PEELSEAL | G85: 24 | H85: Darlene A Amenson | I85: 2.38 | J85: 40 | K85: 8000 | L85: 301 | M85: PEELSEAL | N85: 2020-09-17 | O85: 2020-09-17 | P85: 10 1/2 x 3 3/4 x 12 | Q85: 1 | R85: 1 | S85: Eco-Shipper P/S | T85: 105 | U85: Custom | V85: 5636.57 | W85: 848.26 | X85: P | Y85: 18 | Z85: 16.80672269 | AA85: 42.84 | AB85: 200 | AC85: Plant 1st Shift (A) | AD85: 38 | AE85: =AB85*AA85 -> 8568 | AF85: 20391.84 | AG85: =IF(AE85=0,0,AE85/AB85) -> 42.84 | AH85: 301-10582 | AI85: 8000 | AJ85: =IF(AE85=0,0,AI85/AE85) -> 0.9337068161 | AK85: 2.222222222
A86: 10582 | B86: A | C86: 127259-2-1 | D86: 0 | E86: 30 | F86: PEELSEAL | G86: 24 | H86: Darlene A Amenson | I86: 0.52 | J86: 0 | K86: 0 | L86: 301 | M86: PEELSEAL | N86: 2020-09-17 | O86: 2020-09-17 | P86: 10 1/2 x 3 3/4 x 12 | Q86: 1 | R86: 1 | S86: Eco-Shipper P/S | T86: 105 | U86: Custom | V86: 5636.57 | W86: 848.26 | X86: P | Y86: 18 | Z86: 0 | AA86: 9.36 | AB86: 200 | AC86: Plant 1st Shift (A) | AD86: 38 | AE86: 1872 | AF86: 973.44 | AG86: 9.36 | AH86: 301-10582 | AI86: 0 | AJ86: 0 | AK86: 0
A87: 10582 | B87: A | C87: 127259-2-1 | D87: 0 | E87: 30 | F87: PEELSEAL | G87: 24 | H87: Darlene A Amenson | I87: 1.52 | J87: 40 | K87: 8000 | L87: 301 | M87: PEELSEAL | N87: 2020-09-17 | O87: 2020-09-17 | P87: 10 1/2 x 3 3/4 x 12 | Q87: 1 | R87: 1 | S87: Eco-Shipper P/S | T87: 105 | U87: Custom | V87: 5636.57 | W87: 848.26 | X87: P | Y87: 18 | Z87: 26.31578947 | AA87: 27.36 | AB87: 200 | AC87: Plant 1st Shift (A) | AD87: 38 | AE87: 5472 | AF87: 8317.44 | AG87: 27.36 | AH87: 301-10582 | AI87: 8000 | AJ87: 1.461988304 | AK87: 2.222222222
A88: 10582 | B88: A | C88: 127259-2-1 | D88: 0 | E88: 30 | F88: PEELSEAL | G88: 24 | H88: Darlene A Amenson | I88: 2.13 | J88: 103 | K88: 20600 | L88: 301 | M88: PEELSEAL | N88: 2020-09-17 | O88: 2020-09-17 | P88: 10 1/2 x 3 3/4 x 12 | Q88: 1 | R88: 1 | S88: Eco-Shipper P/S | T88: 105 | U88: Custom | V88: 5636.57 | W88: 848.26 | X88: P | Y88: 18 | Z88: 48.35680751 | AA88: 38.34 | AB88: 200 | AC88: Plant 1st Shift (A) | AD88: 38 | AE88: 7668 | AF88: 16332.84 | AG88: 38.34 | AH88: 301-10582 | AI88: 20600 | AJ88: 2.686489306 | AK88: 5.722222222
A89: 10582 | B89: A | C89: 127259-2-1 | D89: 0 | E89: 30 | F89: PEELSEAL | G89: 24 | H89: Darlene A Amenson | I89: 2.27 | J89: 40 | K89: 8000 | L89: 301 | M89: PEELSEAL | N89: 2020-09-17 | O89: 2020-09-17 | P89: 10 1/2 x 3 3/4 x 12 | Q89: 1 | R89: 1 | S89: Eco-Shipper P/S | T89: 105 | U89: Custom | V89: 5636.57 | W89: 848.26 | X89: P | Y89: 18 | Z89: 17.62114537 | AA89: 40.86 | AB89: 200 | AC89: Plant 1st Shift (A) | AD89: 38 | AE89: 8172 | AF89: 18550.44 | AG89: 40.86 | AH89: 301-10582 | AI89: 8000 | AJ89: 0.9789525208 | AK89: 2.222222222
A90: 10582 | B90: A | C90: 127259-2-1 | D90: 0 | E90: 30 | F90: PEELSEAL | G90: 24 | H90: Darlene A Amenson | I90: 2.48 | J90: 40 | K90: 8000 | L90: 301 | M90: PEELSEAL | N90: 2020-09-17 | O90: 2020-09-17 | P90: 10 1/2 x 3 3/4 x 12 | Q90: 1 | R90: 1 | S90: Eco-Shipper P/S | T90: 105 | U90: Custom | V90: 5636.57 | W90: 848.26 | X90: P | Y90: 18 | Z90: 16.12903226 | AA90: 44.64 | AB90: 200 | AC90: Plant 1st Shift (A) | AD90: 38 | AE90: 8928 | AF90: 22141.44 | AG90: 44.64 | AH90: 301-10582 | AI90: 8000 | AJ90: 0.8960573477 | AK90: 2.222222222
A91: 10582 | B91: A | C91: 127259-2-1 | D91: 0 | E91: 30 | F91: PEELSEAL | G91: 24 | H91: Darlene A Amenson | I91: 2.63 | J91: 83 | K91: 16600 | L91: 301 | M91: PEELSEAL | N91: 2020-09-17 | O91: 2020-09-17 | P91: 10 1/2 x 3 3/4 x 12 | Q91: 1 | R91: 1 | S91: Eco-Shipper P/S | T91: 105 | U91: Custom | V91: 5636.57 | W91: 848.26 | X91: P | Y91: 18 | Z91: 31.55893536 | AA91: 47.34 | AB91: 200 | AC91: Plant 1st Shift (A) | AD91: 38 | AE91: 9468 | AF91: 24900.84 | AG91: 47.34 | AH91: 301-10582 | AI91: 16600 | AJ91: 1.753274187 | AK91: 4.611111111
A92: 10582 | B92: A | C92: 127259-2-1 | D92: 0 | E92: 10 | F92: MAKEBAGS | G92: 9368 | H92: Timothy DeWane | I92: 0.35 | J92: 0 | K92: 0 | L92: 201 | M92: MAKEBAGS | N92: 2020-09-17 | O92: 2020-09-17 | P92: 10 1/2 x 3 3/4 x 12 | Q92: 1 | R92: 1 | S92: Eco-Shipper P/S | T92: 105 | U92: Custom | V92: 5636.57 | W92: 848.26 | X92: S | Y92: 17 | Z92: 0 | AA92: 5.95 | AB92: 200 | AC92: Plant 1st Shift (A) | AD92: 38 | AE92: 1190 | AF92: 416.5 | AG92: 5.95 | AH92: 201-10582 | AI92: 0 | AJ92: 0 | AK92: 0
A93: 10582 | B93: A | C93: 127259-2-1 | D93: 0 | E93: 10 | F93: MAKEBAGS | G93: 9368 | H93: Timothy DeWane | I93: 0.47 | J93: 0 | K93: 0 | L93: 201 | M93: MAKEBAGS | N93: 2020-09-17 | O93: 2020-09-17 | P93: 10 1/2 x 3 3/4 x 12 | Q93: 1 | R93: 1 | S93: Eco-Shipper P/S | T93: 105 | U93: Custom | V93: 5636.57 | W93: 848.26 | X93: S | Y93: 17 | Z93: 0 | AA93: 7.99 | AB93: 200 | AC93: Plant 1st Shift (A) | AD93: 38 | AE93: 1598 | AF93: 751.06 | AG93: 7.99 | AH93: 201-10582 | AI93: 0 | AJ93: 0 | AK93: 0
A94: 10582 | B94: A | C94: 127259-2-1 | D94: 0 | E94: 10 | F94: MAKEBAGS | G94: 9368 | H94: Timothy DeWane | I94: 1.73 | J94: 0 | K94: 0 | L94: 201 | M94: MAKEBAGS | N94: 2020-09-17 | O94: 2020-09-17 | P94: 10 1/2 x 3 3/4 x 12 | Q94: 1 | R94: 1 | S94: Eco-Shipper P/S | T94: 105 | U94: Custom | V94: 5636.57 | W94: 848.26 | X94: P | Y94: 17 | Z94: 0 | AA94: 29.41 | AB94: 200 | AC94: Plant 1st Shift (A) | AD94: 38 | AE94: 5882 | AF94: 10175.86 | AG94: 29.41 | AH94: 201-10582 | AI94: 0 | AJ94: 0 | AK94: 0
A95: 10582 | B95: A | C95: 127259-2-1 | D95: 0 | E95: 10 | F95: MAKEBAGS | G95: 9368 | H95: Timothy DeWane | I95: 2.57 | J95: 0 | K95: 0 | L95: 201 | M95: MAKEBAGS | N95: 2020-09-17 | O95: 2020-09-17 | P95: 10 1/2 x 3 3/4 x 12 | Q95: 1 | R95: 1 | S95: Eco-Shipper P/S | T95: 105 | U95: Custom | V95: 5636.57 | W95: 848.26 | X95: P | Y95: 17 | Z95: 0 | AA95: 43.69 | AB95: 200 | AC95: Plant 1st Shift (A) | AD95: 38 | AE95: 8738 | AF95: 22456.66 | AG95: 43.69 | AH95: 201-10582 | AI95: 0 | AJ95: 0 | AK95: 0
A96: 10582 | B96: A | C96: 127259-2-1 | D96: 0 | E96: 10 | F96: MAKEBAGS | G96: 9368 | H96: Timothy DeWane | I96: 1.93 | J96: 0 | K96: 0 | L96: 201 | M96: MAKEBAGS | N96: 2020-09-17 | O96: 2020-09-17 | P96: 10 1/2 x 3 3/4 x 12 | Q96: 1 | R96: 1 | S96: Eco-Shipper P/S | T96: 105 | U96: Custom | V96: 5636.57 | W96: 848.26 | X96: P | Y96: 17 | Z96: 0 | AA96: 32.81 | AB96: 200 | AC96: Plant 1st Shift (A) | AD96: 38 | AE96: 6562 | AF96: 12664.66 | AG96: 32.81 | AH96: 201-10582 | AI96: 0 | AJ96: 0 | AK96: 0
A97: 10582 | B97: A | C97: 127259-2-1 | D97: 0 | E97: 10 | F97: MAKEBAGS | G97: 9368 | H97: Timothy DeWane | I97: 3.28 | J97: 0 | K97: 0 | L97: 201 | M97: MAKEBAGS | N97: 2020-09-17 | O97: 2020-09-17 | P97: 10 1/2 x 3 3/4 x 12 | Q97: 1 | R97: 1 | S97: Eco-Shipper P/S | T97: 105 | U97: Custom | V97: 5636.57 | W97: 848.26 | X97: P | Y97: 17 | Z97: 0 | AA97: 55.76 | AB97: 200 | AC97: Plant 1st Shift (A) | AD97: 38 | AE97: 11152 | AF97: 36578.56 | AG97: 55.76 | AH97: 201-10582 | AI97: 0 | AJ97: 0 | AK97: 0
A98: 10582 | B98: A | C98: 127259-2-1 | D98: 0 | E98: 30 | F98: PEELSEAL | G98: 9637 | H98: Ernest Irving | I98: 9.93 | J98: 0 | K98: 0 | L98: 301 | M98: PEELSEAL | N98: 2020-09-17 | O98: 2020-09-17 | P98: 10 1/2 x 3 3/4 x 12 | Q98: 1 | R98: 1 | S98: Eco-Shipper P/S | T98: 105 | U98: Custom | V98: 5636.57 | W98: 848.26 | X98: P | Y98: 18 | Z98: 0 | AA98: 178.74 | AB98: 200 | AC98: Plant 1st Shift (A) | AD98: 38 | AE98: 35748 | AF98: 354977.64 | AG98: 178.74 | AH98: 301-10582 | AI98: 0 | AJ98: 0 | AK98: 0
A99: 10582 | B99: A | C99: 127259-2-1 | D99: 0 | E99: 30 | F99: PEELSEAL | G99: 9275 | H99: Griselda Ortiz Alcala | I99: 1.68 | J99: 37 | K99: 7400 | L99: 301 | M99: PEELSEAL | N99: 2020-09-17 | O99: 2020-09-17 | P99: 10 1/2 x 3 3/4 x 12 | Q99: 1 | R99: 1 | S99: Eco-Shipper P/S | T99: 105 | U99: Custom | V99: 5636.57 | W99: 848.26 | X99: P | Y99: 18 | Z99: 22.02380952 | AA99: 30.24 | AB99: 200 | AC99: Plant 2nd Shift (B) | AD99: 38 | AE99: 6048 | AF99: 10160.64 | AG99: 30.24 | AH99: 301-10582 | AI99: 7400 | AJ99: 1.223544974 | AK99: 2.055555556
A100: 10582 | B100: A | C100: 127259-2-1 | D100: 0 | E100: 30 | F100: PEELSEAL | G100: 9275 | H100: Griselda Ortiz Alcala | I100: 2.48 | J100: 62 | K100: 12400 | L100: 301 | M100: PEELSEAL | N100: 2020-09-17 | O100: 2020-09-17 | P100: 10 1/2 x 3 3/4 x 12 | Q100: 1 | R100: 1 | S100: Eco-Shipper P/S | T100: 105 | U100: Custom | V100: 5636.57 | W100: 848.26 | X100: P | Y100: 18 | Z100: 25 | AA100: 44.64 | AB100: 200 | AC100: Plant 2nd Shift (B) | AD100: 38 | AE100: 8928 | AF100: 22141.44 | AG100: 44.64 | AH100: 301-10582 | AI100: 12400 | AJ100: 1.388888889 | AK100: 3.444444444
A101: 10583 | B101: A | C101: 127259-1-1 | D101: 0 | E101: 10 | F101: MAKEBAGS | G101: 9368 | H101: Timothy DeWane | I101: 0 | J101: 0 | K101: 0 | L101: 201 | M101: MAKEBAGS | N101: 2020-09-17 | O101: 2020-09-17 | P101: 9 1/2 x 3 x 10 | Q101: 1 | R101: 1 | S101: Eco-Shipper P/S | T101: 105 | U101: Custom | V101: 1525.5 | W101: 114.38 | X101: S | Y101: 17 | Z101: 0 | AA101: 0 | AB101: 250 | AC101: Plant 1st Shift (A) | AD101: 38 | AE101: 0 | AF101: 0 | AG101: 0 | AH101: 201-10583 | AI101: 0 | AJ101: 0 | AK101: 0
A102: 11035 | B102: A | C102: 127884-1-1 | D102: 0 | E102: 10 | F102: MAKEBAGS | G102: 9324 | H102: Jaime Castillo Enriquez | I102: 0.33 | J102: 0 | K102: 0 | L102: 401 | M102: MAKEBAGS | N102: 2020-09-17 | O102: 2020-09-17 | P102: 5 x 3 1/8 x 9 5/8 | Q102: 2 | R102: 2 | S102: SOS | T102: 35 | U102: Custom | V102: 3715.88 | W102: 1728.16 | X102: P | Y102: 13 | Z102: 0 | AA102: 4.29 | AB102: 500 | AC102: Plant 2nd Shift (B) | AD102: 38 | AE102: 2145 | AF102: 707.85 | AG102: 4.29 | AH102: 401-11035 | AI102: 0 | AJ102: 0 | AK102: 0
A103: 11035 | B103: A | C103: 127884-1-1 | D103: 0 | E103: 10 | F103: MAKEBAGS | G103: 9324 | H103: Jaime Castillo Enriquez | I103: 1.88 | J103: 20 | K103: 10000 | L103: 401 | M103: MAKEBAGS | N103: 2020-09-17 | O103: 2020-09-17 | P103: 5 x 3 1/8 x 9 5/8 | Q103: 2 | R103: 2 | S103: SOS | T103: 35 | U103: Custom | V103: 3715.88 | W103: 1728.16 | X103: P | Y103: 13 | Z103: 10.63829787 | AA103: 24.44 | AB103: 500 | AC103: Plant 2nd Shift (B) | AD103: 38 | AE103: 12220 | AF103: 22973.6 | AG103: 24.44 | AH103: 401-11035 | AI103: 10000 | AJ103: 0.8183306056 | AK103: 1.538461538
A104: 11035 | B104: A | C104: 127884-1-1 | D104: 0 | E104: 10 | F104: MAKEBAGS | G104: 9505 | H104: Virginia Boyd | I104: 3.27 | J104: 18 | K104: 9000 | L104: 401 | M104: MAKEBAGS | N104: 2020-09-17 | O104: 2020-09-17 | P104: 5 x 3 1/8 x 9 5/8 | Q104: 2 | R104: 2 | S104: SOS | T104: 35 | U104: Custom | V104: 3715.88 | W104: 1728.16 | X104: P | Y104: 13 | Z104: 5.504587156 | AA104: 42.51 | AB104: 500 | AC104: Plant 3rd Shift (C) | AD104: 38 | AE104: 21255 | AF104: 69503.85 | AG104: 42.51 | AH104: 401-11035 | AI104: 9000 | AJ104: 0.4234297812 | AK104: 1.384615385
A105: 11035 | B105: A | C105: 127884-1-1 | D105: 0 | E105: 10 | F105: MAKEBAGS | G105: 9324 | H105: Jaime Castillo Enriquez | I105: 0.67 | J105: 0 | K105: 0 | L105: 401 | M105: MAKEBAGS | N105: 2020-09-17 | O105: 2020-09-17 | P105: 5 x 3 1/8 x 9 5/8 | Q105: 2 | R105: 2 | S105: SOS | T105: 35 | U105: Custom | V105: 3715.88 | W105: 1728.16 | X105: P | Y105: 13 | Z105: 0 | AA105: 8.71 | AB105: 500 | AC105: Plant 2nd Shift (B) | AD105: 38 | AE105: 4355 | AF105: 2917.85 | AG105: 8.71 | AH105: 401-11035 | AI105: 0 | AJ105: 0 | AK105: 0
A106: 11035 | B106: A | C106: 127884-1-1 | D106: 0 | E106: 10 | F106: MAKEBAGS | G106: 9324 | H106: Jaime Castillo Enriquez | I106: 0.08 | J106: 0 | K106: 0 | L106: 401 | M106: MAKEBAGS | N106: 2020-09-17 | O106: 2020-09-17 | P106: 5 x 3 1/8 x 9 5/8 | Q106: 2 | R106: 2 | S106: SOS | T106: 35 | U106: Custom | V106: 3715.88 | W106: 1728.16 | X106: P | Y106: 13 | Z106: 0 | AA106: 1.04 | AB106: 500 | AC106: Plant 2nd Shift (B) | AD106: 38 | AE106: 520 | AF106: 41.6 | AG106: 1.04 | AH106: 401-11035 | AI106: 0 | AJ106: 0 | AK106: 0
A107: 11035 | B107: A | C107: 127884-1-1 | D107: 0 | E107: 10 | F107: MAKEBAGS | G107: 9324 | H107: Jaime Castillo Enriquez | I107: 0.57 | J107: 0 | K107: 0 | L107: 401 | M107: MAKEBAGS | N107: 2020-09-17 | O107: 2020-09-17 | P107: 5 x 3 1/8 x 9 5/8 | Q107: 2 | R107: 2 | S107: SOS | T107: 35 | U107: Custom | V107: 3715.88 | W107: 1728.16 | X107: S | Y107: 13 | Z107: 0 | AA107: 7.41 | AB107: 500 | AC107: Plant 2nd Shift (B) | AD107: 38 | AE107: 3705 | AF107: 2111.85 | AG107: 7.41 | AH107: 401-11035 | AI107: 0 | AJ107: 0 | AK107: 0
A108: 11035 | B108: A | C108: 127884-1-1 | D108: 0 | E108: 10 | F108: MAKEBAGS | G108: 9324 | H108: Jaime Castillo Enriquez | I108: 1.93 | J108: 19 | K108: 9500 | L108: 401 | M108: MAKEBAGS | N108: 2020-09-17 | O108: 2020-09-17 | P108: 5 x 3 1/8 x 9 5/8 | Q108: 2 | R108: 2 | S108: SOS | T108: 35 | U108: Custom | V108: 3715.88 | W108: 1728.16 | X108: P | Y108: 13 | Z108: 9.844559585 | AA108: 25.09 | AB108: 500 | AC108: Plant 2nd Shift (B) | AD108: 38 | AE108: 12545 | AF108: 24211.85 | AG108: 25.09 | AH108: 401-11035 | AI108: 9500 | AJ108: 0.7572738143 | AK108: 1.461538462
A109: 11035 | B109: A | C109: 127884-1-1 | D109: 0 | E109: 10 | F109: MAKEBAGS | G109: 9324 | H109: Jaime Castillo Enriquez | I109: 2.65 | J109: 0 | K109: 0 | L109: 401 | M109: MAKEBAGS | N109: 2020-09-17 | O109: 2020-09-17 | P109: 5 x 3 1/8 x 9 5/8 | Q109: 2 | R109: 2 | S109: SOS | T109: 35 | U109: Custom | V109: 3715.88 | W109: 1728.16 | X109: P | Y109: 13 | Z109: 0 | AA109: 34.45 | AB109: 500 | AC109: Plant 2nd Shift (B) | AD109: 38 | AE109: 17225 | AF109: 45646.25 | AG109: 34.45 | AH109: 401-11035 | AI109: 0 | AJ109: 0 | AK109: 0
A110: 11035 | B110: A | C110: 127884-1-1 | D110: 0 | E110: 10 | F110: MAKEBAGS | G110: 9324 | H110: Jaime Castillo Enriquez | I110: 1.93 | J110: 41 | K110: 20500 | L110: 401 | M110: MAKEBAGS | N110: 2020-09-17 | O110: 2020-09-17 | P110: 5 x 3 1/8 x 9 5/8 | Q110: 2 | R110: 2 | S110: SOS | T110: 35 | U110: Custom | V110: 3715.88 | W110: 1728.16 | X110: P | Y110: 13 | Z110: 21.24352332 | AA110: 25.09 | AB110: 500 | AC110: Plant 2nd Shift (B) | AD110: 38 | AE110: 12545 | AF110: 24211.85 | AG110: 25.09 | AH110: 401-11035 | AI110: 20500 | AJ110: 1.634117178 | AK110: 3.153846154
A111: 11035 | B111: A | C111: 127884-1-1 | D111: 0 | E111: 10 | F111: MAKEBAGS | G111: 9654 | H111: Debbie Gomand | I111: 1.1 | J111: 25 | K111: 12500 | L111: 401 | M111: MAKEBAGS | N111: 2020-09-17 | O111: 2020-09-17 | P111: 5 x 3 1/8 x 9 5/8 | Q111: 2 | R111: 2 | S111: SOS | T111: 35 | U111: Custom | V111: 3715.88 | W111: 1728.16 | X111: P | Y111: 13 | Z111: 22.72727273 | AA111: 14.3 | AB111: 500 | AC111: Plant 1st Shift (A) | AD111: 38 | AE111: 7150 | AF111: 7865 | AG111: 14.3 | AH111: 401-11035 | AI111: 12500 | AJ111: 1.748251748 | AK111: 1.923076923
A112: 11035 | B112: A | C112: 127884-1-1 | D112: 0 | E112: 10 | F112: MAKEBAGS | G112: 9654 | H112: Debbie Gomand | I112: 0.25 | J112: 0 | K112: 0 | L112: 401 | M112: MAKEBAGS | N112: 2020-09-17 | O112: 2020-09-17 | P112: 5 x 3 1/8 x 9 5/8 | Q112: 2 | R112: 2 | S112: SOS | T112: 35 | U112: Custom | V112: 3715.88 | W112: 1728.16 | X112: S | Y112: 13 | Z112: 0 | AA112: 3.25 | AB112: 500 | AC112: Plant 1st Shift (A) | AD112: 38 | AE112: 1625 | AF112: 406.25 | AG112: 3.25 | AH112: 401-11035 | AI112: 0 | AJ112: 0 | AK112: 0
A113: 11035 | B113: A | C113: 127884-1-1 | D113: 0 | E113: 10 | F113: MAKEBAGS | G113: 9654 | H113: Debbie Gomand | I113: 0.48 | J113: 0 | K113: 0 | L113: 401 | M113: MAKEBAGS | N113: 2020-09-17 | O113: 2020-09-17 | P113: 5 x 3 1/8 x 9 5/8 | Q113: 2 | R113: 2 | S113: SOS | T113: 35 | U113: Custom | V113: 3715.88 | W113: 1728.16 | X113: P | Y113: 13 | Z113: 0 | AA113: 6.24 | AB113: 500 | AC113: Plant 1st Shift (A) | AD113: 38 | AE113: 3120 | AF113: 1497.6 | AG113: 6.24 | AH113: 401-11035 | AI113: 0 | AJ113: 0 | AK113: 0
A114: 11035 | B114: A | C114: 127884-1-1 | D114: 0 | E114: 10 | F114: MAKEBAGS | G114: 9654 | H114: Debbie Gomand | I114: 0.02 | J114: 0 | K114: 0 | L114: 401 | M114: MAKEBAGS | N114: 2020-09-17 | O114: 2020-09-17 | P114: 5 x 3 1/8 x 9 5/8 | Q114: 2 | R114: 2 | S114: SOS | T114: 35 | U114: Custom | V114: 3715.88 | W114: 1728.16 | X114: P | Y114: 13 | Z114: 0 | AA114: 0.26 | AB114: 500 | AC114: Plant 1st Shift (A) | AD114: 38 | AE114: 130 | AF114: 2.6 | AG114: 0.26 | AH114: 401-11035 | AI114: 0 | AJ114: 0 | AK114: 0
A115: 11035 | B115: A | C115: 127884-1-1 | D115: 0 | E115: 10 | F115: MAKEBAGS | G115: 9654 | H115: Debbie Gomand | I115: 2.75 | J115: 18 | K115: 9000 | L115: 401 | M115: MAKEBAGS | N115: 2020-09-17 | O115: 2020-09-17 | P115: 5 x 3 1/8 x 9 5/8 | Q115: 2 | R115: 2 | S115: SOS | T115: 35 | U115: Custom | V115: 3715.88 | W115: 1728.16 | X115: P | Y115: 13 | Z115: 6.545454545 | AA115: 35.75 | AB115: 500 | AC115: Plant 1st Shift (A) | AD115: 38 | AE115: 17875 | AF115: 49156.25 | AG115: 35.75 | AH115: 401-11035 | AI115: 9000 | AJ115: 0.5034965035 | AK115: 1.384615385
A116: 11035 | B116: A | C116: 127884-1-1 | D116: 0 | E116: 10 | F116: MAKEBAGS | G116: 9654 | H116: Debbie Gomand | I116: 0.02 | J116: 0 | K116: 0 | L116: 401 | M116: MAKEBAGS | N116: 2020-09-17 | O116: 2020-09-17 | P116: 5 x 3 1/8 x 9 5/8 | Q116: 2 | R116: 2 | S116: SOS | T116: 35 | U116: Custom | V116: 3715.88 | W116: 1728.16 | X116: P | Y116: 13 | Z116: 0 | AA116: 0.26 | AB116: 500 | AC116: Plant 1st Shift (A) | AD116: 38 | AE116: 130 | AF116: 2.6 | AG116: 0.26 | AH116: 401-11035 | AI116: 0 | AJ116: 0 | AK116: 0
A117: 11035 | B117: A | C117: 127884-1-1 | D117: 0 | E117: 10 | F117: MAKEBAGS | G117: 9654 | H117: Debbie Gomand | I117: 0.95 | J117: 4 | K117: 2000 | L117: 401 | M117: MAKEBAGS | N117: 2020-09-17 | O117: 2020-09-17 | P117: 5 x 3 1/8 x 9 5/8 | Q117: 2 | R117: 2 | S117: SOS | T117: 35 | U117: Custom | V117: 3715.88 | W117: 1728.16 | X117: P | Y117: 13 | Z117: 4.210526316 | AA117: 12.35 | AB117: 500 | AC117: Plant 1st Shift (A) | AD117: 38 | AE117: =AB117*AA117 -> 6175 | AF117: 5866.25 | AG117: =IF(AE117=0,0,AE117/AB117) -> 12.35 | AH117: 401-11035 | AI117: 2000 | AJ117: =IF(AE117=0,0,AI117/AE117) -> 0.3238866397 | AK117: 0.3076923077
A118: 11035 | B118: A | C118: 127884-1-1 | D118: 0 | E118: 10 | F118: MAKEBAGS | G118: 9654 | H118: Debbie Gomand | I118: 0.77 | J118: 6 | K118: 3000 | L118: 401 | M118: MAKEBAGS | N118: 2020-09-17 | O118: 2020-09-17 | P118: 5 x 3 1/8 x 9 5/8 | Q118: 2 | R118: 2 | S118: SOS | T118: 35 | U118: Custom | V118: 3715.88 | W118: 1728.16 | X118: P | Y118: 13 | Z118: 7.792207792 | AA118: 10.01 | AB118: 500 | AC118: Plant 1st Shift (A) | AD118: 38 | AE118: 5005 | AF118: 3853.85 | AG118: 10.01 | AH118: 401-11035 | AI118: 3000 | AJ118: 0.5994005994 | AK118: 0.4615384615
A119: 11035 | B119: A | C119: 127884-1-1 | D119: 0 | E119: 10 | F119: MAKEBAGS | G119: 9654 | H119: Debbie Gomand | I119: 1.25 | J119: 22 | K119: 11000 | L119: 401 | M119: MAKEBAGS | N119: 2020-09-17 | O119: 2020-09-17 | P119: 5 x 3 1/8 x 9 5/8 | Q119: 2 | R119: 2 | S119: SOS | T119: 35 | U119: Custom | V119: 3715.88 | W119: 1728.16 | X119: P | Y119: 13 | Z119: 17.6 | AA119: 16.25 | AB119: 500 | AC119: Plant 1st Shift (A) | AD119: 38 | AE119: 8125 | AF119: 10156.25 | AG119: 16.25 | AH119: 401-11035 | AI119: 11000 | AJ119: 1.353846154 | AK119: 1.692307692
A120: 11035 | B120: A | C120: 127884-1-1 | D120: 0 | E120: 10 | F120: MAKEBAGS | G120: 150 | H120: Jeremiah Paradise | I120: 0.27 | J120: 0 | K120: 0 | L120: 401 | M120: MAKEBAGS | N120: 2020-09-17 | O120: 2020-09-17 | P120: 5 x 3 1/8 x 9 5/8 | Q120: 2 | R120: 2 | S120: SOS | T120: 35 | U120: Custom | V120: 3715.88 | W120: 1728.16 | X120: P | Y120: 13 | Z120: 0 | AA120: 3.51 | AB120: 500 | AC120: Plant 1st Shift (A) | AD120: 38 | AE120: 1755 | AF120: 473.85 | AG120: 3.51 | AH120: 401-11035 | AI120: 0 | AJ120: 0 | AK120: 0
A121: 11035 | B121: A | C121: 127884-1-1 | D121: 0 | E121: 10 | F121: MAKEBAGS | G121: 9521 | H121: Jessica Morrison | I121: 1.38 | J121: 0 | K121: 0 | L121: 401 | M121: MAKEBAGS | N121: 2020-09-17 | O121: 2020-09-17 | P121: 5 x 3 1/8 x 9 5/8 | Q121: 2 | R121: 2 | S121: SOS | T121: 35 | U121: Custom | V121: 3715.88 | W121: 1728.16 | X121: P | Y121: 13 | Z121: 0 | AA121: 17.94 | AB121: 500 | AC121: Plant 2nd Shift (B) | AD121: 38 | AE121: 8970 | AF121: 12378.6 | AG121: 17.94 | AH121: 401-11035 | AI121: 0 | AJ121: 0 | AK121: 0
A122: 11035 | B122: A | C122: 127884-1-1 | D122: 0 | E122: 10 | F122: MAKEBAGS | G122: 9521 | H122: Jessica Morrison | I122: 2.47 | J122: 0 | K122: 0 | L122: 401 | M122: MAKEBAGS | N122: 2020-09-17 | O122: 2020-09-17 | P122: 5 x 3 1/8 x 9 5/8 | Q122: 2 | R122: 2 | S122: SOS | T122: 35 | U122: Custom | V122: 3715.88 | W122: 1728.16 | X122: P | Y122: 13 | Z122: 0 | AA122: 32.11 | AB122: 500 | AC122: Plant 2nd Shift (B) | AD122: 38 | AE122: 16055 | AF122: 39655.85 | AG122: 32.11 | AH122: 401-11035 | AI122: 0 | AJ122: 0 | AK122: 0
A123: 11035 | B123: A | C123: 127884-1-1 | D123: 0 | E123: 10 | F123: MAKEBAGS | G123: 9521 | H123: Jessica Morrison | I123: 2.52 | J123: 60 | K123: 30000 | L123: 401 | M123: MAKEBAGS | N123: 2020-09-17 | O123: 2020-09-17 | P123: 5 x 3 1/8 x 9 5/8 | Q123: 2 | R123: 2 | S123: SOS | T123: 35 | U123: Custom | V123: 3715.88 | W123: 1728.16 | X123: P | Y123: 13 | Z123: 23.80952381 | AA123: 32.76 | AB123: 500 | AC123: Plant 2nd Shift (B) | AD123: 38 | AE123: 16380 | AF123: 41277.6 | AG123: 32.76 | AH123: 401-11035 | AI123: 30000 | AJ123: 1.831501832 | AK123: 4.615384615
A124: 11035 | B124: A | C124: 127884-1-1 | D124: 0 | E124: 10 | F124: MAKEBAGS | G124: 9654 | H124: Debbie Gomand | I124: 2.83 | J124: 48 | K124: 24000 | L124: 401 | M124: MAKEBAGS | N124: 2020-09-17 | O124: 2020-09-17 | P124: 5 x 3 1/8 x 9 5/8 | Q124: 2 | R124: 2 | S124: SOS | T124: 35 | U124: Custom | V124: 3715.88 | W124: 1728.16 | X124: P | Y124: 13 | Z124: 16.96113074 | AA124: 36.79 | AB124: 500 | AC124: Plant 1st Shift (A) | AD124: 38 | AE124: 18395 | AF124: 52057.85 | AG124: 36.79 | AH124: 401-11035 | AI124: 24000 | AJ124: 1.304702365 | AK124: 3.692307692
A125: 11035 | B125: A | C125: 127884-1-1 | D125: 0 | E125: 10 | F125: MAKEBAGS | G125: 9654 | H125: Debbie Gomand | I125: 0.12 | J125: 0 | K125: 0 | L125: 401 | M125: MAKEBAGS | N125: 2020-09-17 | O125: 2020-09-17 | P125: 5 x 3 1/8 x 9 5/8 | Q125: 2 | R125: 2 | S125: SOS | T125: 35 | U125: Custom | V125: 3715.88 | W125: 1728.16 | X125: P | Y125: 13 | Z125: 0 | AA125: 1.56 | AB125: 500 | AC125: Plant 1st Shift (A) | AD125: 38 | AE125: 780 | AF125: 93.6 | AG125: 1.56 | AH125: 401-11035 | AI125: 0 | AJ125: 0 | AK125: 0
A126: 11035 | B126: A | C126: 127884-1-1 | D126: 0 | E126: 10 | F126: MAKEBAGS | G126: 9654 | H126: Debbie Gomand | I126: 0.15 | J126: 0 | K126: 0 | L126: 401 | M126: MAKEBAGS | N126: 2020-09-17 | O126: 2020-09-17 | P126: 5 x 3 1/8 x 9 5/8 | Q126: 2 | R126: 2 | S126: SOS | T126: 35 | U126: Custom | V126: 3715.88 | W126: 1728.16 | X126: S | Y126: 13 | Z126: 0 | AA126: 1.95 | AB126: 500 | AC126: Plant 1st Shift (A) | AD126: 38 | AE126: 975 | AF126: 146.25 | AG126: 1.95 | AH126: 401-11035 | AI126: 0 | AJ126: 0 | AK126: 0
A127: 11035 | B127: A | C127: 127884-1-1 | D127: 0 | E127: 10 | F127: MAKEBAGS | G127: 9654 | H127: Debbie Gomand | I127: 1.35 | J127: 13 | K127: 6500 | L127: 401 | M127: MAKEBAGS | N127: 2020-09-17 | O127: 2020-09-17 | P127: 5 x 3 1/8 x 9 5/8 | Q127: 2 | R127: 2 | S127: SOS | T127: 35 | U127: Custom | V127: 3715.88 | W127: 1728.16 | X127: P | Y127: 13 | Z127: 9.62962963 | AA127: 17.55 | AB127: 500 | AC127: Plant 1st Shift (A) | AD127: 38 | AE127: 8775 | AF127: 11846.25 | AG127: 17.55 | AH127: 401-11035 | AI127: 6500 | AJ127: 0.7407407407 | AK127: 1
A128: 11035 | B128: A | C128: 127884-1-1 | D128: 0 | E128: 10 | F128: MAKEBAGS | G128: 9654 | H128: Debbie Gomand | I128: 0.78 | J128: 3 | K128: 1500 | L128: 401 | M128: MAKEBAGS | N128: 2020-09-17 | O128: 2020-09-17 | P128: 5 x 3 1/8 x 9 5/8 | Q128: 2 | R128: 2 | S128: SOS | T128: 35 | U128: Custom | V128: 3715.88 | W128: 1728.16 | X128: P | Y128: 13 | Z128: 3.846153846 | AA128: 10.14 | AB128: 500 | AC128: Plant 1st Shift (A) | AD128: 38 | AE128: 5070 | AF128: 3954.6 | AG128: 10.14 | AH128: 401-11035 | AI128: 1500 | AJ128: 0.2958579882 | AK128: 0.2307692308
A129: 11035 | B129: A | C129: 127884-1-1 | D129: 0 | E129: 10 | F129: MAKEBAGS | G129: 9654 | H129: Debbie Gomand | I129: 0.15 | J129: 1 | K129: 500 | L129: 401 | M129: MAKEBAGS | N129: 2020-09-17 | O129: 2020-09-17 | P129: 5 x 3 1/8 x 9 5/8 | Q129: 2 | R129: 2 | S129: SOS | T129: 35 | U129: Custom | V129: 3715.88 | W129: 1728.16 | X129: P | Y129: 13 | Z129: 6.666666667 | AA129: 1.95 | AB129: 500 | AC129: Plant 1st Shift (A) | AD129: 38 | AE129: 975 | AF129: 146.25 | AG129: 1.95 | AH129: 401-11035 | AI129: 500 | AJ129: 0.5128205128 | AK129: 0.07692307692
A130: 11035 | B130: A | C130: 127884-1-1 | D130: 0 | E130: 10 | F130: MAKEBAGS | G130: 9654 | H130: Debbie Gomand | I130: 0.53 | J130: 1 | K130: 500 | L130: 401 | M130: MAKEBAGS | N130: 2020-09-17 | O130: 2020-09-17 | P130: 5 x 3 1/8 x 9 5/8 | Q130: 2 | R130: 2 | S130: SOS | T130: 35 | U130: Custom | V130: 3715.88 | W130: 1728.16 | X130: P | Y130: 13 | Z130: 1.886792453 | AA130: 6.89 | AB130: 500 | AC130: Plant 1st Shift (A) | AD130: 38 | AE130: 3445 | AF130: 1825.85 | AG130: 6.89 | AH130: 401-11035 | AI130: 500 | AJ130: 0.145137881 | AK130: 0.07692307692
A131: 11035 | B131: A | C131: 127884-1-1 | D131: 0 | E131: 10 | F131: MAKEBAGS | G131: 9654 | H131: Debbie Gomand | I131: 1.18 | J131: 12 | K131: 6000 | L131: 401 | M131: MAKEBAGS | N131: 2020-09-17 | O131: 2020-09-17 | P131: 5 x 3 1/8 x 9 5/8 | Q131: 2 | R131: 2 | S131: SOS | T131: 35 | U131: Custom | V131: 3715.88 | W131: 1728.16 | X131: P | Y131: 13 | Z131: 10.16949153 | AA131: 15.34 | AB131: 500 | AC131: Plant 1st Shift (A) | AD131: 38 | AE131: 7670 | AF131: =+AE131*I131 -> 9050.6 | AG131: 15.34 | AH131: =L131&"-"&A131 -> 401-11035 | AI131: =K131 -> 6000 | AJ131: 0.7822685789 | AK131: =AJ131*I131 -> 0.9230769231
A132: 11035 | B132: A | C132: 127884-1-1 | D132: 0 | E132: 10 | F132: MAKEBAGS | G132: 9654 | H132: Debbie Gomand | I132: 0.02 | J132: 0 | K132: 0 | L132: 401 | M132: MAKEBAGS | N132: 2020-09-17 | O132: 2020-09-17 | P132: 5 x 3 1/8 x 9 5/8 | Q132: 2 | R132: 2 | S132: SOS | T132: 35 | U132: Custom | V132: 3715.88 | W132: 1728.16 | X132: P | Y132: 13 | Z132: 0 | AA132: 0.26 | AB132: 500 | AC132: Plant 1st Shift (A) | AD132: 38 | AE132: 130 | AF132: 2.6 | AG132: 0.26 | AH132: 401-11035 | AI132: 0 | AJ132: 0 | AK132: 0
A133: 11035 | B133: A | C133: 127884-1-1 | D133: 0 | E133: 10 | F133: MAKEBAGS | G133: 9654 | H133: Debbie Gomand | I133: 0 | J133: 0 | K133: 0 | L133: 401 | M133: MAKEBAGS | N133: 2020-09-17 | O133: 2020-09-17 | P133: 5 x 3 1/8 x 9 5/8 | Q133: 2 | R133: 2 | S133: SOS | T133: 35 | U133: Custom | V133: 3715.88 | W133: 1728.16 | X133: P | Y133: 13 | Z133: 0 | AA133: 0 | AB133: 500 | AC133: Plant 1st Shift (A) | AD133: 38 | AE133: 0 | AF133: 0 | AG133: 0 | AH133: 401-11035 | AI133: 0 | AJ133: 0 | AK133: 0
A134: 11035 | B134: A | C134: 127884-1-1 | D134: 0 | E134: 10 | F134: MAKEBAGS | G134: 9654 | H134: Debbie Gomand | I134: 1.57 | J134: 9 | K134: 4500 | L134: 401 | M134: MAKEBAGS | N134: 2020-09-17 | O134: 2020-09-17 | P134: 5 x 3 1/8 x 9 5/8 | Q134: 2 | R134: 2 | S134: SOS | T134: 35 | U134: Custom | V134: 3715.88 | W134: 1728.16 | X134: P | Y134: 13 | Z134: 5.732484076 | AA134: 20.41 | AB134: 500 | AC134: Plant 1st Shift (A) | AD134: 38 | AE134: 10205 | AF134: 16021.85 | AG134: 20.41 | AH134: 401-11035 | AI134: 4500 | AJ134: 0.4409603136 | AK134: 0.6923076923
A135: 11473 | B135: A | C135: 128116-1-1 | D135: 0 | E135: 10 | F135: MAKEBAGS | G135: 78 | H135: Marsha L Laverdieve | I135: 1.28 | J135: 0 | K135: 0 | L135: 137 | M135: MAKEBAGS | N135: 2020-09-17 | O135: 2020-09-17 | P135: 3 3/8 x 2 5/16 x 35 1/2 | Q135: 0 | R135: 0 | S135: Merchandise | T135: 60 | U135: Custom | V135: 3543.73 | W135: 414.4 | X135: P | Y135: 120 | Z135: 0 | AA135: 153.6 | AB135: 50 | AC135: Plant 1st Shift (A) | AD135: 38 | AE135: 7680 | AF135: 9830.4 | AG135: 153.6 | AH135: 137-11473 | AI135: 0 | AJ135: 0 | AK135: 0
A136: 11473 | B136: A | C136: 128116-1-1 | D136: 0 | E136: 10 | F136: MAKEBAGS | G136: 78 | H136: Marsha L Laverdieve | I136: 0.42 | J136: 0 | K136: 0 | L136: 137 | M136: MAKEBAGS | N136: 2020-09-17 | O136: 2020-09-17 | P136: 3 3/8 x 2 5/16 x 35 1/2 | Q136: 0 | R136: 0 | S136: Merchandise | T136: 60 | U136: Custom | V136: 3543.73 | W136: 414.4 | X136: S | Y136: 120 | Z136: 0 | AA136: 50.4 | AB136: 50 | AC136: Plant 1st Shift (A) | AD136: 38 | AE136: 2520 | AF136: 1058.4 | AG136: 50.4 | AH136: 137-11473 | AI136: 0 | AJ136: 0 | AK136: 0
A137: 11473 | B137: A | C137: 128116-1-1 | D137: 0 | E137: 10 | F137: MAKEBAGS | G137: 78 | H137: Marsha L Laverdieve | I137: 1.02 | J137: 156 | K137: 7800 | L137: 137 | M137: MAKEBAGS | N137: 2020-09-17 | O137: 2020-09-17 | P137: 3 3/8 x 2 5/16 x 35 1/2 | Q137: 0 | R137: 0 | S137: Merchandise | T137: 60 | U137: Custom | V137: 3543.73 | W137: 414.4 | X137: P | Y137: 120 | Z137: 152.9411765 | AA137: 122.4 | AB137: 50 | AC137: Plant 1st Shift (A) | AD137: 38 | AE137: 6120 | AF137: 6242.4 | AG137: 122.4 | AH137: 137-11473 | AI137: 7800 | AJ137: 1.274509804 | AK137: 1.3
A138: 11473 | B138: A | C138: 128116-1-1 | D138: 0 | E138: 10 | F138: MAKEBAGS | G138: 78 | H138: Marsha L Laverdieve | I138: 1.43 | J138: 0 | K138: 0 | L138: 137 | M138: MAKEBAGS | N138: 2020-09-17 | O138: 2020-09-17 | P138: 3 3/8 x 2 5/16 x 35 1/2 | Q138: 0 | R138: 0 | S138: Merchandise | T138: 60 | U138: Custom | V138: 3543.73 | W138: 414.4 | X138: P | Y138: 120 | Z138: 0 | AA138: 171.6 | AB138: 50 | AC138: Plant 1st Shift (A) | AD138: 38 | AE138: 8580 | AF138: 12269.4 | AG138: 171.6 | AH138: 137-11473 | AI138: 0 | AJ138: 0 | AK138: 0
A139: 11473 | B139: A | C139: 128116-1-1 | D139: 0 | E139: 10 | F139: MAKEBAGS | G139: 78 | H139: Marsha L Laverdieve | I139: 0.58 | J139: 0 | K139: 0 | L139: 137 | M139: MAKEBAGS | N139: 2020-09-17 | O139: 2020-09-17 | P139: 3 3/8 x 2 5/16 x 35 1/2 | Q139: 0 | R139: 0 | S139: Merchandise | T139: 60 | U139: Custom | V139: 3543.73 | W139: 414.4 | X139: S | Y139: 120 | Z139: 0 | AA139: 69.6 | AB139: 50 | AC139: Plant 1st Shift (A) | AD139: 38 | AE139: 3480 | AF139: 2018.4 | AG139: 69.6 | AH139: 137-11473 | AI139: 0 | AJ139: 0 | AK139: 0
A140: 11473 | B140: A | C140: 128116-1-1 | D140: 0 | E140: 10 | F140: MAKEBAGS | G140: 78 | H140: Marsha L Laverdieve | I140: 0.15 | J140: 0 | K140: 0 | L140: 137 | M140: MAKEBAGS | N140: 2020-09-17 | O140: 2020-09-17 | P140: 3 3/8 x 2 5/16 x 35 1/2 | Q140: 0 | R140: 0 | S140: Merchandise | T140: 60 | U140: Custom | V140: 3543.73 | W140: 414.4 | X140: P | Y140: 120 | Z140: 0 | AA140: 18 | AB140: 50 | AC140: Plant 1st Shift (A) | AD140: 38 | AE140: 900 | AF140: 135 | AG140: 18 | AH140: 137-11473 | AI140: 0 | AJ140: 0 | AK140: 0
A141: 11473 | B141: A | C141: 128116-1-1 | D141: 0 | E141: 10 | F141: MAKEBAGS | G141: 78 | H141: Marsha L Laverdieve | I141: 2.17 | J141: 234 | K141: 11700 | L141: 137 | M141: MAKEBAGS | N141: 2020-09-17 | O141: 2020-09-17 | P141: 3 3/8 x 2 5/16 x 35 1/2 | Q141: 0 | R141: 0 | S141: Merchandise | T141: 60 | U141: Custom | V141: 3543.73 | W141: 414.4 | X141: P | Y141: 120 | Z141: 107.8341014 | AA141: 260.4 | AB141: 50 | AC141: Plant 1st Shift (A) | AD141: 38 | AE141: 13020 | AF141: 28253.4 | AG141: 260.4 | AH141: 137-11473 | AI141: 11700 | AJ141: 0.8986175115 | AK141: 1.95
A142: 11473 | B142: A | C142: 128116-1-1 | D142: 0 | E142: 10 | F142: MAKEBAGS | G142: 78 | H142: Marsha L Laverdieve | I142: 0.18 | J142: 0 | K142: 0 | L142: 137 | M142: MAKEBAGS | N142: 2020-09-17 | O142: 2020-09-17 | P142: 3 3/8 x 2 5/16 x 35 1/2 | Q142: 0 | R142: 0 | S142: Merchandise | T142: 60 | U142: Custom | V142: 3543.73 | W142: 414.4 | X142: P | Y142: 120 | Z142: 0 | AA142: 21.6 | AB142: 50 | AC142: Plant 1st Shift (A) | AD142: 38 | AE142: 1080 | AF142: 194.4 | AG142: 21.6 | AH142: 137-11473 | AI142: 0 | AJ142: 0 | AK142: 0
A143: 11473 | B143: A | C143: 128116-1-1 | D143: 0 | E143: 10 | F143: MAKEBAGS | G143: 78 | H143: Marsha L Laverdieve | I143: 0.17 | J143: 0 | K143: 0 | L143: 137 | M143: MAKEBAGS | N143: 2020-09-17 | O143: 2020-09-17 | P143: 3 3/8 x 2 5/16 x 35 1/2 | Q143: 0 | R143: 0 | S143: Merchandise | T143: 60 | U143: Custom | V143: 3543.73 | W143: 414.4 | X143: S | Y143: 120 | Z143: 0 | AA143: 20.4 | AB143: 50 | AC143: Plant 1st Shift (A) | AD143: 38 | AE143: 1020 | AF143: 173.4 | AG143: 20.4 | AH143: 137-11473 | AI143: 0 | AJ143: 0 | AK143: 0
A144: 11473 | B144: A | C144: 128116-1-1 | D144: 0 | E144: 10 | F144: MAKEBAGS | G144: 78 | H144: Marsha L Laverdieve | I144: 2.13 | J144: 0 | K144: 0 | L144: 137 | M144: MAKEBAGS | N144: 2020-09-17 | O144: 2020-09-17 | P144: 3 3/8 x 2 5/16 x 35 1/2 | Q144: 0 | R144: 0 | S144: Merchandise | T144: 60 | U144: Custom | V144: 3543.73 | W144: 414.4 | X144: P | Y144: 120 | Z144: 0 | AA144: 255.6 | AB144: 50 | AC144: Plant 1st Shift (A) | AD144: 38 | AE144: 12780 | AF144: 27221.4 | AG144: 255.6 | AH144: 137-11473 | AI144: 0 | AJ144: 0 | AK144: 0
A145: 11473 | B145: A | C145: 128116-1-1 | D145: 0 | E145: 10 | F145: MAKEBAGS | G145: 78 | H145: Marsha L Laverdieve | I145: 0.18 | J145: 0 | K145: 0 | L145: 137 | M145: MAKEBAGS | N145: 2020-09-17 | O145: 2020-09-17 | P145: 3 3/8 x 2 5/16 x 35 1/2 | Q145: 0 | R145: 0 | S145: Merchandise | T145: 60 | U145: Custom | V145: 3543.73 | W145: 414.4 | X145: S | Y145: 120 | Z145: 0 | AA145: 21.6 | AB145: 50 | AC145: Plant 1st Shift (A) | AD145: 38 | AE145: 1080 | AF145: 194.4 | AG145: 21.6 | AH145: 137-11473 | AI145: 0 | AJ145: 0 | AK145: 0
A146: 11473 | B146: A | C146: 128116-1-1 | D146: 0 | E146: 10 | F146: MAKEBAGS | G146: 78 | H146: Marsha L Laverdieve | I146: 0.35 | J146: 234 | K146: 11700 | L146: 137 | M146: MAKEBAGS | N146: 2020-09-17 | O146: 2020-09-17 | P146: 3 3/8 x 2 5/16 x 35 1/2 | Q146: 0 | R146: 0 | S146: Merchandise | T146: 60 | U146: Custom | V146: 3543.73 | W146: 414.4 | X146: P | Y146: 120 | Z146: 668.5714286 | AA146: 42 | AB146: 50 | AC146: Plant 1st Shift (A) | AD146: 38 | AE146: 2100 | AF146: 735 | AG146: 42 | AH146: 137-11473 | AI146: 11700 | AJ146: 5.571428571 | AK146: 1.95
A147: 11695 | B147: A | C147: 128482-1-1 | D147: 0 | E147: 10 | F147: HOTSTAMP | G147: 359 | H147: Elsa Smet | I147: 0.78 | J147: 0 | K147: 0 | L147: 801 | M147: HOTSTAMP | N147: 2020-09-17 | O147: 2020-09-17 | P147: 8 x 5 x 10 1/4 | Q147: 1 | R147: 1 | S147: Handled Shopper | T147: 63 | U147: Custom | V147: 0 | W147: 10.92 | X147: S | Y147: 2 | Z147: 0 | AA147: 1.56 | AB147: 250 | AC147: Plant 1st Shift (A) | AD147: 38 | AE147: 390 | AF147: 304.2 | AG147: 1.56 | AH147: 801-11695 | AI147: 0 | AJ147: 0 | AK147: 0
A148: 11967 | B148: A | C148: 125866-2-1 | D148: 0 | E148: 10 | F148: MAKEBAGS | G148: 420 | H148: Scott Hetzel | I148: 0 | J148: -2 | K148: -1000 | L148: 407 | M148: MAKEBAGS | N148: 2020-09-17 | O148: 2020-09-17 | P148: 8 1/4 x 5 1/4 x 18 | Q148: 1 | R148: 1 | S148: SOS | T148: 40 | U148: Custom | V148: 2736.21 | W148: 704.2 | X148: P | Y148: 7.5 | Z148: 0 | AA148: 0 | AB148: 500 | AD148: 38 | AE148: 0 | AF148: 0 | AG148: 0 | AH148: 407-11967 | AI148: -1000 | AJ148: 0 | AK148: 0
A149: 11971 | B149: A | C149: 125897-1-1 | D149: 0 | E149: 10 | F149: MAKEBAGS | G149: 230 | H149: Todd Larock | I149: 2.3 | J149: 0 | K149: 0 | L149: 407 | M149: MAKEBAGS | N149: 2020-09-17 | O149: 2020-09-17 | P149: 8 1/4 x 5 1/4 x 13 3/8 | Q149: 3 | R149: 1 | S149: SOS | T149: 40 | U149: Custom | V149: 840.21 | W149: 348.32 | X149: P | Y149: 7.5 | Z149: 0 | AA149: 17.25 | AB149: 500 | AC149: Plant 3rd Shift (C) | AD149: 38 | AE149: 8625 | AF149: 19837.5 | AG149: 17.25 | AH149: 407-11971 | AI149: 0 | AJ149: 0 | AK149: 0
A150: 11971 | B150: A | C150: 125897-1-1 | D150: 0 | E150: 10 | F150: MAKEBAGS | G150: 230 | H150: Todd Larock | I150: 3.45 | J150: 18 | K150: 9000 | L150: 407 | M150: MAKEBAGS | N150: 2020-09-17 | O150: 2020-09-17 | P150: 8 1/4 x 5 1/4 x 13 3/8 | Q150: 3 | R150: 1 | S150: SOS | T150: 40 | U150: Custom | V150: 840.21 | W150: 348.32 | X150: P | Y150: 7.5 | Z150: 5.217391304 | AA150: 25.875 | AB150: 500 | AC150: Plant 3rd Shift (C) | AD150: 38 | AE150: 12937.5 | AF150: 44634.375 | AG150: 25.875 | AH150: 407-11971 | AI150: 9000 | AJ150: 0.6956521739 | AK150: 2.4
A151: 11971 | B151: A | C151: 125897-1-1 | D151: 0 | E151: 10 | F151: MAKEBAGS | G151: 230 | H151: Todd Larock | I151: 2.15 | J151: 10 | K151: 5000 | L151: 407 | M151: MAKEBAGS | N151: 2020-09-17 | O151: 2020-09-17 | P151: 8 1/4 x 5 1/4 x 13 3/8 | Q151: 3 | R151: 1 | S151: SOS | T151: 40 | U151: Custom | V151: 840.21 | W151: 348.32 | X151: P | Y151: 7.5 | Z151: 4.651162791 | AA151: 16.125 | AB151: 500 | AC151: Plant 3rd Shift (C) | AD151: 38 | AE151: 8062.5 | AF151: 17334.375 | AG151: 16.125 | AH151: 407-11971 | AI151: 5000 | AJ151: 0.6201550388 | AK151: 1.333333333
A152: 12095 | B152: A | C152: 127102-1-1 | D152: 0 | E152: 20 | F152: PEELSEAL | G152: 420 | H152: Scott Hetzel | I152: 0 | J152: -1 | K152: -200 | L152: 302 | M152: PEELSEAL | N152: 2020-09-17 | O152: 2020-09-17 | P152: 10 1/2 x 3 3/4 x 19 | Q152: 2 | R152: 2 | S152: Eco-Shipper P/S | T152: 105 | U152: Custom | V152: 430.62 | W152: 57.12 | X152: P | Y152: 20 | Z152: 0 | AA152: 0 | AB152: 200 | AD152: 38 | AE152: 0 | AF152: 0 | AG152: 0 | AH152: 302-12095 | AI152: -200 | AJ152: 0 | AK152: 0
A153: 12095 | B153: A | C153: 127102-1-1 | D153: 0 | E153: 20 | F153: PEELSEAL | G153: 9358 | H153: Janet Hilario | I153: 1.37 | J153: 1 | K153: 200 | L153: 302 | M153: PEELSEAL | N153: 2020-09-17 | O153: 2020-09-17 | P153: 10 1/2 x 3 3/4 x 19 | Q153: 2 | R153: 2 | S153: Eco-Shipper P/S | T153: 105 | U153: Custom | V153: 430.62 | W153: 57.12 | X153: P | Y153: 20 | Z153: 0.7299270073 | AA153: 27.4 | AB153: 200 | AC153: Plant 1st Shift (A) | AD153: 38 | AE153: 5480 | AF153: 7507.6 | AG153: 27.4 | AH153: 302-12095 | AI153: 200 | AJ153: 0.03649635036 | AK153: 0.05
A154: 12095 | B154: A | C154: 127102-1-1 | D154: 0 | E154: 20 | F154: PEELSEAL | G154: 19 | H154: Jerry J Giordana | I154: 0.02 | J154: 0 | K154: 0 | L154: 302 | M154: PEELSEAL | N154: 2020-09-17 | O154: 2020-09-17 | P154: 10 1/2 x 3 3/4 x 19 | Q154: 2 | R154: 2 | S154: Eco-Shipper P/S | T154: 105 | U154: Custom | V154: 430.62 | W154: 57.12 | X154: P | Y154: 20 | Z154: 0 | AA154: 0.4 | AB154: 200 | AC154: Plant 1st Shift (A) | AD154: 38 | AE154: 80 | AF154: 1.6 | AG154: 0.4 | AH154: 302-12095 | AI154: 0 | AJ154: 0 | AK154: 0
A155: 12097 | B155: D | C155: 127136-2-1 | D155: 0 | E155: 10 | F155: MAKEBAGS | G155: 9521 | H155: Jessica Morrison | I155: 0 | J155: 0 | K155: 0 | L155: 405 | M155: MAKEBAGS | N155: 2020-09-17 | O155: 2020-09-17 | P155: 6 x 3 5/8 x 11 1/16 | Q155: 1 | R155: 1 | S155: SOS | T155: 35 | U155: Custom | V155: 152.44 | W155: 145.74 | X155: P | Y155: 9.5 | Z155: 0 | AA155: 0 | AB155: 500 | AC155: Plant 2nd Shift (B) | AD155: 38 | AE155: 0 | AF155: 0 | AG155: 0 | AH155: 405-12097 | AI155: 0 | AJ155: 0 | AK155: 0
A156: 12097 | B156: D | C156: 127136-2-1 | D156: 0 | E156: 10 | F156: MAKEBAGS | G156: 9521 | H156: Jessica Morrison | I156: 1.08 | J156: 0 | K156: 0 | L156: 405 | M156: MAKEBAGS | N156: 2020-09-17 | O156: 2020-09-17 | P156: 6 x 3 5/8 x 11 1/16 | Q156: 1 | R156: 1 | S156: SOS | T156: 35 | U156: Custom | V156: 152.44 | W156: 145.74 | X156: P | Y156: 9.5 | Z156: 0 | AA156: 10.26 | AB156: 500 | AC156: Plant 2nd Shift (B) | AD156: 38 | AE156: 5130 | AF156: 5540.4 | AG156: 10.26 | AH156: 405-12097 | AI156: 0 | AJ156: 0 | AK156: 0
A157: 12097 | B157: D | C157: 127136-2-1 | D157: 0 | E157: 10 | F157: MAKEBAGS | G157: 9521 | H157: Jessica Morrison | I157: 2.12 | J157: 0 | K157: 0 | L157: 405 | M157: MAKEBAGS | N157: 2020-09-17 | O157: 2020-09-17 | P157: 6 x 3 5/8 x 11 1/16 | Q157: 1 | R157: 1 | S157: SOS | T157: 35 | U157: Custom | V157: 152.44 | W157: 145.74 | X157: P | Y157: 9.5 | Z157: 0 | AA157: 20.14 | AB157: 500 | AC157: Plant 2nd Shift (B) | AD157: 38 | AE157: 10070 | AF157: 21348.4 | AG157: 20.14 | AH157: 405-12097 | AI157: 0 | AJ157: 0 | AK157: 0
A158: 12097 | B158: D | C158: 127136-2-1 | D158: 0 | E158: 10 | F158: MAKEBAGS | G158: 9521 | H158: Jessica Morrison | I158: 2.45 | J158: 3 | K158: 1500 | L158: 405 | M158: MAKEBAGS | N158: 2020-09-17 | O158: 2020-09-17 | P158: 6 x 3 5/8 x 11 1/16 | Q158: 1 | R158: 1 | S158: SOS | T158: 35 | U158: Custom | V158: 152.44 | W158: 145.74 | X158: P | Y158: 9.5 | Z158: 1.224489796 | AA158: 23.275 | AB158: 500 | AC158: Plant 2nd Shift (B) | AD158: 38 | AE158: 11637.5 | AF158: 28511.875 | AG158: 23.275 | AH158: 405-12097 | AI158: 1500 | AJ158: 0.1288936627 | AK158: 0.3157894737
A159: 12097 | B159: D | C159: 127136-2-1 | D159: 0 | E159: 10 | F159: MAKEBAGS | G159: 368 | H159: Richard Wang | I159: 0.98 | J159: 0 | K159: 0 | L159: 405 | M159: MAKEBAGS | N159: 2020-09-17 | O159: 2020-09-17 | P159: 6 x 3 5/8 x 11 1/16 | Q159: 1 | R159: 1 | S159: SOS | T159: 35 | U159: Custom | V159: 152.44 | W159: 145.74 | X159: S | Y159: 9.5 | Z159: 0 | AA159: 9.31 | AB159: 500 | AC159: Plant 2nd Shift (B) | AD159: 38 | AE159: 4655 | AF159: 4561.9 | AG159: 9.31 | AH159: 405-12097 | AI159: 0 | AJ159: 0 | AK159: 0
A160: 12108 | B160: A | C160: 127220-1-1 | D160: 0 | E160: 10 | F160: MAKEBAGS | G160: 150 | H160: Jeremiah Paradise | I160: 1.32 | J160: 18 | K160: 9000 | L160: 403 | M160: MAKEBAGS | N160: 2020-09-17 | O160: 2020-09-17 | P160: 5 x 3 1/8 x 9 5/8 | Q160: 1 | R160: 2 | S160: SOS | T160: 35 | U160: Custom | V160: 1480.25 | W160: 428.26 | X160: P | Y160: 11.5 | Z160: 13.63636364 | AA160: 15.18 | AB160: 500 | AC160: Plant 1st Shift (A) | AD160: 38 | AE160: 7590 | AF160: 10018.8 | AG160: 15.18 | AH160: 403-12108 | AI160: 9000 | AJ160: 1.185770751 | AK160: 1.565217391
A161: 12108 | B161: A | C161: 127220-1-1 | D161: 0 | E161: 10 | F161: MAKEBAGS | G161: 9202 | H161: Cynthia DeWane | I161: 1.95 | J161: 11 | K161: 5500 | L161: 403 | M161: MAKEBAGS | N161: 2020-09-17 | O161: 2020-09-17 | P161: 5 x 3 1/8 x 9 5/8 | Q161: 1 | R161: 2 | S161: SOS | T161: 35 | U161: Custom | V161: 1480.25 | W161: 428.26 | X161: P | Y161: 11.5 | Z161: 5.641025641 | AA161: 22.425 | AB161: 500 | AC161: Plant 3rd Shift (C) | AD161: 38 | AE161: 11212.5 | AF161: 21864.375 | AG161: 22.425 | AH161: 403-12108 | AI161: 5500 | AJ161: 0.4905239688 | AK161: 0.9565217391
A162: 12108 | B162: A | C162: 127220-1-1 | D162: 0 | E162: 10 | F162: MAKEBAGS | G162: 9202 | H162: Cynthia DeWane | I162: 0.05 | J162: 3 | K162: 1500 | L162: 403 | M162: MAKEBAGS | N162: 2020-09-17 | O162: 2020-09-17 | P162: 5 x 3 1/8 x 9 5/8 | Q162: 1 | R162: 2 | S162: SOS | T162: 35 | U162: Custom | V162: 1480.25 | W162: 428.26 | X162: P | Y162: 11.5 | Z162: 60 | AA162: 0.575 | AB162: 500 | AC162: Plant 3rd Shift (C) | AD162: 38 | AE162: 287.5 | AF162: 14.375 | AG162: 0.575 | AH162: 403-12108 | AI162: 1500 | AJ162: 5.217391304 | AK162: 0.2608695652
A163: 12108 | B163: A | C163: 127220-1-1 | D163: 0 | E163: 10 | F163: MAKEBAGS | G163: 78 | H163: Marsha L Laverdieve | I163: 2.67 | J163: 24 | K163: 12000 | L163: 403 | M163: MAKEBAGS | N163: 2020-09-17 | O163: 2020-09-17 | P163: 5 x 3 1/8 x 9 5/8 | Q163: 1 | R163: 2 | S163: SOS | T163: 35 | U163: Custom | V163: 1480.25 | W163: 428.26 | X163: P | Y163: 11.5 | Z163: 8.988764045 | AA163: 30.705 | AB163: 500 | AC163: Plant 1st Shift (A) | AD163: 38 | AE163: 15352.5 | AF163: 40991.175 | AG163: 30.705 | AH163: 403-12108 | AI163: 12000 | AJ163: 0.7816316561 | AK163: 2.086956522
A164: 12108 | B164: A | C164: 127220-1-1 | D164: 0 | E164: 10 | F164: MAKEBAGS | G164: 78 | H164: Marsha L Laverdieve | I164: 0.63 | J164: 8 | K164: 4000 | L164: 403 | M164: MAKEBAGS | N164: 2020-09-17 | O164: 2020-09-17 | P164: 5 x 3 1/8 x 9 5/8 | Q164: 1 | R164: 2 | S164: SOS | T164: 35 | U164: Custom | V164: 1480.25 | W164: 428.26 | X164: P | Y164: 11.5 | Z164: 12.6984127 | AA164: 7.245 | AB164: 500 | AC164: Plant 1st Shift (A) | AD164: 38 | AE164: 3622.5 | AF164: 2282.175 | AG164: 7.245 | AH164: 403-12108 | AI164: 4000 | AJ164: 1.1042098 | AK164: 0.6956521739
A165: 12108 | B165: A | C165: 127220-1-1 | D165: 0 | E165: 10 | F165: MAKEBAGS | G165: 9655 | H165: Marcus D Monson | I165: 2.92 | J165: 0 | K165: 0 | L165: 403 | M165: MAKEBAGS | N165: 2020-09-17 | O165: 2020-09-17 | P165: 5 x 3 1/8 x 9 5/8 | Q165: 1 | R165: 2 | S165: SOS | T165: 35 | U165: Custom | V165: 1480.25 | W165: 428.26 | X165: P | Y165: 11.5 | Z165: 0 | AA165: 33.58 | AB165: 500 | AC165: Plant 3rd Shift (C) | AD165: 38 | AE165: 16790 | AF165: 49026.8 | AG165: 33.58 | AH165: 403-12108 | AI165: 0 | AJ165: 0 | AK165: 0
A166: 12108 | B166: A | C166: 127220-1-1 | D166: 0 | E166: 10 | F166: MAKEBAGS | G166: 9655 | H166: Marcus D Monson | I166: 1.42 | J166: 37 | K166: 18500 | L166: 403 | M166: MAKEBAGS | N166: 2020-09-17 | O166: 2020-09-17 | P166: 5 x 3 1/8 x 9 5/8 | Q166: 1 | R166: 2 | S166: SOS | T166: 35 | U166: Custom | V166: 1480.25 | W166: 428.26 | X166: P | Y166: 11.5 | Z166: 26.05633803 | AA166: 16.33 | AB166: 500 | AC166: Plant 3rd Shift (C) | AD166: 38 | AE166: 8165 | AF166: 11594.3 | AG166: 16.33 | AH166: 403-12108 | AI166: 18500 | AJ166: 2.265768524 | AK166: 3.217391304
A167: 12108 | B167: A | C167: 127220-1-1 | D167: 0 | E167: 10 | F167: MAKEBAGS | G167: 9655 | H167: Marcus D Monson | I167: 1.5 | J167: 0 | K167: 0 | L167: 403 | M167: MAKEBAGS | N167: 2020-09-17 | O167: 2020-09-17 | P167: 5 x 3 1/8 x 9 5/8 | Q167: 1 | R167: 2 | S167: SOS | T167: 35 | U167: Custom | V167: 1480.25 | W167: 428.26 | X167: P | Y167: 11.5 | Z167: 0 | AA167: 17.25 | AB167: 500 | AC167: Plant 3rd Shift (C) | AD167: 38 | AE167: 8625 | AF167: 12937.5 | AG167: 17.25 | AH167: 403-12108 | AI167: 0 | AJ167: 0 | AK167: 0
A168: 12108 | B168: A | C168: 127220-1-1 | D168: 0 | E168: 10 | F168: MAKEBAGS | G168: 9655 | H168: Marcus D Monson | I168: 4.53 | J168: 28 | K168: 14000 | L168: 403 | M168: MAKEBAGS | N168: 2020-09-17 | O168: 2020-09-17 | P168: 5 x 3 1/8 x 9 5/8 | Q168: 1 | R168: 2 | S168: SOS | T168: 35 | U168: Custom | V168: 1480.25 | W168: 428.26 | X168: P | Y168: 11.5 | Z168: 6.181015453 | AA168: 52.095 | AB168: 500 | AC168: Plant 3rd Shift (C) | AD168: 38 | AE168: 26047.5 | AF168: 117995.175 | AG168: 52.095 | AH168: 403-12108 | AI168: 14000 | AJ168: 0.5374796046 | AK168: 2.434782609
A169: 12108 | B169: A | C169: 127220-1-1 | D169: 0 | E169: 10 | F169: MAKEBAGS | G169: 420 | H169: Scott Hetzel | I169: 0.2 | J169: 37 | K169: 18500 | L169: 403 | M169: MAKEBAGS | N169: 2020-09-17 | O169: 2020-09-17 | P169: 5 x 3 1/8 x 9 5/8 | Q169: 1 | R169: 2 | S169: SOS | T169: 35 | U169: Custom | V169: 1480.25 | W169: 428.26 | X169: P | Y169: 11.5 | Z169: 185 | AA169: 2.3 | AB169: 500 | AC169: Office | AD169: 38 | AE169: 1150 | AF169: 230 | AG169: 2.3 | AH169: 403-12108 | AI169: 18500 | AJ169: 16.08695652 | AK169: 3.217391304
A170: 12108 | B170: A | C170: 127220-1-1 | D170: 0 | E170: 10 | F170: MAKEBAGS | G170: 9521 | H170: Jessica Morrison | I170: 0 | J170: 0 | K170: 0 | L170: 403 | M170: MAKEBAGS | N170: 2020-09-17 | O170: 2020-09-17 | P170: 5 x 3 1/8 x 9 5/8 | Q170: 1 | R170: 2 | S170: SOS | T170: 35 | U170: Custom | V170: 1480.25 | W170: 428.26 | X170: P | Y170: 11.5 | Z170: 0 | AA170: 0 | AB170: 500 | AC170: Plant 2nd Shift (B) | AD170: 38 | AE170: 0 | AF170: 0 | AG170: 0 | AH170: 403-12108 | AI170: 0 | AJ170: 0 | AK170: 0
A171: 12108 | B171: A | C171: 127220-1-1 | D171: 0 | E171: 10 | F171: MAKEBAGS | G171: 9521 | H171: Jessica Morrison | I171: 2.25 | J171: 20 | K171: 10000 | L171: 403 | M171: MAKEBAGS | N171: 2020-09-17 | O171: 2020-09-17 | P171: 5 x 3 1/8 x 9 5/8 | Q171: 1 | R171: 2 | S171: SOS | T171: 35 | U171: Custom | V171: 1480.25 | W171: 428.26 | X171: P | Y171: 11.5 | Z171: 8.888888889 | AA171: 25.875 | AB171: 500 | AC171: Plant 2nd Shift (B) | AD171: 38 | AE171: 12937.5 | AF171: 29109.375 | AG171: 25.875 | AH171: 403-12108 | AI171: 10000 | AJ171: 0.7729468599 | AK171: 1.739130435
A172: 12108 | B172: A | C172: 127220-1-1 | D172: 0 | E172: 10 | F172: MAKEBAGS | G172: 9521 | H172: Jessica Morrison | I172: 1.77 | J172: 1 | K172: 500 | L172: 403 | M172: MAKEBAGS | N172: 2020-09-17 | O172: 2020-09-17 | P172: 5 x 3 1/8 x 9 5/8 | Q172: 1 | R172: 2 | S172: SOS | T172: 35 | U172: Custom | V172: 1480.25 | W172: 428.26 | X172: P | Y172: 11.5 | Z172: 0.5649717514 | AA172: 20.355 | AB172: 500 | AC172: Plant 2nd Shift (B) | AD172: 38 | AE172: 10177.5 | AF172: 18014.175 | AG172: 20.355 | AH172: 403-12108 | AI172: 500 | AJ172: 0.04912797838 | AK172: 0.08695652174
A173: 12146 | B173: B | C173: 127721-1-1 | D173: 0 | E173: 10 | F173: POSTPRNT | G173: 243 | H173: Amalia Navarro | I173: 0.13 | J173: 0 | K173: 0 | L173: 601 | M173: POSTPRNT | N173: 2020-09-17 | O173: 2020-09-17 | P173: 9 1/2 x 3 x 16 | Q173: 1 | R173: 1 | S173: Eco-Shipper P/S | T173: 99 | U173: Custom | V173: 63.16 | W173: 19.6 | X173: S | Y173: 3 | Z173: 0 | AA173: 0.39 | AB173: 250 | AC173: Plant 2nd Shift (B) | AD173: 38 | AE173: 97.5 | AF173: 12.675 | AG173: 0.39 | AH173: 601-12146 | AI173: 0 | AJ173: 0 | AK173: 0
A174: 12146 | B174: B | C174: 127721-1-1 | D174: 0 | E174: 10 | F174: POSTPRNT | G174: 243 | H174: Amalia Navarro | I174: 1.25 | J174: 4 | K174: 1000 | L174: 601 | M174: POSTPRNT | N174: 2020-09-17 | O174: 2020-09-17 | P174: 9 1/2 x 3 x 16 | Q174: 1 | R174: 1 | S174: Eco-Shipper P/S | T174: 99 | U174: Custom | V174: 63.16 | W174: 19.6 | X174: P | Y174: 3 | Z174: 3.2 | AA174: 3.75 | AB174: 250 | AC174: Plant 2nd Shift (B) | AD174: 38 | AE174: 937.5 | AF174: 1171.875 | AG174: 3.75 | AH174: 601-12146 | AI174: 1000 | AJ174: 1.066666667 | AK174: 1.333333333
A175: 12146 | B175: B | C175: 127721-1-1 | D175: 0 | E175: 10 | F175: POSTPRNT | G175: 359 | H175: Elsa Smet | I175: 0.02 | J175: 0 | K175: 0 | L175: 601 | M175: POSTPRNT | N175: 2020-09-17 | O175: 2020-09-17 | P175: 9 1/2 x 3 x 16 | Q175: 1 | R175: 1 | S175: Eco-Shipper P/S | T175: 99 | U175: Custom | V175: 63.16 | W175: 19.6 | X175: S | Y175: 3 | Z175: 0 | AA175: 0.06 | AB175: 250 | AC175: Plant 1st Shift (A) | AD175: 38 | AE175: 15 | AF175: 0.3 | AG175: 0.06 | AH175: 601-12146 | AI175: 0 | AJ175: 0 | AK175: 0
A176: 12207 | B176: A | C176: 128343-1-1 | D176: 0 | E176: 10 | F176: POSTPRNT | G176: 359 | H176: Elsa Smet | I176: 1.32 | J176: 0 | K176: 0 | L176: 601 | M176: POSTPRNT | N176: 2020-09-17 | O176: 2020-09-17 | P176: 14 1/2 x 9 x 16 1/4 | Q176: 1 | R176: 1 | S176: Handled Shopper | T176: 63 | U176: Custom | V176: 303.86 | W176: 95.62 | X176: S | Y176: 3.5 | Z176: 0 | AA176: 4.62 | AB176: 200 | AC176: Plant 1st Shift (A) | AD176: 38 | AE176: 924 | AF176: 1219.68 | AG176: 4.62 | AH176: 601-12207 | AI176: 0 | AJ176: 0 | AK176: 0
A177: 12207 | B177: A | C177: 128343-1-1 | D177: 0 | E177: 10 | F177: POSTPRNT | G177: 359 | H177: Elsa Smet | I177: 1.3 | J177: 0 | K177: 0 | L177: 601 | M177: POSTPRNT | N177: 2020-09-17 | O177: 2020-09-17 | P177: 14 1/2 x 9 x 16 1/4 | Q177: 1 | R177: 1 | S177: Handled Shopper | T177: 63 | U177: Custom | V177: 303.86 | W177: 95.62 | X177: S | Y177: 3.5 | Z177: 0 | AA177: 4.55 | AB177: 200 | AC177: Plant 1st Shift (A) | AD177: 38 | AE177: 910 | AF177: 1183 | AG177: 4.55 | AH177: 601-12207 | AI177: 0 | AJ177: 0 | AK177: 0
A178: 12207 | B178: A | C178: 128343-1-1 | D178: 0 | E178: 10 | F178: POSTPRNT | G178: 359 | H178: Elsa Smet | I178: 0.02 | J178: 0 | K178: 0 | L178: 601 | M178: POSTPRNT | N178: 2020-09-17 | O178: 2020-09-17 | P178: 14 1/2 x 9 x 16 1/4 | Q178: 1 | R178: 1 | S178: Handled Shopper | T178: 63 | U178: Custom | V178: 303.86 | W178: 95.62 | X178: S | Y178: 3.5 | Z178: 0 | AA178: 0.07 | AB178: 200 | AC178: Plant 1st Shift (A) | AD178: 38 | AE178: 14 | AF178: 0.28 | AG178: 0.07 | AH178: 601-12207 | AI178: 0 | AJ178: 0 | AK178: 0
A179: 12207 | B179: A | C179: 128343-1-1 | D179: 0 | E179: 10 | F179: POSTPRNT | G179: 359 | H179: Elsa Smet | I179: 0.17 | J179: 0 | K179: 0 | L179: 601 | M179: POSTPRNT | N179: 2020-09-17 | O179: 2020-09-17 | P179: 14 1/2 x 9 x 16 1/4 | Q179: 1 | R179: 1 | S179: Handled Shopper | T179: 63 | U179: Custom | V179: 303.86 | W179: 95.62 | X179: P | Y179: 3.5 | Z179: 0 | AA179: 0.595 | AB179: 200 | AC179: Plant 1st Shift (A) | AD179: 38 | AE179: 119 | AF179: 20.23 | AG179: 0.595 | AH179: 601-12207 | AI179: 0 | AJ179: 0 | AK179: 0
A180: 12207 | B180: A | C180: 128343-1-1 | D180: 0 | E180: 10 | F180: POSTPRNT | G180: 359 | H180: Elsa Smet | I180: 1.02 | J180: 0 | K180: 0 | L180: 601 | M180: POSTPRNT | N180: 2020-09-17 | O180: 2020-09-17 | P180: 14 1/2 x 9 x 16 1/4 | Q180: 1 | R180: 1 | S180: Handled Shopper | T180: 63 | U180: Custom | V180: 303.86 | W180: 95.62 | X180: S | Y180: 3.5 | Z180: 0 | AA180: 3.57 | AB180: 200 | AC180: Plant 1st Shift (A) | AD180: 38 | AE180: 714 | AF180: 728.28 | AG180: 3.57 | AH180: 601-12207 | AI180: 0 | AJ180: 0 | AK180: 0
A181: 12207 | B181: A | C181: 128343-1-1 | D181: 0 | E181: 10 | F181: POSTPRNT | G181: 359 | H181: Elsa Smet | I181: 1.45 | J181: 0 | K181: 0 | L181: 601 | M181: POSTPRNT | N181: 2020-09-17 | O181: 2020-09-17 | P181: 14 1/2 x 9 x 16 1/4 | Q181: 1 | R181: 1 | S181: Handled Shopper | T181: 63 | U181: Custom | V181: 303.86 | W181: 95.62 | X181: P | Y181: 3.5 | Z181: 0 | AA181: 5.075 | AB181: 200 | AC181: Plant 1st Shift (A) | AD181: 38 | AE181: =AB181*AA181 -> 1015 | AF181: 1471.75 | AG181: =IF(AE181=0,0,AE181/AB181) -> 5.075 | AH181: 601-12207 | AI181: 0 | AJ181: =IF(AE181=0,0,AI181/AE181) -> 0 | AK181: 0
A182: 12207 | B182: A | C182: 128343-1-1 | D182: 0 | E182: 10 | F182: POSTPRNT | G182: 359 | H182: Elsa Smet | I182: 0.03 | J182: 0 | K182: 0 | L182: 601 | M182: POSTPRNT | N182: 2020-09-17 | O182: 2020-09-17 | P182: 14 1/2 x 9 x 16 1/4 | Q182: 1 | R182: 1 | S182: Handled Shopper | T182: 63 | U182: Custom | V182: 303.86 | W182: 95.62 | X182: P | Y182: 3.5 | Z182: 0 | AA182: 0.105 | AB182: 200 | AC182: Plant 1st Shift (A) | AD182: 38 | AE182: 21 | AF182: 0.63 | AG182: 0.105 | AH182: 601-12207 | AI182: 0 | AJ182: 0 | AK182: 0
A183: 12207 | B183: A | C183: 128343-1-1 | D183: 0 | E183: 10 | F183: POSTPRNT | G183: 359 | H183: Elsa Smet | I183: 1.15 | J183: 8 | K183: 1600 | L183: 601 | M183: POSTPRNT | N183: 2020-09-17 | O183: 2020-09-17 | P183: 14 1/2 x 9 x 16 1/4 | Q183: 1 | R183: 1 | S183: Handled Shopper | T183: 63 | U183: Custom | V183: 303.86 | W183: 95.62 | X183: P | Y183: 3.5 | Z183: 6.956521739 | AA183: 4.025 | AB183: 200 | AC183: Plant 1st Shift (A) | AD183: 38 | AE183: 805 | AF183: 925.75 | AG183: 4.025 | AH183: 601-12207 | AI183: 1600 | AJ183: 1.98757764 | AK183: 2.285714286
A184: 12207 | B184: A | C184: 128343-1-1 | D184: 0 | E184: 10 | F184: POSTPRNT | G184: 243 | H184: Amalia Navarro | I184: 0.37 | J184: 0 | K184: 0 | L184: 601 | M184: POSTPRNT | N184: 2020-09-17 | O184: 2020-09-17 | P184: 14 1/2 x 9 x 16 1/4 | Q184: 1 | R184: 1 | S184: Handled Shopper | T184: 63 | U184: Custom | V184: 303.86 | W184: 95.62 | X184: S | Y184: 3.5 | Z184: 0 | AA184: 1.295 | AB184: 200 | AC184: Plant 2nd Shift (B) | AD184: 38 | AE184: 259 | AF184: 95.83 | AG184: 1.295 | AH184: 601-12207 | AI184: 0 | AJ184: 0 | AK184: 0
A185: 12215 | B185: A | C185: 128426-1-1 | D185: 0 | E185: 10 | F185: POSTPRNT | G185: 243 | H185: Amalia Navarro | I185: 0.42 | J185: 0 | K185: 0 | L185: 601 | M185: POSTPRNT | N185: 2020-09-17 | O185: 2020-09-17 | P185: 5 x 3 1/8 x 9 5/8 | Q185: 1 | R185: 1 | S185: SOS | T185: 35 | U185: Custom | V185: 0 | W185: 7.98 | X185: S | Y185: 1.5 | Z185: 0 | AA185: 0.63 | AB185: 500 | AC185: Plant 2nd Shift (B) | AD185: 38 | AE185: 315 | AF185: 132.3 | AG185: 0.63 | AH185: 601-12215 | AI185: 0 | AJ185: 0 | AK185: 0
A186: 12227 | B186: A | C186: 128474-1-1 | D186: 0 | E186: 10 | F186: POSTPRNT | G186: 243 | H186: Amalia Navarro | I186: 0.03 | J186: 0 | K186: 0 | L186: 601 | M186: POSTPRNT | N186: 2020-09-17 | O186: 2020-09-17 | P186: 10 1/2 x 16 | Q186: 1 | R186: 1 | S186: Eco-Shipper P/S | T186: 105 | U186: Custom | V186: 13.3 | W186: 11.62 | X186: S | Y186: 3.5 | Z186: 0 | AA186: 0.105 | AB186: 250 | AC186: Plant 2nd Shift (B) | AD186: 38 | AE186: 26.25 | AF186: 0.7875 | AG186: 0.105 | AH186: 601-12227 | AI186: 0 | AJ186: 0 | AK186: 0
A187: 12227 | B187: A | C187: 128474-1-1 | D187: 0 | E187: 10 | F187: POSTPRNT | G187: 243 | H187: Amalia Navarro | I187: 0.12 | J187: 0 | K187: 0 | L187: 601 | M187: POSTPRNT | N187: 2020-09-17 | O187: 2020-09-17 | P187: 10 1/2 x 16 | Q187: 1 | R187: 1 | S187: Eco-Shipper P/S | T187: 105 | U187: Custom | V187: 13.3 | W187: 11.62 | X187: S | Y187: 3.5 | Z187: 0 | AA187: 0.42 | AB187: 250 | AC187: Plant 2nd Shift (B) | AD187: 38 | AE187: 105 | AF187: 12.6 | AG187: 0.42 | AH187: 601-12227 | AI187: 0 | AJ187: 0 | AK187: 0
A188: 12227 | B188: A | C188: 128474-1-1 | D188: 0 | E188: 10 | F188: POSTPRNT | G188: 243 | H188: Amalia Navarro | I188: 0.68 | J188: 1 | K188: 250 | L188: 601 | M188: POSTPRNT | N188: 2020-09-17 | O188: 2020-09-17 | P188: 10 1/2 x 16 | Q188: 1 | R188: 1 | S188: Eco-Shipper P/S | T188: 105 | U188: Custom | V188: 13.3 | W188: 11.62 | X188: P | Y188: 3.5 | Z188: 1.470588235 | AA188: 2.38 | AB188: 250 | AC188: Plant 2nd Shift (B) | AD188: 38 | AE188: 595 | AF188: 404.6 | AG188: 2.38 | AH188: 601-12227 | AI188: 250 | AJ188: 0.4201680672 | AK188: 0.2857142857
A189: 12228 | B189: A | C189: 128483-1-1 | D189: 0 | E189: 10 | F189: POSTPRNT | G189: 359 | H189: Elsa Smet | I189: 0.28 | J189: 0 | K189: 0 | L189: 601 | M189: POSTPRNT | N189: 2020-09-17 | O189: 2020-09-17 | P189: 12 1/2 x 19 | Q189: 1 | R189: 1 | S189: Dura-Bag P/S | T189: 80 | U189: Custom | V189: 130.32 | W189: 21.14 | X189: S | Y189: 3 | Z189: 0 | AA189: 0.84 | AB189: 250 | AC189: Plant 1st Shift (A) | AD189: 38 | AE189: 210 | AF189: 58.8 | AG189: 0.84 | AH189: 601-12228 | AI189: 0 | AJ189: 0 | AK189: 0
A190: 12228 | B190: A | C190: 128483-1-1 | D190: 0 | E190: 10 | F190: POSTPRNT | G190: 359 | H190: Elsa Smet | I190: 1.13 | J190: 3 | K190: 750 | L190: 601 | M190: POSTPRNT | N190: 2020-09-17 | O190: 2020-09-17 | P190: 12 1/2 x 19 | Q190: 1 | R190: 1 | S190: Dura-Bag P/S | T190: 80 | U190: Custom | V190: 130.32 | W190: 21.14 | X190: P | Y190: 3 | Z190: 2.654867257 | AA190: 3.39 | AB190: 250 | AC190: Plant 1st Shift (A) | AD190: 38 | AE190: 847.5 | AF190: 957.675 | AG190: 3.39 | AH190: 601-12228 | AI190: 750 | AJ190: 0.8849557522 | AK190: 1
A191: 12228 | B191: A | C191: 128483-1-1 | D191: 0 | E191: 10 | F191: POSTPRNT | G191: 359 | H191: Elsa Smet | I191: 0.1 | J191: 1 | K191: 250 | L191: 601 | M191: POSTPRNT | N191: 2020-09-17 | O191: 2020-09-17 | P191: 12 1/2 x 19 | Q191: 1 | R191: 1 | S191: Dura-Bag P/S | T191: 80 | U191: Custom | V191: 130.32 | W191: 21.14 | X191: P | Y191: 3 | Z191: 10 | AA191: 0.3 | AB191: 250 | AC191: Plant 1st Shift (A) | AD191: 38 | AE191: 75 | AF191: 7.5 | AG191: 0.3 | AH191: 601-12228 | AI191: 250 | AJ191: 3.333333333 | AK191: 0.3333333333
A192: 12229 | B192: A | C192: 128483-2-1 | D192: 0 | E192: 10 | F192: POSTPRNT | G192: 359 | H192: Elsa Smet | I192: 0.75 | J192: 0 | K192: 0 | L192: 601 | M192: POSTPRNT | N192: 2020-09-17 | O192: 2020-09-17 | P192: 10 1/2 x 16 | Q192: 1 | R192: 1 | S192: Eco-Shipper P/S | T192: 126 | U192: Custom | V192: 86.28 | W192: 28.7 | X192: S | Y192: 3 | Z192: 0 | AA192: 2.25 | AB192: 250 | AC192: Plant 1st Shift (A) | AD192: 38 | AE192: 562.5 | AF192: 421.875 | AG192: 2.25 | AH192: 601-12229 | AI192: 0 | AJ192: 0 | AK192: 0
A193: 12229 | B193: A | C193: 128483-2-1 | D193: 0 | E193: 10 | F193: POSTPRNT | G193: 359 | H193: Elsa Smet | I193: 1.3 | J193: 4 | K193: 1000 | L193: 601 | M193: POSTPRNT | N193: 2020-09-17 | O193: 2020-09-17 | P193: 10 1/2 x 16 | Q193: 1 | R193: 1 | S193: Eco-Shipper P/S | T193: 126 | U193: Custom | V193: 86.28 | W193: 28.7 | X193: P | Y193: 3 | Z193: 3.076923077 | AA193: 3.9 | AB193: 250 | AC193: Plant 1st Shift (A) | AD193: 38 | AE193: 975 | AF193: 1267.5 | AG193: 3.9 | AH193: 601-12229 | AI193: 1000 | AJ193: 1.025641026 | AK193: 1.333333333
A194: 12230 | B194: A | C194: 128496-1-1 | D194: 0 | E194: 10 | F194: POSTPRNT | G194: 359 | H194: Elsa Smet | I194: 0.3 | J194: 1 | K194: 250 | L194: 601 | M194: POSTPRNT | N194: 2020-09-17 | O194: 2020-09-17 | P194: 7 1/4 x 12 | Q194: 1 | R194: 1 | S194: Eco-Shipper P/S | T194: 105 | U194: Custom | V194: 10.04 | W194: 4.2 | X194: P | Y194: 3 | Z194: 3.333333333 | AA194: 0.9 | AB194: 250 | AC194: Plant 1st Shift (A) | AD194: 38 | AE194: 225 | AF194: 67.5 | AG194: 0.9 | AH194: 601-12230 | AI194: 250 | AJ194: 1.111111111 | AK194: 0.3333333333
A195: 12231 | B195: A | C195: 128496-2-1 | D195: 0 | E195: 10 | F195: POSTPRNT | G195: 359 | H195: Elsa Smet | I195: 0.07 | J195: 0 | K195: 0 | L195: 601 | M195: POSTPRNT | N195: 2020-09-17 | O195: 2020-09-17 | P195: 9 1/2 x 3 x 16 | Q195: 1 | R195: 1 | S195: Dura-Bag P/S | T195: 80 | U195: Custom | V195: 56.29 | W195: 9.66 | X195: S | Y195: 1.5 | Z195: 0 | AA195: 0.105 | AB195: 500 | AC195: Plant 1st Shift (A) | AD195: 38 | AE195: 52.5 | AF195: =+AE195*I195 -> 3.675 | AG195: 0.105 | AH195: =L195&"-"&A195 -> 601-12231 | AI195: =K195 -> 0 | AJ195: 0 | AK195: =AJ195*I195 -> 0
A196: 12231 | B196: A | C196: 128496-2-1 | D196: 0 | E196: 10 | F196: POSTPRNT | G196: 359 | H196: Elsa Smet | I196: 0.62 | J196: 1 | K196: 500 | L196: 601 | M196: POSTPRNT | N196: 2020-09-17 | O196: 2020-09-17 | P196: 9 1/2 x 3 x 16 | Q196: 1 | R196: 1 | S196: Dura-Bag P/S | T196: 80 | U196: Custom | V196: 56.29 | W196: 9.66 | X196: P | Y196: 1.5 | Z196: 1.612903226 | AA196: 0.93 | AB196: 500 | AC196: Plant 1st Shift (A) | AD196: 38 | AE196: 465 | AF196: 288.3 | AG196: 0.93 | AH196: 601-12231 | AI196: 500 | AJ196: 1.075268817 | AK196: 0.6666666667
A197: 12232 | B197: A | C197: 128496-3-1 | D197: 0 | E197: 10 | F197: POSTPRNT | G197: 359 | H197: Elsa Smet | I197: 0.38 | J197: 0 | K197: 0 | L197: 601 | M197: POSTPRNT | N197: 2020-09-17 | O197: 2020-09-17 | P197: 12 1/2 x 4 x 20 | Q197: 1 | R197: 1 | S197: Dura-Bag P/S | T197: 80 | U197: Custom | V197: 42.67 | W197: 10.22 | X197: S | Y197: 3 | Z197: 0 | AA197: 1.14 | AB197: 250 | AC197: Plant 1st Shift (A) | AD197: 38 | AE197: 285 | AF197: 108.3 | AG197: 1.14 | AH197: 601-12232 | AI197: 0 | AJ197: 0 | AK197: 0
A198: 12232 | B198: A | C198: 128496-3-1 | D198: 0 | E198: 10 | F198: POSTPRNT | G198: 359 | H198: Elsa Smet | I198: 0.35 | J198: 1 | K198: 250 | L198: 601 | M198: POSTPRNT | N198: 2020-09-17 | O198: 2020-09-17 | P198: 12 1/2 x 4 x 20 | Q198: 1 | R198: 1 | S198: Dura-Bag P/S | T198: 80 | U198: Custom | V198: 42.67 | W198: 10.22 | X198: P | Y198: 3 | Z198: 2.857142857 | AA198: 1.05 | AB198: 250 | AC198: Plant 1st Shift (A) | AD198: 38 | AE198: 262.5 | AF198: 91.875 | AG198: 1.05 | AH198: 601-12232 | AI198: 250 | AJ198: 0.9523809524 | AK198: 0.3333333333
A199: 12234 | B199: A | C199: 128504-1-1 | D199: 0 | E199: 10 | F199: POSTPRNT | G199: 243 | H199: Amalia Navarro | I199: 0.42 | J199: 0 | K199: 0 | L199: 601 | M199: POSTPRNT | N199: 2020-09-17 | O199: 2020-09-17 | P199: 8 3/4 x 12 | Q199: 1 | R199: 2 | S199: Eco-Shipper P/S | T199: 126 | U199: Custom | V199: 30.66 | W199: 25.2 | X199: S | Y199: 1.4 | Z199: 0 | AA199: 0.588 | AB199: 250 | AC199: Plant 2nd Shift (B) | AD199: 38 | AE199: 147 | AF199: 61.74 | AG199: 0.588 | AH199: 601-12234 | AI199: 0 | AJ199: 0 | AK199: 0
A200: 12234 | B200: A | C200: 128504-1-1 | D200: 0 | E200: 10 | F200: POSTPRNT | G200: 243 | H200: Amalia Navarro | I200: 1.38 | J200: 2 | K200: 500 | L200: 601 | M200: POSTPRNT | N200: 2020-09-17 | O200: 2020-09-17 | P200: 8 3/4 x 12 | Q200: 1 | R200: 2 | S200: Eco-Shipper P/S | T200: 126 | U200: Custom | V200: 30.66 | W200: 25.2 | X200: P | Y200: 1.4 | Z200: 1.449275362 | AA200: 1.932 | AB200: 250 | AC200: Plant 2nd Shift (B) | AD200: 38 | AE200: 483 | AF200: 666.54 | AG200: 1.932 | AH200: 601-12234 | AI200: 500 | AJ200: 1.035196687 | AK200: 1.428571429
A201: 12235 | B201: A | C201: 128517-1-1 | D201: 0 | E201: 10 | F201: POSTPRNT | G201: 359 | H201: Elsa Smet | I201: 0.42 | J201: 0 | K201: 0 | L201: 601 | M201: POSTPRNT | N201: 2020-09-17 | O201: 2020-09-17 | P201: 14 1/4 x 20 | Q201: 1 | R201: 2 | S201: Eco-Shipper P/S | T201: 105 | U201: Custom | V201: 94.85 | W201: 39.76 | X201: S | Y201: 1.75 | Z201: 0 | AA201: 0.735 | AB201: 200 | AC201: Plant 1st Shift (A) | AD201: 38 | AE201: 147 | AF201: 61.74 | AG201: 0.735 | AH201: 601-12235 | AI201: 0 | AJ201: 0 | AK201: 0
... 527 more rows

Sheet Hours Relieved
M1: P | N1: Leave Alone
A2: Week 38 | L2: Week 38
E3: 2020-09-14 | F3: =E3+1 -> 2020-09-15 | G3: =F3+1 -> 2020-09-16 | H3: 2020-09-17 | I3: 2020-09-18 | J3: 2020-09-19
A4: Resource | B4: Calendar Hours | C4: Hours Applied | D4: Hours Relieved | E4: Mon Relief | F4: Tue Relief | G4: Wed Relief | H4: Thu Relief | I4: Fri Relief | J4: Sat Relief | K4: Hours Remaining | L4: Week % Complt
A5: 100 | B5: 10 | C5: =SUMIFS('Weekly Data'!$I:$I,'Weekly Data'!$L:$L,'Hours Relieved'!$A5,'Weekly Data'!$X:$X,'Hours Relieved'!$M$1) -> 4.18 | D5: =SUMIFS('Weekly Data'!$AK:$AK,'Weekly Data'!$L:$L,'Hours Relieved'!$A5,'Weekly Data'!$X:$X,'Hours Relieved'!$M$1) -> 4.357142857 | E5: 0 | F5: 1.571428571 | G5: 4.357142857 | H5: 0 | I5: 0 | J5: 0 | K5: =(B5-E5-F5-G5-H5-I5-J5) -> 4.071428571 | L5: =IF(B5=0,0,(B5-K5)/B5) -> 0.5928571429
A6: 101 | B6: 34 | C6: =SUMIFS('Weekly Data'!$I:$I,'Weekly Data'!$L:$L,'Hours Relieved'!$A6,'Weekly Data'!$X:$X,'Hours Relieved'!$M$1) -> 10.38 | D6: =SUMIFS('Weekly Data'!$AK:$AK,'Weekly Data'!$L:$L,'Hours Relieved'!$A6,'Weekly Data'!$X:$X,'Hours Relieved'!$M$1) -> 7.875 | E6: 1.165514593 | F6: 5.75 | G6: 5.75 | H6: 0 | I6: 0 | J6: 0 | K6: =(B6-E6-F6-G6-H6-I6-J6) -> 21.33448541 | L6: =IF(B6=0,0,(B6-K6)/B6) -> 0.3725151351
A7: 102 | B7: 55 | C7: =SUMIFS('Weekly Data'!$I:$I,'Weekly Data'!$L:$L,'Hours Relieved'!$A7,'Weekly Data'!$X:$X,'Hours Relieved'!$M$1) -> 29.55 | D7: =SUMIFS('Weekly Data'!$AK:$AK,'Weekly Data'!$L:$L,'Hours Relieved'!$A7,'Weekly Data'!$X:$X,'Hours Relieved'!$M$1) -> 21.20833333 | E7: 4.208279 | F7: 6.25 | G7: 12.08333333 | H7: 0 | I7: 0 | J7: 0 | K7: =B7-E7-F7-G7-H7-I7-J7 -> 32.45838767 | L7: 0.409847497
A8: 103 | B8: 48 | C8: =SUMIFS('Weekly Data'!$I:$I,'Weekly Data'!$L:$L,'Hours Relieved'!$A8,'Weekly Data'!$X:$X,'Hours Relieved'!$M$1) -> 14.59 | D8: =SUMIFS('Weekly Data'!$AK:$AK,'Weekly Data'!$L:$L,'Hours Relieved'!$A8,'Weekly Data'!$X:$X,'Hours Relieved'!$M$1) -> 15.3125 | E8: 1.740686275 | F8: 8.4375 | G8: 10.625 | H8: 0 | I8: 0 | J8: 0 | K8: 27.19681373 | L8: 0.4333997141
A9: 104 | B9: 10 | C9: =SUMIFS('Weekly Data'!$I:$I,'Weekly Data'!$L:$L,'Hours Relieved'!$A9,'Weekly Data'!$X:$X,'Hours Relieved'!$M$1) -> 1.02 | D9: =SUMIFS('Weekly Data'!$AK:$AK,'Weekly Data'!$L:$L,'Hours Relieved'!$A9,'Weekly Data'!$X:$X,'Hours Relieved'!$M$1) -> 1.5 | E9: 1.470588235 | F9: 0 | G9: 0 | H9: 0 | I9: 0 | J9: 0 | K9: 8.529411765 | L9: 0.1470588235
A10: 106 | B10: 30 | C10: =SUMIFS('Weekly Data'!$I:$I,'Weekly Data'!$L:$L,'Hours Relieved'!$A10,'Weekly Data'!$X:$X,'Hours Relieved'!$M$1) -> 0 | D10: =SUMIFS('Weekly Data'!$AK:$AK,'Weekly Data'!$L:$L,'Hours Relieved'!$A10,'Weekly Data'!$X:$X,'Hours Relieved'!$M$1) -> 0 | E10: 0 | F10: 0 | G10: 0 | H10: 0 | I10: 0 | J10: 0 | K10: 30 | L10: 0
A11: 107 | B11: 24 | C11: =SUMIFS('Weekly Data'!$I:$I,'Weekly Data'!$L:$L,'Hours Relieved'!$A11,'Weekly Data'!$X:$X,'Hours Relieved'!$M$1) -> 0 | D11: =SUMIFS('Weekly Data'!$AK:$AK,'Weekly Data'!$L:$L,'Hours Relieved'!$A11,'Weekly Data'!$X:$X,'Hours Relieved'!$M$1) -> 0 | E11: 0 | F11: 0 | G11: 0 | H11: 0 | I11: 0 | J11: 0 | K11: 24 | L11: 0
A12: 108 | B12: 30 | C12: =SUMIFS('Weekly Data'!$I:$I,'Weekly Data'!$L:$L,'Hours Relieved'!$A12,'Weekly Data'!$X:$X,'Hours Relieved'!$M$1) -> 19.95 | D12: =SUMIFS('Weekly Data'!$AK:$AK,'Weekly Data'!$L:$L,'Hours Relieved'!$A12,'Weekly Data'!$X:$X,'Hours Relieved'!$M$1) -> 10.96296296 | E12: 2.341514735 | F12: 0 | G12: 4.888888889 | H12: 0 | I12: 0 | J12: 0 | K12: 22.76959638 | L12: 0.2410134541
A13: 137 | B13: 90 | C13: =SUMIFS('Weekly Data'!$I:$I,'Weekly Data'!$L:$L,'Hours Relieved'!$A13,'Weekly Data'!$X:$X,'Hours Relieved'!$M$1) -> 14.43 | D13: =SUMIFS('Weekly Data'!$AK:$AK,'Weekly Data'!$L:$L,'Hours Relieved'!$A13,'Weekly Data'!$X:$X,'Hours Relieved'!$M$1) -> 8.1 | E13: 7.744555887 | F13: 1.8 | G13: 2.9 | H13: 0 | I13: 0 | J13: 0 | K13: 77.55544411 | L13: 0.1382728432
A14: 201 | B14: 60 | C14: =SUMIFS('Weekly Data'!$I:$I,'Weekly Data'!$L:$L,'Hours Relieved'!$A14,'Weekly Data'!$X:$X,'Hours Relieved'!$M$1) -> 12.95 | D14: =SUMIFS('Weekly Data'!$AK:$AK,'Weekly Data'!$L:$L,'Hours Relieved'!$A14,'Weekly Data'!$X:$X,'Hours Relieved'!$M$1) -> 14.47058824 | E14: 0 | F14: 14.47058824 | G14: 14.47058824 | H14: 0 | I14: 0 | J14: 0 | K14: 31.05882353 | L14: 0.4823529412
A15: 202 | B15: 30 | C15: =SUMIFS('Weekly Data'!$I:$I,'Weekly Data'!$L:$L,'Hours Relieved'!$A15,'Weekly Data'!$X:$X,'Hours Relieved'!$M$1) -> 3.67 | D15: =SUMIFS('Weekly Data'!$AK:$AK,'Weekly Data'!$L:$L,'Hours Relieved'!$A15,'Weekly Data'!$X:$X,'Hours Relieved'!$M$1) -> 1.058823529 | E15: 0 | F15: 0 | G15: 1.058823529 | H15: 0 | I15: 0 | J15: 0 | K15: 28.94117647 | L15: 0.03529411765
A16: 203 | B16: 55 | C16: =SUMIFS('Weekly Data'!$I:$I,'Weekly Data'!$L:$L,'Hours Relieved'!$A16,'Weekly Data'!$X:$X,'Hours Relieved'!$M$1) -> 19.96 | D16: =SUMIFS('Weekly Data'!$AK:$AK,'Weekly Data'!$L:$L,'Hours Relieved'!$A16,'Weekly Data'!$X:$X,'Hours Relieved'!$M$1) -> 9.658823529 | E16: 14.58237873 | F16: 2.058823529 | G16: 2.058823529 | H16: 0 | I16: 0 | J16: 0 | K16: 36.29997422 | L16: 0.3400004688
A17: 301 | B17: 60 | C17: =SUMIFS('Weekly Data'!$I:$I,'Weekly Data'!$L:$L,'Hours Relieved'!$A17,'Weekly Data'!$X:$X,'Hours Relieved'!$M$1) -> 49.77 | D17: =SUMIFS('Weekly Data'!$AK:$AK,'Weekly Data'!$L:$L,'Hours Relieved'!$A17,'Weekly Data'!$X:$X,'Hours Relieved'!$M$1) -> 34.08974359 | E17: 7.299087365 | F17: 5.444444444 | G17: 17.61111111 | H17: 0 | I17: 0 | J17: 0 | K17: 29.64535708 | L17: 0.5059107153
A18: 302 | B18: 60 | C18: =SUMIFS('Weekly Data'!$I:$I,'Weekly Data'!$L:$L,'Hours Relieved'!$A18,'Weekly Data'!$X:$X,'Hours Relieved'!$M$1) -> 17.59 | D18: =SUMIFS('Weekly Data'!$AK:$AK,'Weekly Data'!$L:$L,'Hours Relieved'!$A18,'Weekly Data'!$X:$X,'Hours Relieved'!$M$1) -> 9.361111111 | E18: 6.049767565 | F18: 0 | G18: 1.611111111 | H18: 0 | I18: 0 | J18: 0 | K18: 52.33912132 | L18: 0.1276813113
A19: 401 | B19: 42 | C19: =SUMIFS('Weekly Data'!$I:$I,'Weekly Data'!$L:$L,'Hours Relieved'!$A19,'Weekly Data'!$X:$X,'Hours Relieved'!$M$1) -> 35.25 | D19: =SUMIFS('Weekly Data'!$AK:$AK,'Weekly Data'!$L:$L,'Hours Relieved'!$A19,'Weekly Data'!$X:$X,'Hours Relieved'!$M$1) -> 24.61538462 | E19: 6.872320817 | F19: 5 | G19: 11.76923077 | H19: 0 | I19: 0 | J19: 0 | K19: 18.35844841 | L19: 0.5628940854
A20: 402 | B20: 67 | C20: =SUMIFS('Weekly Data'!$I:$I,'Weekly Data'!$L:$L,'Hours Relieved'!$A20,'Weekly Data'!$X:$X,'Hours Relieved'!$M$1) -> 21.3 | D20: =SUMIFS('Weekly Data'!$AK:$AK,'Weekly Data'!$L:$L,'Hours Relieved'!$A20,'Weekly Data'!$X:$X,'Hours Relieved'!$M$1) -> 15.78947368 | E20: 2.74404121 | F20: 5.894736842 | G20: 9.789473684 | H20: 0 | I20: 0 | J20: 0 | K20: 48.57174826 | L20: 0.2750485334
A21: 403 | B21: 40 | C21: =SUMIFS('Weekly Data'!$I:$I,'Weekly Data'!$L:$L,'Hours Relieved'!$A21,'Weekly Data'!$X:$X,'Hours Relieved'!$M$1) -> 21.21 | D21: =SUMIFS('Weekly Data'!$AK:$AK,'Weekly Data'!$L:$L,'Hours Relieved'!$A21,'Weekly Data'!$X:$X,'Hours Relieved'!$M$1) -> 16.26086957 | E21: 19.71227949 | F21: 4 | G21: 5.565217391 | H21: 0 | I21: 0 | J21: 0 | K21: 10.72250312 | L21: 0.731937422
A22: 404 | B22: 38 | C22: =SUMIFS('Weekly Data'!$I:$I,'Weekly Data'!$L:$L,'Hours Relieved'!$A22,'Weekly Data'!$X:$X,'Hours Relieved'!$M$1) -> 7.58 | D22: =SUMIFS('Weekly Data'!$AK:$AK,'Weekly Data'!$L:$L,'Hours Relieved'!$A22,'Weekly Data'!$X:$X,'Hours Relieved'!$M$1) -> 4 | E22: 0 | F22: 2.333333333 | G22: 4 | H22: 0 | I22: 0 | J22: 0 | K22: 31.66666667 | L22: 0.1666666667
A23: 405 | B23: 50 | C23: =SUMIFS('Weekly Data'!$I:$I,'Weekly Data'!$L:$L,'Hours Relieved'!$A23,'Weekly Data'!$X:$X,'Hours Relieved'!$M$1) -> 36.76 | D23: =SUMIFS('Weekly Data'!$AK:$AK,'Weekly Data'!$L:$L,'Hours Relieved'!$A23,'Weekly Data'!$X:$X,'Hours Relieved'!$M$1) -> 29.71578947 | E23: 6.656659765 | F23: 11 | G23: 13.31578947 | H23: 0 | I23: 0 | J23: 0 | K23: 19.02755076 | L23: 0.6194489848
A24: 406 | B24: 10 | C24: =SUMIFS('Weekly Data'!$I:$I,'Weekly Data'!$L:$L,'Hours Relieved'!$A24,'Weekly Data'!$X:$X,'Hours Relieved'!$M$1) -> 24.91 | D24: =SUMIFS('Weekly Data'!$AK:$AK,'Weekly Data'!$L:$L,'Hours Relieved'!$A24,'Weekly Data'!$X:$X,'Hours Relieved'!$M$1) -> 15.1 | E24: 1.706556783 | F24: 2.8 | G24: 10.5 | H24: 0 | I24: 0 | J24: 0 | K24: -5.006556783 | L24: 1.500655678
A25: 407 | B25: 30 | C25: =SUMIFS('Weekly Data'!$I:$I,'Weekly Data'!$L:$L,'Hours Relieved'!$A25,'Weekly Data'!$X:$X,'Hours Relieved'!$M$1) -> 7.9 | D25: =SUMIFS('Weekly Data'!$AK:$AK,'Weekly Data'!$L:$L,'Hours Relieved'!$A25,'Weekly Data'!$X:$X,'Hours Relieved'!$M$1) -> 3.733333333 | E25: 0 | F25: 3.733333333 | G25: 3.733333333 | H25: 0 | I25: 0 | J25: 0 | K25: 22.53333333 | L25: 0.2488888889
A26: 501 | B26: 10 | C26: =SUMIFS('Weekly Data'!$I:$I,'Weekly Data'!$L:$L,'Hours Relieved'!$A26,'Weekly Data'!$X:$X,'Hours Relieved'!$M$1) -> 0 | D26: =SUMIFS('Weekly Data'!$AK:$AK,'Weekly Data'!$L:$L,'Hours Relieved'!$A26,'Weekly Data'!$X:$X,'Hours Relieved'!$M$1) -> 0 | E26: 0 | F26: 0 | G26: 0 | H26: 0 | I26: 0 | J26: 0 | K26: 10 | L26: 0
A27: 550 | C27: =SUMIFS('Weekly Data'!$I:$I,'Weekly Data'!$L:$L,'Hours Relieved'!$A27,'Weekly Data'!$X:$X,'Hours Relieved'!$M$1) -> 0 | D27: =SUMIFS('Weekly Data'!$AK:$AK,'Weekly Data'!$L:$L,'Hours Relieved'!$A27,'Weekly Data'!$X:$X,'Hours Relieved'!$M$1) -> 0 | E27: 0 | F27: 0 | G27: 0 | H27: 0 | I27: 0 | J27: 0 | K27: 0 | L27: 0
A28: 601 | B28: 60 | C28: =SUMIFS('Weekly Data'!$I:$I,'Weekly Data'!$L:$L,'Hours Relieved'!$A28,'Weekly Data'!$X:$X,'Hours Relieved'!$M$1) -> 22.83 | D28: =SUMIFS('Weekly Data'!$AK:$AK,'Weekly Data'!$L:$L,'Hours Relieved'!$A28,'Weekly Data'!$X:$X,'Hours Relieved'!$M$1) -> 19.58333333 | E28: 13.64005988 | F28: 2.285714286 | G28: 6.297619048 | H28: 0 | I28: 0 | J28: 0 | K28: 37.77660679 | L28: 0.3703898868
A29: 801 | B29: 32 | C29: =SUMIFS('Weekly Data'!$I:$I,'Weekly Data'!$L:$L,'Hours Relieved'!$A29,'Weekly Data'!$X:$X,'Hours Relieved'!$M$1) -> 14.09 | D29: =SUMIFS('Weekly Data'!$AK:$AK,'Weekly Data'!$L:$L,'Hours Relieved'!$A29,'Weekly Data'!$X:$X,'Hours Relieved'!$M$1) -> 3.333333333 | E29: 0 | F29: 1.666666667 | G29: 3.333333333 | H29: 0 | I29: 0 | J29: 0 | K29: 27 | L29: 0.15625
A30: 802 | C30: =SUMIFS('Weekly Data'!$I:$I,'Weekly Data'!$L:$L,'Hours Relieved'!$A30,'Weekly Data'!$X:$X,'Hours Relieved'!$M$1) -> 0 | D30: =SUMIFS('Weekly Data'!$AK:$AK,'Weekly Data'!$L:$L,'Hours Relieved'!$A30,'Weekly Data'!$X:$X,'Hours Relieved'!$M$1) -> 0 | E30: 0 | F30: 0 | G30: 0 | H30: 0 | I30: 0 | J30: 0 | K30: 0 | L30: 0
A31: B1 | B31: 36 | C31: =SUMIFS('Weekly Data'!$I:$I,'Weekly Data'!$L:$L,'Hours Relieved'!$A31,'Weekly Data'!$X:$X,'Hours Relieved'!$M$1) -> 0 | D31: =SUMIFS('Weekly Data'!$AK:$AK,'Weekly Data'!$L:$L,'Hours Relieved'!$A31,'Weekly Data'!$X:$X,'Hours Relieved'!$M$1) -> 0 | E31: 0 | F31: 0 | G31: 0 | H31: 0 | I31: 0 | J31: 0 | K31: 36 | L31: 0
A32: B2 | B32: 18 | C32: =SUMIFS('Weekly Data'!$I:$I,'Weekly Data'!$L:$L,'Hours Relieved'!$A32,'Weekly Data'!$X:$X,'Hours Relieved'!$M$1) -> 17.12 | D32: =SUMIFS('Weekly Data'!$AK:$AK,'Weekly Data'!$L:$L,'Hours Relieved'!$A32,'Weekly Data'!$X:$X,'Hours Relieved'!$M$1) -> 4.285714286 | E32: 4.285714286 | F32: 0 | G32: 0 | H32: 0 | I32: 0 | J32: 0 | K32: 13.71428571 | L32: 0.2380952381
A33: REPACK | C33: =SUMIFS('Weekly Data'!$I:$I,'Weekly Data'!$L:$L,'Hours Relieved'!$A33,'Weekly Data'!$X:$X,'Hours Relieved'!$M$1) -> 0 | D33: =SUMIFS('Weekly Data'!$AK:$AK,'Weekly Data'!$L:$L,'Hours Relieved'!$A33,'Weekly Data'!$X:$X,'Hours Relieved'!$M$1) -> 0 | E33: 0 | F33: 0 | G33: 0 | H33: 0 | I33: 0 | J33: 0 | K33: 0 | L33: 0
A34: Kitting | C34: =SUMIFS('Weekly Data'!$I:$I,'Weekly Data'!$L:$L,'Hours Relieved'!$A34,'Weekly Data'!$X:$X,'Hours Relieved'!$M$1) -> 0 | D34: =SUMIFS('Weekly Data'!$AK:$AK,'Weekly Data'!$L:$L,'Hours Relieved'!$A34,'Weekly Data'!$X:$X,'Hours Relieved'!$M$1) -> 0 | E34: 0 | F34: 0 | G34: 0 | H34: 0 | I34: 0 | J34: 0 | K34: 0 | L34: 0

Sheet Sheet2 (2)
M1: P | N1: Leave Alone
A2: Week 38 | L2: Week 38
E3: 2020-09-14 | F3: =E3+1 -> 2020-09-15 | G3: =F3+1 -> 2020-09-16 | H3: 2020-09-17 | I3: 2020-09-18 | J3: 2020-09-19
A4: Resource | B4: Calendar Hours | C4: Hours Applied | D4: Hours Relieved | E4: Mon Relief | F4: Tue Relief | G4: Wed Relief | H4: Thu Relief | I4: Fri Relief | J4: Sat Relief | K4: Hours Remaining | L4: Week % Complt
A5: 100 | B5: 10 | C5: =SUMIFS('Weekly Data'!$I:$I,'Weekly Data'!$L:$L,'Sheet2 (2)'!$A5,'Weekly Data'!$X:$X,'Sheet2 (2)'!$M$1) -> 4.18 | D5: =SUMIFS('Weekly Data'!$AK:$AK,'Weekly Data'!$O:$O,'Sheet2 (2)'!$E3,'Weekly Data'!$X:$X,'Sheet2 (2)'!A5) -> 0 | F5: 1.571428571 | G5: 4.357142857 | H5: 0 | I5: 0 | J5: 0 | K5: =(B5-E5-F5-G5-H5-I5-J5) -> 4.071428571 | L5: =IF(B5=0,0,(B5-K5)/B5) -> 0.5928571429
A6: 101 | B6: 34 | C6: =SUMIFS('Weekly Data'!$I:$I,'Weekly Data'!$L:$L,'Sheet2 (2)'!$A6,'Weekly Data'!$X:$X,'Sheet2 (2)'!$M$1) -> 10.38 | D6: =SUMIFS('Weekly Data'!$AK:$AK,'Weekly Data'!$L:$L,'Sheet2 (2)'!$A6,'Weekly Data'!$X:$X,'Sheet2 (2)'!$M$1) -> 7.875 | E6: 1.165514593 | F6: 5.75 | G6: 5.75 | H6: 0 | I6: 0 | J6: 0 | K6: =(B6-E6-F6-G6-H6-I6-J6) -> 21.33448541 | L6: =IF(B6=0,0,(B6-K6)/B6) -> 0.3725151351
A7: 102 | B7: 55 | C7: =SUMIFS('Weekly Data'!$I:$I,'Weekly Data'!$L:$L,'Sheet2 (2)'!$A7,'Weekly Data'!$X:$X,'Sheet2 (2)'!$M$1) -> 29.55 | D7: =SUMIFS('Weekly Data'!$AK:$AK,'Weekly Data'!$L:$L,'Sheet2 (2)'!$A7,'Weekly Data'!$X:$X,'Sheet2 (2)'!$M$1) -> 21.20833333 | E7: 4.208279 | F7: 6.25 | G7: 12.08333333 | H7: 0 | I7: 0 | J7: 0 | K7: =B7-E7-F7-G7-H7-I7-J7 -> 32.45838767 | L7: 0.409847497
A8: 103 | B8: 48 | C8: =SUMIFS('Weekly Data'!$I:$I,'Weekly Data'!$L:$L,'Sheet2 (2)'!$A8,'Weekly Data'!$X:$X,'Sheet2 (2)'!$M$1) -> 14.59 | D8: =SUMIFS('Weekly Data'!$AK:$AK,'Weekly Data'!$L:$L,'Sheet2 (2)'!$A8,'Weekly Data'!$X:$X,'Sheet2 (2)'!$M$1) -> 15.3125 | E8: 1.740686275 | F8: 8.4375 | G8: 10.625 | H8: 0 | I8: 0 | J8: 0 | K8: 27.19681373 | L8: 0.4333997141
A9: 104 | B9: 10 | C9: =SUMIFS('Weekly Data'!$I:$I,'Weekly Data'!$L:$L,'Sheet2 (2)'!$A9,'Weekly Data'!$X:$X,'Sheet2 (2)'!$M$1) -> 1.02 | D9: =SUMIFS('Weekly Data'!$AK:$AK,'Weekly Data'!$L:$L,'Sheet2 (2)'!$A9,'Weekly Data'!$X:$X,'Sheet2 (2)'!$M$1) -> 1.5 | E9: 1.470588235 | F9: 0 | G9: 0 | H9: 0 | I9: 0 | J9: 0 | K9: 8.529411765 | L9: 0.1470588235
A10: 106 | B10: 30 | C10: =SUMIFS('Weekly Data'!$I:$I,'Weekly Data'!$L:$L,'Sheet2 (2)'!$A10,'Weekly Data'!$X:$X,'Sheet2 (2)'!$M$1) -> 0 | D10: =SUMIFS('Weekly Data'!$AK:$AK,'Weekly Data'!$L:$L,'Sheet2 (2)'!$A10,'Weekly Data'!$X:$X,'Sheet2 (2)'!$M$1) -> 0 | E10: 0 | F10: 0 | G10: 0 | H10: 0 | I10: 0 | J10: 0 | K10: 30 | L10: 0
A11: 107 | B11: 24 | C11: =SUMIFS('Weekly Data'!$I:$I,'Weekly Data'!$L:$L,'Sheet2 (2)'!$A11,'Weekly Data'!$X:$X,'Sheet2 (2)'!$M$1) -> 0 | D11: =SUMIFS('Weekly Data'!$AK:$AK,'Weekly Data'!$L:$L,'Sheet2 (2)'!$A11,'Weekly Data'!$X:$X,'Sheet2 (2)'!$M$1) -> 0 | E11: 0 | F11: 0 | G11: 0 | H11: 0 | I11: 0 | J11: 0 | K11: 24 | L11: 0
A12: 108 | B12: 30 | C12: =SUMIFS('Weekly Data'!$I:$I,'Weekly Data'!$L:$L,'Sheet2 (2)'!$A12,'Weekly Data'!$X:$X,'Sheet2 (2)'!$M$1) -> 19.95 | D12: =SUMIFS('Weekly Data'!$AK:$AK,'Weekly Data'!$L:$L,'Sheet2 (2)'!$A12,'Weekly Data'!$X:$X,'Sheet2 (2)'!$M$1) -> 10.96296296 | E12: 2.341514735 | F12: 0 | G12: 4.888888889 | H12: 0 | I12: 0 | J12: 0 | K12: 22.76959638 | L12: 0.2410134541
A13: 137 | B13: 90 | C13: =SUMIFS('Weekly Data'!$I:$I,'Weekly Data'!$L:$L,'Sheet2 (2)'!$A13,'Weekly Data'!$X:$X,'Sheet2 (2)'!$M$1) -> 14.43 | D13: =SUMIFS('Weekly Data'!$AK:$AK,'Weekly Data'!$L:$L,'Sheet2 (2)'!$A13,'Weekly Data'!$X:$X,'Sheet2 (2)'!$M$1) -> 8.1 | E13: 7.744555887 | F13: 1.8 | G13: 2.9 | H13: 0 | I13: 0 | J13: 0 | K13: 77.55544411 | L13: 0.1382728432
A14: 201 | B14: 60 | C14: =SUMIFS('Weekly Data'!$I:$I,'Weekly Data'!$L:$L,'Sheet2 (2)'!$A14,'Weekly Data'!$X:$X,'Sheet2 (2)'!$M$1) -> 12.95 | D14: =SUMIFS('Weekly Data'!$AK:$AK,'Weekly Data'!$L:$L,'Sheet2 (2)'!$A14,'Weekly Data'!$X:$X,'Sheet2 (2)'!$M$1) -> 14.47058824 | E14: 0 | F14: 14.47058824 | G14: 14.47058824 | H14: 0 | I14: 0 | J14: 0 | K14: 31.05882353 | L14: 0.4823529412
A15: 202 | B15: 30 | C15: =SUMIFS('Weekly Data'!$I:$I,'Weekly Data'!$L:$L,'Sheet2 (2)'!$A15,'Weekly Data'!$X:$X,'Sheet2 (2)'!$M$1) -> 3.67 | D15: =SUMIFS('Weekly Data'!$AK:$AK,'Weekly Data'!$L:$L,'Sheet2 (2)'!$A15,'Weekly Data'!$X:$X,'Sheet2 (2)'!$M$1) -> 1.058823529 | E15: 0 | F15: 0 | G15: 1.058823529 | H15: 0 | I15: 0 | J15: 0 | K15: 28.94117647 | L15: 0.03529411765
A16: 203 | B16: 55 | C16: =SUMIFS('Weekly Data'!$I:$I,'Weekly Data'!$L:$L,'Sheet2 (2)'!$A16,'Weekly Data'!$X:$X,'Sheet2 (2)'!$M$1) -> 19.96 | D16: =SUMIFS('Weekly Data'!$AK:$AK,'Weekly Data'!$L:$L,'Sheet2 (2)'!$A16,'Weekly Data'!$X:$X,'Sheet2 (2)'!$M$1) -> 9.658823529 | E16: 14.58237873 | F16: 2.058823529 | G16: 2.058823529 | H16: 0 | I16: 0 | J16: 0 | K16: 36.29997422 | L16: 0.3400004688
A17: 301 | B17: 60 | C17: =SUMIFS('Weekly Data'!$I:$I,'Weekly Data'!$L:$L,'Sheet2 (2)'!$A17,'Weekly Data'!$X:$X,'Sheet2 (2)'!$M$1) -> 49.77 | D17: =SUMIFS('Weekly Data'!$AK:$AK,'Weekly Data'!$L:$L,'Sheet2 (2)'!$A17,'Weekly Data'!$X:$X,'Sheet2 (2)'!$M$1) -> 34.08974359 | E17: 7.299087365 | F17: 5.444444444 | G17: 17.61111111 | H17: 0 | I17: 0 | J17: 0 | K17: 29.64535708 | L17: 0.5059107153
A18: 302 | B18: 60 | C18: =SUMIFS('Weekly Data'!$I:$I,'Weekly Data'!$L:$L,'Sheet2 (2)'!$A18,'Weekly Data'!$X:$X,'Sheet2 (2)'!$M$1) -> 17.59 | D18: =SUMIFS('Weekly Data'!$AK:$AK,'Weekly Data'!$L:$L,'Sheet2 (2)'!$A18,'Weekly Data'!$X:$X,'Sheet2 (2)'!$M$1) -> 9.361111111 | E18: 6.049767565 | F18: 0 | G18: 1.611111111 | H18: 0 | I18: 0 | J18: 0 | K18: 52.33912132 | L18: 0.1276813113
A19: 401 | B19: 42 | C19: =SUMIFS('Weekly Data'!$I:$I,'Weekly Data'!$L:$L,'Sheet2 (2)'!$A19,'Weekly Data'!$X:$X,'Sheet2 (2)'!$M$1) -> 35.25 | D19: =SUMIFS('Weekly Data'!$AK:$AK,'Weekly Data'!$L:$L,'Sheet2 (2)'!$A19,'Weekly Data'!$X:$X,'Sheet2 (2)'!$M$1) -> 24.61538462 | E19: 6.872320817 | F19: 5 | G19: 11.76923077 | H19: 0 | I19: 0 | J19: 0 | K19: 18.35844841 | L19: 0.5628940854
A20: 402 | B20: 67 | C20: =SUMIFS('Weekly Data'!$I:$I,'Weekly Data'!$L:$L,'Sheet2 (2)'!$A20,'Weekly Data'!$X:$X,'Sheet2 (2)'!$M$1) -> 21.3 | D20: =SUMIFS('Weekly Data'!$AK:$AK,'Weekly Data'!$L:$L,'Sheet2 (2)'!$A20,'Weekly Data'!$X:$X,'Sheet2 (2)'!$M$1) -> 15.78947368 | E20: 2.74404121 | F20: 5.894736842 | G20: 9.789473684 | H20: 0 | I20: 0 | J20: 0 | K20: 48.57174826 | L20: 0.2750485334
A21: 403 | B21: 40 | C21: =SUMIFS('Weekly Data'!$I:$I,'Weekly Data'!$L:$L,'Sheet2 (2)'!$A21,'Weekly Data'!$X:$X,'Sheet2 (2)'!$M$1) -> 21.21 | D21: =SUMIFS('Weekly Data'!$AK:$AK,'Weekly Data'!$L:$L,'Sheet2 (2)'!$A21,'Weekly Data'!$X:$X,'Sheet2 (2)'!$M$1) -> 16.26086957 | E21: 19.71227949 | F21: 4 | G21: 5.565217391 | H21: 0 | I21: 0 | J21: 0 | K21: 10.72250312 | L21: 0.731937422
A22: 404 | B22: 38 | C22: =SUMIFS('Weekly Data'!$I:$I,'Weekly Data'!$L:$L,'Sheet2 (2)'!$A22,'Weekly Data'!$X:$X,'Sheet2 (2)'!$M$1) -> 7.58 | D22: =SUMIFS('Weekly Data'!$AK:$AK,'Weekly Data'!$L:$L,'Sheet2 (2)'!$A22,'Weekly Data'!$X:$X,'Sheet2 (2)'!$M$1) -> 4 | E22: 0 | F22: 2.333333333 | G22: 4 | H22: 0 | I22: 0 | J22: 0 | K22: 31.66666667 | L22: 0.1666666667
A23: 405 | B23: 50 | C23: =SUMIFS('Weekly Data'!$I:$I,'Weekly Data'!$L:$L,'Sheet2 (2)'!$A23,'Weekly Data'!$X:$X,'Sheet2 (2)'!$M$1) -> 36.76 | D23: =SUMIFS('Weekly Data'!$AK:$AK,'Weekly Data'!$L:$L,'Sheet2 (2)'!$A23,'Weekly Data'!$X:$X,'Sheet2 (2)'!$M$1) -> 29.71578947 | E23: 6.656659765 | F23: 11 | G23: 13.31578947 | H23: 0 | I23: 0 | J23: 0 | K23: 19.02755076 | L23: 0.6194489848
A24: 406 | B24: 10 | C24: =SUMIFS('Weekly Data'!$I:$I,'Weekly Data'!$L:$L,'Sheet2 (2)'!$A24,'Weekly Data'!$X:$X,'Sheet2 (2)'!$M$1) -> 24.91 | D24: =SUMIFS('Weekly Data'!$AK:$AK,'Weekly Data'!$L:$L,'Sheet2 (2)'!$A24,'Weekly Data'!$X:$X,'Sheet2 (2)'!$M$1) -> 15.1 | E24: 1.706556783 | F24: 2.8 | G24: 10.5 | H24: 0 | I24: 0 | J24: 0 | K24: -5.006556783 | L24: 1.500655678
A25: 407 | B25: 30 | C25: =SUMIFS('Weekly Data'!$I:$I,'Weekly Data'!$L:$L,'Sheet2 (2)'!$A25,'Weekly Data'!$X:$X,'Sheet2 (2)'!$M$1) -> 7.9 | D25: =SUMIFS('Weekly Data'!$AK:$AK,'Weekly Data'!$L:$L,'Sheet2 (2)'!$A25,'Weekly Data'!$X:$X,'Sheet2 (2)'!$M$1) -> 3.733333333 | E25: 0 | F25: 3.733333333 | G25: 3.733333333 | H25: 0 | I25: 0 | J25: 0 | K25: 22.53333333 | L25: 0.2488888889
A26: 501 | B26: 10 | C26: =SUMIFS('Weekly Data'!$I:$I,'Weekly Data'!$L:$L,'Sheet2 (2)'!$A26,'Weekly Data'!$X:$X,'Sheet2 (2)'!$M$1) -> 0 | D26: =SUMIFS('Weekly Data'!$AK:$AK,'Weekly Data'!$L:$L,'Sheet2 (2)'!$A26,'Weekly Data'!$X:$X,'Sheet2 (2)'!$M$1) -> 0 | E26: 0 | F26: 0 | G26: 0 | H26: 0 | I26: 0 | J26: 0 | K26: 10 | L26: 0
A27: 550 | C27: =SUMIFS('Weekly Data'!$I:$I,'Weekly Data'!$L:$L,'Sheet2 (2)'!$A27,'Weekly Data'!$X:$X,'Sheet2 (2)'!$M$1) -> 0 | D27: =SUMIFS('Weekly Data'!$AK:$AK,'Weekly Data'!$L:$L,'Sheet2 (2)'!$A27,'Weekly Data'!$X:$X,'Sheet2 (2)'!$M$1) -> 0 | E27: 0 | F27: 0 | G27: 0 | H27: 0 | I27: 0 | J27: 0 | K27: 0 | L27: 0
A28: 601 | B28: 60 | C28: =SUMIFS('Weekly Data'!$I:$I,'Weekly Data'!$L:$L,'Sheet2 (2)'!$A28,'Weekly Data'!$X:$X,'Sheet2 (2)'!$M$1) -> 22.83 | D28: =SUMIFS('Weekly Data'!$AK:$AK,'Weekly Data'!$L:$L,'Sheet2 (2)'!$A28,'Weekly Data'!$X:$X,'Sheet2 (2)'!$M$1) -> 19.58333333 | E28: 13.64005988 | F28: 2.285714286 | G28: 6.297619048 | H28: 0 | I28: 0 | J28: 0 | K28: 37.77660679 | L28: 0.3703898868
A29: 801 | B29: 32 | C29: =SUMIFS('Weekly Data'!$I:$I,'Weekly Data'!$L:$L,'Sheet2 (2)'!$A29,'Weekly Data'!$X:$X,'Sheet2 (2)'!$M$1) -> 14.09 | D29: =SUMIFS('Weekly Data'!$AK:$AK,'Weekly Data'!$L:$L,'Sheet2 (2)'!$A29,'Weekly Data'!$X:$X,'Sheet2 (2)'!$M$1) -> 3.333333333 | E29: 0 | F29: 1.666666667 | G29: 3.333333333 | H29: 0 | I29: 0 | J29: 0 | K29: 27 | L29: 0.15625
A30: 802 | C30: =SUMIFS('Weekly Data'!$I:$I,'Weekly Data'!$L:$L,'Sheet2 (2)'!$A30,'Weekly Data'!$X:$X,'Sheet2 (2)'!$M$1) -> 0 | D30: =SUMIFS('Weekly Data'!$AK:$AK,'Weekly Data'!$L:$L,'Sheet2 (2)'!$A30,'Weekly Data'!$X:$X,'Sheet2 (2)'!$M$1) -> 0 | E30: 0 | F30: 0 | G30: 0 | H30: 0 | I30: 0 | J30: 0 | K30: 0 | L30: 0
A31: B1 | B31: 36 | C31: =SUMIFS('Weekly Data'!$I:$I,'Weekly Data'!$L:$L,'Sheet2 (2)'!$A31,'Weekly Data'!$X:$X,'Sheet2 (2)'!$M$1) -> 0 | D31: =SUMIFS('Weekly Data'!$AK:$AK,'Weekly Data'!$L:$L,'Sheet2 (2)'!$A31,'Weekly Data'!$X:$X,'Sheet2 (2)'!$M$1) -> 0 | E31: 0 | F31: 0 | G31: 0 | H31: 0 | I31: 0 | J31: 0 | K31: 36 | L31: 0
A32: B2 | B32: 18 | C32: =SUMIFS('Weekly Data'!$I:$I,'Weekly Data'!$L:$L,'Sheet2 (2)'!$A32,'Weekly Data'!$X:$X,'Sheet2 (2)'!$M$1) -> 17.12 | D32: =SUMIFS('Weekly Data'!$AK:$AK,'Weekly Data'!$L:$L,'Sheet2 (2)'!$A32,'Weekly Data'!$X:$X,'Sheet2 (2)'!$M$1) -> 4.285714286 | E32: 4.285714286 | F32: 0 | G32: 0 | H32: 0 | I32: 0 | J32: 0 | K32: 13.71428571 | L32: 0.2380952381
A33: REPACK | C33: =SUMIFS('Weekly Data'!$I:$I,'Weekly Data'!$L:$L,'Sheet2 (2)'!$A33,'Weekly Data'!$X:$X,'Sheet2 (2)'!$M$1) -> 0 | D33: =SUMIFS('Weekly Data'!$AK:$AK,'Weekly Data'!$L:$L,'Sheet2 (2)'!$A33,'Weekly Data'!$X:$X,'Sheet2 (2)'!$M$1) -> 0 | E33: 0 | F33: 0 | G33: 0 | H33: 0 | I33: 0 | J33: 0 | K33: 0 | L33: 0
A34: Kitting | C34: =SUMIFS('Weekly Data'!$I:$I,'Weekly Data'!$L:$L,'Sheet2 (2)'!$A34,'Weekly Data'!$X:$X,'Sheet2 (2)'!$M$1) -> 0 | D34: =SUMIFS('Weekly Data'!$AK:$AK,'Weekly Data'!$L:$L,'Sheet2 (2)'!$A34,'Weekly Data'!$X:$X,'Sheet2 (2)'!$M$1) -> 0 | E34: 0 | F34: 0 | G34: 0 | H34: 0 | I34: 0 | J34: 0 | K34: 0 | L34: 0
